Workbook

Sheet Quick Start Guide

Sheet ProData
B2: ProCost v4.0.06
B4: Marginal Cost & Conservation Load Shape Parameters
B5: Marginal Costs and Savings Shape File | C5: Q:\Eighth Plan\Conservation Analysis\ProCost v4\MC_AND_LOADSHAPE_v4.0.06.xlsx | J5: 0
B6: Marginal Elec Avoided Cost Input Worksheet | C6: 2021P Electric Mid
B7: Elec Savings Shape Input Worksheet | C7: GLSShapes
B8: Marginal Gas Avoided Cost Input Worksheet | C8: 2021P Gas
B9: Gas Savings Shape Input Worksheet | C9: GLSShapes
B10: Marginal Elec CO2 per kWh Input Worksheet | C10: CO2 lbs per kWh
B11: Marginal Gas CO2 per therm Input Worksheet | C11: CO2 lbs per therm
B12: Marginal Avoided Cost CO2 Input Worksheet | C12: Dollars per ton CO2
B13: Peak Hours Definitions Input Worksheet | C13: UtilityPeakHours
B15: Run Parameters
B16: Run Type | C16: Electric | D16: (Electric / Gas)
B17: Negative B/C Ratios | C17: Off | D17: (On / Off)
B18: Admin Cost @ Measure Application Level | C18: On | D18: (On / Off)
B19: Repeat Periodic Replacement | C19: On | D19: (On / Off)
B20: Limit Program Life to Measure Life | C20: Off | D20: (On / Off)
B22: Program Parameters
B23: Program Life (yrs) | C23: ='ProCost 8th Plan Inputs'!J4 -> 20
B24: Program Start Date | C24: ='ProCost 8th Plan Inputs'!J5 -> 2022
B25: Present Value Time Zero | C25: ='ProCost 8th Plan Inputs'!J6 -> 2022
B26: Input Cost Reference Year | C26: ='ProCost 8th Plan Inputs'!J7 -> 2016
B27: Real Discount Rate | C27: ='ProCost 8th Plan Inputs'!J8 -> 0.0375
B28: Capital Real Escalation Rate | C28: ='ProCost 8th Plan Inputs'!J9 -> 0
B29: Admin Cost (as % of Initial Capital Cost) | C29: ='ProCost 8th Plan Inputs'!J10 -> 0.2
B30: Regional Act Conservation Credit (%) | C30: 0
B31: Report Annual Carbon Saved for Year | C31: ='ProCost 8th Plan Inputs'!J12 -> 2022
B33: Sector
B34: Sector | C34: Commercial | D34: (Res. / Com. / Ind. / Ag. / Melded / Utility / Local Gov.)
B36: Sponsor Parameters
C37: Customer | D37: Wholesale Elec | E37: Retail Elec | F37: Nat Gas
B38: Real After-Tax Cost of Capital | C38: =INDEX(SECTOR_INPUTS_7P,VLOOKUP(ProData_Sector,tbl_SectorLookup,2,FALSE),2) -> 0.0415 | D38: =INDEX(SECTOR_INPUTS_7P,VLOOKUP(ProData_Sector,tbl_SectorLookup,2,FALSE),3) -> 0.0223 | E38: =INDEX(SECTOR_INPUTS_7P,VLOOKUP(ProData_Sector,tbl_SectorLookup,2,FALSE),4) -> 0.0428 | F38: =INDEX(SECTOR_INPUTS_7P,VLOOKUP(ProData_Sector,tbl_SectorLookup,2,FALSE),5) -> 0.048
B39: Financial Life (years) | C39: =INDEX(SECTOR_INPUTS_7P,VLOOKUP(ProData_Sector,tbl_SectorLookup,2,FALSE)+1,2) -> 12 | D39: =INDEX(SECTOR_INPUTS_7P,VLOOKUP(ProData_Sector,tbl_SectorLookup,2,FALSE)+1,3) -> 1 | E39: =INDEX(SECTOR_INPUTS_7P,VLOOKUP(ProData_Sector,tbl_SectorLookup,2,FALSE)+1,4) -> 1 | F39: =INDEX(SECTOR_INPUTS_7P,VLOOKUP(ProData_Sector,tbl_SectorLookup,2,FALSE)+1,5) -> 1
C40: Customer | D40: Wholesale Elec | E40: Retail Elec | F40: Nat Gas
B41: Sponsor Share of Initial Capital Cost | C41: =INDEX(SECTOR_INPUTS_7P,VLOOKUP(ProData_Sector,tbl_SectorLookup,2,FALSE)+2,2) -> 0.5 | D41: =INDEX(SECTOR_INPUTS_7P,VLOOKUP(ProData_Sector,tbl_SectorLookup,2,FALSE)+2,3) -> 0.35 | E41: =INDEX(SECTOR_INPUTS_7P,VLOOKUP(ProData_Sector,tbl_SectorLookup,2,FALSE)+2,4) -> 0.15 | F41: =INDEX(SECTOR_INPUTS_7P,VLOOKUP(ProData_Sector,tbl_SectorLookup,2,FALSE)+2,5) -> 0
B42: Sponsor Share of Annual O&M | C42: =INDEX(SECTOR_INPUTS_7P,VLOOKUP(ProData_Sector,tbl_SectorLookup,2,FALSE)+3,2) -> 1 | D42: =INDEX(SECTOR_INPUTS_7P,VLOOKUP(ProData_Sector,tbl_SectorLookup,2,FALSE)+3,3) -> 0 | E42: =INDEX(SECTOR_INPUTS_7P,VLOOKUP(ProData_Sector,tbl_SectorLookup,2,FALSE)+3,4) -> 0 | F42: =INDEX(SECTOR_INPUTS_7P,VLOOKUP(ProData_Sector,tbl_SectorLookup,2,FALSE)+3,5) -> 0
B43: Sponsor Share of Periodic Replacement Cost | C43: =INDEX(SECTOR_INPUTS_7P,VLOOKUP(ProData_Sector,tbl_SectorLookup,2,FALSE)+4,2) -> 1 | D43: =INDEX(SECTOR_INPUTS_7P,VLOOKUP(ProData_Sector,tbl_SectorLookup,2,FALSE)+4,3) -> 0 | E43: =INDEX(SECTOR_INPUTS_7P,VLOOKUP(ProData_Sector,tbl_SectorLookup,2,FALSE)+4,4) -> 0 | F43: =INDEX(SECTOR_INPUTS_7P,VLOOKUP(ProData_Sector,tbl_SectorLookup,2,FALSE)+4,5) -> 0
B44: Sponsor Share of Admin Cost | D44: =INDEX(SECTOR_INPUTS_7P,VLOOKUP(ProData_Sector,tbl_SectorLookup,2,FALSE)+5,3) -> 0.3 | E44: =INDEX(SECTOR_INPUTS_7P,VLOOKUP(ProData_Sector,tbl_SectorLookup,2,FALSE)+5,4) -> 0.7 | F44: =INDEX(SECTOR_INPUTS_7P,VLOOKUP(ProData_Sector,tbl_SectorLookup,2,FALSE)+5,5) -> 0
B45: Last Year of Non-Customer O&M & Period Replacement | D45: =INDEX(SECTOR_INPUTS_7P,VLOOKUP(ProData_Sector,tbl_SectorLookup,2,FALSE)+6,3) -> 20
B47: Utility System Parameters
C48: Electric | D48: Gas
B49: Bulk System T&D Loss Factor | C49: ='ProCost 8th Plan Inputs'!J15 -> 0.023 | D49: ='ProCost 8th Plan Inputs'!K15 -> 0.01
B50: Bulk System T&D Credit ($/kw-yr)($/dailytherm-yr) | C50: ='ProCost 8th Plan Inputs'!J16 -> 3.08 | D50: ='ProCost 8th Plan Inputs'!K16 -> 0
B51: Bulk System T&D Credit - Applicable Peak Period (1,2, or both) | C51: Peak Periods 1 and 2 | D51: Peak Period 1 only
B52: Bulk System T&D I2R Loss Component (%) | C52: 0.9 | D52: ='ProCost 8th Plan Inputs'!K17 -> N/A
B53: Local System Dist Loss Factor | C53: ='ProCost 8th Plan Inputs'!J18 -> 0.0473993482 | D53: ='ProCost 8th Plan Inputs'!K18 -> 0
B54: Local System Dist Credit ($/kw-yr)($/dailytherm-yr) | C54: ='ProCost 8th Plan Inputs'!J19 -> 6.85 | D54: ='ProCost 8th Plan Inputs'!K19 -> 0
B55: Local System Dist Credit - Applicable Peak Period (1,2, or both) | C55: Peak Periods 1 and 2 | D55: Peak Period 1 only
B56: Local System Dist I2R Loss Component (%) | C56: 0.7 | D56: ='ProCost 8th Plan Inputs'!K20 -> N/A
B57: Risk-Mitigation Credit (mills/kWh)(mills/therm) - Retro. | C57: ='ProCost 8th Plan Inputs'!J21 -> 0 | D57: ='ProCost 8th Plan Inputs'!K21 -> 0 | E57: ProCost currently treats all measures as retrofits (and Risk Mitigation Credit = $0/kWh)
B58: Risk-Mitigation Credit (mills/kWh)(mills/therm) - Lost Op. | C58: ='ProCost 8th Plan Inputs'!J22 -> 0 | D58: ='ProCost 8th Plan Inputs'!K22 -> 0
B59: Deferred Generation Capacity Credit - Same or Different Resources? | C59: None - No Credit | D59: N/A
B60: Deferred Generation Capacity Credit ($/bulk kW-year) - Peak 1 | C60: =INDEX(C79:C81,MATCH(C59,B79:B81,0)) -> 0 | D60: ='ProCost 8th Plan Inputs'!K23 -> N/A | E60: These values are looked up based on the value in C59.
B61: Deferred Generation Capacity Credit ($/bulk kW-year) - Peak 2 | C61: =INDEX(D79:D81,MATCH(C59,B79:B81,0)) -> 0 | D61: ='ProCost 8th Plan Inputs'!K24 -> N/A
B63: THIS LIST CAN BE MOVED TO THE LISTS SHEET
B64: Peak Periods
B65: Peak Period 1 only
B66: Peak Period 2 only
B67: Peak Periods 1 and 2
B69: DEFERRED GENERATION CAPACITY
B70: Same Resource
B71: Total Value ($/bulk kW-year) | C71: 115 | D71: enter a value
B72: % to Peak 1 | C72: 0.75 | D72: enter a value
B73: Different Resources
B74: Peak 1 Value ($/bulk kW-year) | C74: 115 | D74: enter a value
B75: Peak 2 Value ($/bulk kW-year) | C75: 25 | D75: enter a value
B77: LOOKUPS FOR PROCOST INPUTS
C78: Peak 1 credit | D78: Peak 2 credit
B79: =B70 -> Same Resource | C79: =C71*C72 -> 86.25 | D79: =C71-C79 -> 28.75
B80: =B73 -> Different Resources | C80: =C74 -> 115 | D80: =C75 -> 25
B81: None - No Credit | C81: 0 | D81: 0

Sheet Select Measure Files
B3: Save and Close Measure Files After Running? | C3: Yes
B6: Select Measure Files [Note: Required fields denoted with an asterisk (*).]
B7: Measure File Path* (e.g. C:\Users\Council\) | C7: Measure File Name* (e.g. Res-Showerhead.xlsx) | D7: Measure Input Tab 1* | E7: Measure Input Tab 2 | F7: Measure Input Tab 3 | G7: Measure Input Tab 4 | H7: Sector* | I7: Custom Sort (X)
B8: Q:\Eighth Plan\Conservation Analysis\Residential\ | C8: Res-Adv Powerstrips-2021P_v3.xlsx | D8: Measure_InputOutput | H8: Residential
B9: Q:\Eighth Plan\Conservation Analysis\Residential\ | C9: Res-Aerator-2021P_v2.xlsx | D9: Measure_InputOutput | H9: Residential
B10: Q:\Eighth Plan\Conservation Analysis\Residential\ | C10: Res-ClothesWasher-2021P_v2.xlsx | D10: Measure_InputOutput | H10: Residential
B11: Q:\Eighth Plan\Conservation Analysis\Residential\ | C11: Res-Dishwasher-2021P_v2.xlsx | D11: Measure_InputOutput | H11: Residential
B12: Q:\Eighth Plan\Conservation Analysis\Residential\ | C12: Res-Dryer-2021P_v4.xlsx | D12: Measure_InputOutput | H12: Residential
B13: Q:\Eighth Plan\Conservation Analysis\Residential\ | C13: Res-EVSE-2021P_v4.xlsx | D13: Measure_InputOutput | H13: Residential
B14: Q:\Eighth Plan\Conservation Analysis\Residential\ | C14: Res-FridgeFreezer-2021P_v2.xlsx | D14: Measure_InputOutput | H14: Residential
B15: Q:\Eighth Plan\Conservation Analysis\Residential\ | C15: Res-GFX-2021P_v2.xlsx | D15: Measure_InputOutput | H15: Residential
B16: Q:\Eighth Plan\Conservation Analysis\Residential\ | C16: Res-HPWH-2021P_v3.xlsm | D16: Measure_InputOutput | H16: Residential
B17: Q:\Eighth Plan\Conservation Analysis\Residential\ | C17: Res-Monitors-2021P_v2.xlsx | D17: M_Input | H17: Residential
B18: Q:\Eighth Plan\Conservation Analysis\Residential\ | C18: Res-Oven-2021P_v2.xlsx | D18: Measure_InputOutput | H18: Residential
B19: Q:\Eighth Plan\Conservation Analysis\Residential\ | C19: Res-PipeInsulation-2021P_v4.xlsx | D19: Measure_InputOutput | H19: Residential
B20: Q:\Eighth Plan\Conservation Analysis\Residential\ | C20: Res-Showerhead-2021P_v2.xlsx | D20: Measure_InputOutput | H20: Residential
B21: Q:\Eighth Plan\Conservation Analysis\Residential\ | C21: Res-TSRV-2021P_v2.xlsx | D21: Measure_InputOutput | H21: Residential
B22: Q:\Eighth Plan\Conservation Analysis\Residential\ | C22: Res-Whole House Fan-2021P_v4.xlsx | D22: Measure_InputOutput | H22: Residential
B23: Q:\Eighth Plan\Conservation Analysis\Residential\ | C23: Res-Well Pump-2021P_v2.xlsx | D23: Measure_InputOutput | H23: Residential
B24: Q:\Eighth Plan\Conservation Analysis\Residential\ | C24: Res-Computers-2021P_v4.xlsx | D24: M_Input | H24: Residential
B25: Q:\Eighth Plan\Conservation Analysis\Residential\ | C25: Res-Air Cleaner-2021P_v3.xlsx | D25: Measure_InputOutput | H25: Residential
B26: Q:\Eighth Plan\Conservation Analysis\Residential\ | C26: Res-TVs-2021P_v2.xlsx | D26: Measure_InputOutput | H26: Residential
B27: Q:\Eighth Plan\Conservation Analysis\Residential\ | C27: Res-DHPZonalSFMH-2021P_v4.xlsm | D27: Measure_InputOutput | H27: Residential
B28: Q:\Eighth Plan\Conservation Analysis\Residential\ | C28: Res-SFWx-2021P_v4.xlsx | D28: Measure_InputOutput | H28: Residential
B29: Q:\Eighth Plan\Conservation Analysis\Residential\ | C29: Res-Lighting-2021P_v6.xlsm | D29: Measure_InOut_All | H29: Residential
B30: Q:\Eighth Plan\Conservation Analysis\Residential\ | C30: Res-DuctSeal-2021P_v5.xlsx | D30: Measure_InputOutput | H30: Residential
B31: Q:\Eighth Plan\Conservation Analysis\Residential\ | C31: Res-ASHP-2021P_v6.xlsx | D31: Measure_InputOutput | H31: Residential
B32: Q:\Eighth Plan\Conservation Analysis\Residential\ | C32: Res-Behavior-2021P_v3.xlsx | D32: Measure_InputOutput | H32: Residential
B33: Q:\Eighth Plan\Conservation Analysis\Residential\ | C33: Res-DHPZonalMF-2021P_v2.xlsx | D33: Measure_InputOutput | H33: Residential
B34: Q:\Eighth Plan\Conservation Analysis\Residential\ | C34: Res-CAC-2021P_v2.xlsx | D34: Measure_InputOutput | H34: Residential
B35: Q:\Eighth Plan\Conservation Analysis\Residential\ | C35: Res-CircPumps-2021P_V6.xlsm | D35: M_Input | H35: Residential
B36: Q:\Eighth Plan\Conservation Analysis\Residential\ | C36: Res-DHPforFAF - 2021P_v3.xlsm | D36: Measure_InputOutput | H36: Residential
B37: Q:\Eighth Plan\Conservation Analysis\Residential\ | C37: Res-GSHP-2021P_v4.xlsx | D37: Measure_InputOutput | H37: Residential
B38: Q:\Eighth Plan\Conservation Analysis\Residential\ | C38: Res-HRV-2021P_v3.xlsx | D38: Measure_InputOutput | H38: Residential
B39: Q:\Eighth Plan\Conservation Analysis\Residential\ | C39: Res-Microwave-2021P_v2.xlsx | D39: Measure_InputOutput | H39: Residential
B40: Q:\Eighth Plan\Conservation Analysis\Residential\ | C40: Res-MHWx-2021P_v4.xlsx | D40: Measure_InputOutput | H40: Residential
B41: Q:\Eighth Plan\Conservation Analysis\Residential\ | C41: Res-MFWx-2021P_v2.xlsx | D41: Measure_InputOutput | H41: Residential
B42: Q:\Eighth Plan\Conservation Analysis\Residential\ | C42: Res-Tstats-2021P_v2.xlsx | D42: Measure_InputOutput | H42: Residential
B43: Q:\Eighth Plan\Conservation Analysis\Residential\ | C43: Res-CellularShades-2021P_v2.xlsx | D43: Measure_InputOutput | H43: Residential
B44: Q:\Eighth Plan\Conservation Analysis\Residential\ | C44: Res-RAC-2021P_v3.xlsx | D44: Measure_InputOutput | H44: Residential
B45: Q:\Eighth Plan\Conservation Analysis\Ag sector\ | C45: Ag-Area_Lights-2021P_v2.xlsm | D45: M_Input | H45: Agriculture
B46: Q:\Eighth Plan\Conservation Analysis\Ag sector\ | C46: Ag-CircBlockHtr-2021P_v3.xlsx | D46: M_Input | H46: Agriculture
B47: Q:\Eighth Plan\Conservation Analysis\Ag sector\ | C47: Ag-Dairy-2021P_v2.xlsx | D47: M_Input | H47: Agriculture
B48: Q:\Eighth Plan\Conservation Analysis\Ag sector\ | C48: Ag-Irr_Eff-2021P_v3.xlsm | D48: M_Input | H48: Agriculture
B49: Q:\Eighth Plan\Conservation Analysis\Ag sector\ | C49: Ag-Irr_Motor-2021P_v2.xlsm | D49: M_Input | H49: Agriculture
B50: Q:\Eighth Plan\Conservation Analysis\Ag sector\ | C50: Ag-StockTankEff-2021P_v2.xlsm | D50: M_Input | H50: Agriculture
B51: Q:\Eighth Plan\Conservation Analysis\Commercial\ | C51: Com-HPWH-2021P_V9-C19.xlsx | D51: M_Input | H51: Commercial
B52: Q:\Eighth Plan\Conservation Analysis\Commercial\ | C52: Com-Windows-2021P_V17-C19.xlsx | D52: Combined SGS | E52: Combined Film | F52: Combined New | H52: Commercial
B53: Q:\Eighth Plan\Conservation Analysis\Commercial\ | C53: Com-ParkingGarageLighting-2021P_V11-C19.xlsx | D53: M_Input(Fixture) | E53: M_Input(Fixture wo OM) | F53: M_Input(per KSF) | H53: Commercial
B54: Q:\Eighth Plan\Conservation Analysis\Commercial\ | C54: Com-HeatPumps-2021P_V4.xlsm | D54: M_Input | H54: Commercial
B55: Q:\Eighth Plan\Conservation Analysis\Industrial\ | C55: IND-PUMPS-2021P_V6.xlsm | D55: M_Input | H55: Industrial
B56: Q:\Eighth Plan\Conservation Analysis\Industrial\ | C56: IND-Fans-2021P_V6.xlsm | D56: M_Input | H56: Industrial
B57: Q:\Eighth Plan\Conservation Analysis\Industrial\ | C57: IND_AllMeasures_2021P_V8.xlsm | D57: M_Input | H57: Industrial
B58: Q:\Eighth Plan\Conservation Analysis\Industrial\ | C58: IND-Lighting-2021P-V9.xlsx | D58: M_Input(Fixture) | H58: Industrial
B59: Q:\Eighth Plan\Conservation Analysis\Industrial\ | C59: IND-AirComp-2021P_V7.xlsx | D59: M_Input | H59: Industrial
B60: Q:\Eighth Plan\Conservation Analysis\Industrial\ | C60: Ind-OtherMotors-2021P_v4.xlsx | D60: M_Input | H60: Industrial
B61: Q:\Eighth Plan\Conservation Analysis\Commercial\ | C61: Com-Chiller-2021P_V3.xlsm | D61: M_Input | H61: Commercial
B62: Q:\Eighth Plan\Conservation Analysis\Commercial\ | C62: Com-VHE-DOAS-2021P_V2.xlsm | D62: M_Input | H62: Commercial
B63: Q:\Eighth Plan\Conservation Analysis\Commercial\ | C63: Com-Cooking-2021P_V3.xlsm | D63: M_Input | H63: Commercial
B64: Q:\Eighth Plan\Conservation Analysis\Commercial\ | C64: Com-ARC-2021P_V4.xlsm | D64: M_Input | H64: Commercial
B65: Q:\Eighth Plan\Conservation Analysis\Commercial\ | C65: Com-EM-2021P_V4.xlsm | D65: M_Input | H65: Commercial
B66: Q:\Eighth Plan\Conservation Analysis\Commercial\ | C66: Com-Washer-2021P_V2.xlsm | D66: M_Input | H66: Commercial
B67: Q:\Eighth Plan\Conservation Analysis\Commercial\ | C67: Com-Refrig-Freeze_2021P_V2.xlsm | D67: M_Input | H67: Commercial
B68: Q:\Eighth Plan\Conservation Analysis\Commercial\ | C68: Com-PowerStrips_2021P_V2.xlsm | D68: M_Input | H68: Commercial
B69: Q:\Eighth Plan\Conservation Analysis\Commercial\ | C69: Com-EngBlockHeatCtrl_V3.xlsm | D69: M_Input | H69: Commercial
B70: Q:\Eighth Plan\Conservation Analysis\Commercial\ | C70: Com-ConnectedThermostats-2021P_V2.xlsm | D70: M_Input | H70: Commercial
B71: Q:\Eighth Plan\Conservation Analysis\Commercial\ | C71: Com-ExteriorLighting-2021P_V10-C19.xlsm | D71: M_Input(Fixt wo OM) | E71: M_Input(Fixture) | F71: M_Input | H71: Commercial
B72: Q:\Eighth Plan\Conservation Analysis\Commercial\ | C72: Com-LightingInterior-2021P_V20-C19.xlsm | D72: M_Input(Fixture wo OM) | E72: M_Input(Fixture) | F72: M_Input(per KSF) | G72: M_Input(per KSF Btype) | H72: Commercial
B73: Q:\Eighth Plan\Conservation Analysis\Commercial\ | C73: Com-Streetlight-2021P_V15-C19.xlsx | D73: M_Input (WT)(wo OM) | E73: M_Input(Fixture) | F73: M_Input (WT) | G73: M_Input | H73: Commercial
B74: Q:\Eighth Plan\Conservation Analysis\Commercial\ | C74: Com-Servers&PowerSupply-2021P_V8-C19.xlsx | D74: M_Input Servers&PS | H74: Commercial
B75: Q:\Eighth Plan\Conservation Analysis\Commercial\ | C75: Com-DHP-2021P_v3.xlsm | D75: M_Input | H75: Commercial
B76: Q:\Eighth Plan\Conservation Analysis\Commercial\ | C76: COM-CircPumps-2021P_V4.xlsm | D76: M_Input | H76: Commercial
B77: Q:\Eighth Plan\Conservation Analysis\Commercial\ | C77: Com-Bi-Level Stairwell-2021P_V9-C19.xlsx | D77: M_Input(Fixt) | E77: M_Input(KSF) | H77: Commercial
B78: Q:\Eighth Plan\Conservation Analysis\Commercial\ | C78: Com-ExitSign-2021P_V4-C19.xlsx | D78: M_Input | H78: Commercial
B79: Q:\Eighth Plan\Conservation Analysis\Commercial\ | C79: Com-WaterCooler-2021P_V8-C19.xlsx | D79: M_Input | H79: Commercial
B80: Q:\Eighth Plan\Conservation Analysis\Commercial\ | C80: Com-PTHP-2021P_V2.xlsm | D80: M_Input | H80: Commercial
B81: Q:\Eighth Plan\Conservation Analysis\Commercial\ | C81: Com-UnitaryAC-2021P_V2.xlsm | D81: M_Input | H81: Commercial
B82: Q:\Eighth Plan\Conservation Analysis\Commercial\ | C82: COM-PUMPS-2021P_V7.xlsm | D82: M_Input | H82: Commercial
B83: Q:\Eighth Plan\Conservation Analysis\Commercial\ | C83: Com-VRF-DOAS-2021P_V2.xlsm | D83: M_Input | H83: Commercial
B84: Q:\Eighth Plan\Conservation Analysis\Commercial\ | C84: COM-Fans-2021P_V7.xlsm | D84: M_Input | H84: Commercial
B85: Q:\Eighth Plan\Conservation Analysis\Commercial\ | C85: Com-Refrigeration-2021P_V12.xlsm | D85: M_Input | H85: Commercial
B86: Q:\Eighth Plan\Conservation Analysis\Commercial\ | C86: Com-Showerheads-2021P_V2.xlsm | D86: M_Input | H86: Commercial
B87: Q:\Eighth Plan\Conservation Analysis\Commercial\ | C87: Com-AirComp-2021P_V7.xlsx | D87: M_Input | H87: Commercial
B88: Q:\Eighth Plan\Conservation Analysis\Commercial\ | C88: Com-Computers-2021P_V4.xlsx | D88: M_Input | H88: Commercial
B89: Q:\Eighth Plan\Conservation Analysis\Commercial\ | C89: Com-IceAndVending-2021P_V1.xlsm | D89: M_Input | H89: Commercial
B90: Q:\Eighth Plan\Conservation Analysis\Commercial\ | C90: COM-PreRinseSpray-2021P_V2.xlsm | D90: M_Input | H90: Commercial
B91: Q:\Eighth Plan\Conservation Analysis\Distribution Efficiency\ | C91: DE-Distribution Efficiency-2021P_V7.xlsx | D91: M_input | H91: Utility
B93: Q:\Eighth Plan\Conservation Analysis\Scenario Curves\High load\ | C93: IND_AllMeasures_2021P_V8.xlsm | D93: M_Input | H93: Industrial | I93: x
B94: Q:\Eighth Plan\Conservation Analysis\Scenario Curves\Low load\ | C94: IND_AllMeasures_2021P_V8.xlsm | D94: M_Input | H94: Industrial | I94: x
B95: Q:\Eighth Plan\Conservation Analysis\Industrial\BPA Scenario\ | C95: Ind-OtherMotors-2021P_v4_BPA.xlsx | D95: M_Input | H95: Industrial | I95: x
B96: Q:\Eighth Plan\Conservation Analysis\Industrial\BPA Scenario\ | C96: IND_AllMeasures_2021P_V8_BPA.xlsm | D96: M_Input | H96: Industrial | I96: x
B97: Q:\Eighth Plan\Conservation Analysis\Distribution Efficiency\ | C97: DE-Distribution Efficiency-2021P_V8_BPA.xlsx | D97: M_input | H97: Utility | I97: x
B98: Q:\Eighth Plan\Conservation Analysis\Commercial\Path to Decarb\ | C98: Com-LightingInterior-2021P_V20_PTD.xlsm | D98: M_Input(Fixture wo OM) | E98: M_Input(Fixture) | F98: M_Input(per KSF) | G98: M_Input(per KSF Btype) | H98: Commercial | I98: x
B99: Q:\Eighth Plan\Conservation Analysis\ProCost v4\Alt resources\ | C99: PV+Battery.xlsx | D99: Measure_InputOutput | H99: Residential | I99: x

Sheet Run Queue
B1: Run Queue
B2: Path | C2: Filename | D2: Measure Input Tab 1 | E2: Measure Input Tab 2 | F2: Measure Input Tab 3 | G2: Measure Input Tab 4 | H2: Sector | I2: Custom Sort (x)
B3: Q:\Eighth Plan\Conservation Analysis\Commercial\ | C3: Com-LightingInterior-2021P_V20-C19.xlsm | D3: M_Input(Fixture wo OM) | E3: M_Input(Fixture) | F3: M_Input(per KSF) | G3: M_Input(per KSF Btype) | H3: Commercial
A4: 2
A5: 3
A6: 4
A7: 5
A8: 6
A9: 7
A10: 8
A11: 9
A12: 10
A13: 11
A14: 12
A15: 13
A16: 14
A17: 15
A18: 16
A19: 17
A20: 18
A21: 19
A22: 20
A23: 21
A24: 22
A25: 23
A26: 24
A27: 25
A28: 26
A29: 27
A30: 28
A31: 29
A32: 30
A33: 31
A34: 32
A35: 33
A36: 34
A37: 35
A38: 36
A39: 37
A40: 38
A41: 39
A42: 40
A43: 41
A44: 42
A45: 43
A46: 44
A47: 45
A48: 46
A49: 47
A50: 48
A51: 49
A52: 50
A53: 51
A54: 52
A55: 53
A56: 54
A57: 55
A58: 56
A59: 57
A60: 58
A61: 59
A62: 60
A63: 61
A64: 62
A65: 63
A66: 64
A67: 65
A68: 66
A69: 67
A70: 68
A71: 69
A72: 70
A73: 71
A74: 72

Sheet AggregatedOutput
B1: Measure Application Results
B2: Total Results | D2: Measure Input Data | P2: Savings | AJ2: PV Capital | AN2: PV Admin | AR2: PV O&M | AV2: PV Periodic Repl. | AZ2: Total PV Capital, O&M and Periodic Repl Costs | BE2: PV Wholesale Electric Utility Costs & Benefits | BL2: PV Retail Electric Utility Costs & Benefits | BS2: PV Electric Utility System Costs & Benefits | BY2: Electric Utility System Economics | CA2: Sponsor Levelized Cost (mills/kwh) | CF2: PV Regional Costs & Benefits | CW2: TRC Economics | CY2: Physical CO2 | DF2: Gas Inputs | DJ2: PV Gas Utility System Costs & Benefits | DO2: Gas Utility System Economics | DR2: Lifetime kWh denominators
A3: Workbook Name | B3: Measure Application | C3: Savings Component | D3: Time Varying Savings? (Yes/No) | E3: Measure Life (yrs) | F3: Length of Period 1 (yrs) | G3: Site Savings - Period 1 (kWh) | H3: Site Savings - Period 2 (kWh) | I3: Site Savings - Period 1 (therms) | J3: Site Savings - Period 2 (therms) | K3: Capital Cost ($) | L3: PV Base Case Cost at Start of Period 2($) | M3: Annual O&M Cost ($/unit) | N3: PV Per. Repl. Cost ($/unit) | O3: Load Shape (electric) | P3: Wholesale Electric Energy - Period 1 (kWh) | Q3: Wholesale Electric Energy - Period 2 (kWh) | R3: Wholesale Electric Demand - Period 1, Peak 1 (kW) | S3: Wholesale Electric Demand - Period 1, Peak 2 (kW) | T3: Wholesale Electric Demand - Period 2, Peak 1 (kW) | U3: Wholesale Electric Demand - Period 2, Peak 2 (kW) | V3: Retail Electric Demand - Period 1, Peak 1 (kW) | W3: Retail Electric Demand - Period 1, Peak 2 (kW) | X3: Retail Electric Demand - Period 2, Peak 1 (kW) | Y3: Retail Electric Demand - Period 2, Peak 2 (kW) | Z3: Wholesale Gas Energy - Period 1 (therms/yr) | AA3: Wholesale Gas Energy - Period 2 (therms/yr) | AB3: Wholesale Gas Demand - Period 1, Peak 1 (therms/day) | AC3: Wholesale Gas Demand - Period 1, Peak 2 (therms/day) | AD3: Wholesale Gas Demand - Period 2, Peak 1 (therms/day) | AE3: Wholesale Gas Demand - Period 2, Peak 2 (therms/day) | AF3: Retail Gas Demand - Period 1, Peak 1 (therms/day) | AG3: Retail Gas Demand - Period 1, Peak 2 (therms/day) | AH3: Retail Gas Demand - Period 2, Peak 1 (therms/day) | AI3: Retail Gas Demand - Period 2, Peak 2 (therms/day) | AJ3: Wholesale Electric | AK3: Retail Electric | AL3: Natural Gas | AM3: Customer | AN3: Wholesale Electric | AO3: Retail Electric | AP3: Natural Gas | AQ3: Customer | AR3: Wholesale Electric | AS3: Retail Electric | AT3: Natural Gas | AU3: Customer | AV3: Wholesale Electric | AW3: Retail Electric | AX3: Natural Gas | AY3: Customer | AZ3: Wholesale Electric | BA3: Retail Electric | BB3: Natural Gas | BC3: Customer | BD3: Total | BE3: Wholesale Utility System Energy | BF3: Wholesale Utility System T&D Def. Cap. | BG3: Wholesale Utility System Act C-E Credit | BH3: Wholesale Utility System Risk Mitigation Benefit | BI3: Wholesale Utility System Total System Benefit | BJ3: Wholesale Utility System Total Non-Consumer Cost | BK3: Wholesale Utility System B/C Ratio | BL3: Retail Utility System Energy | BM3: Retail Utility System T&D Def. Cap. | BN3: Retail Utility System Act C-E Credit | BO3: Retail Utility System Risk Mitigation Benefit | BP3: Retail Utility System Total System Benefit | BQ3: Retail Utility System Total Non-Consumer Cost | BR3: Retail Utility System System B/C Ratio | BS3: Utility System Energy | BT3: Utility System T&D Def. Cap. | BU3: Utility System Act C-E Credit | BV3: Utility System Total Risk Mitigation Benefit | BW3: Utility System Total System Benefit | BX3: Utility System Total Non-Consumer Cost | BY3: Utility System Net Levelized Cost (Net of Elec T&D Capacity Benefits, Act Credit & Risk-Mitigation Benefit) in mills/kwh | BZ3: Utility System System B/C Ratio | CA3: Wholesale Electric Levelized Cost | CB3: Retail Electric Levelized Cost | CC3: Natural Gas Levelized Cost | CD3: Customer Levelized Cost | CE3: Total Levelized Cost | CF3: PV Regional Electric Energy | CG3: PV Regional Gas Energy | CH3: PV Regional Electric T&D Def. Cap. | CI3: PV Regional Gas T&D Def. Cap. | CJ3: PV Regional Electric Deferred Generation Capacity Credit, Peak 1 | CK3: PV Regional Electric Deferred Generation Capacity Credit, Peak 2 | CL3: PV Regional Electric and Gas Systems CO2 | CM3: PV Regional Electric System Risk-Mitigation Benefit | CN3: PV Regional Gas System Risk-Mitigation Benefit | CO3: PV Regional Non-E Value | CP3: PV Regional Act Credit | CQ3: PV Regional Capital Cost | CR3: PV Regional Admin Cost | CS3: PV Regional Annual O&M Cost | CT3: PV Regional Periodic Replacement Cost | CU3: PV Total Regional Benefit | CV3: PV Total Regional Cost | CW3: TRC B/C Ratio | CX3: TRC Net Levelized Cost (Net of All Benefits) in mills/kWh | CY3: Electric System CO2 Avoided (Lifetime Tons) | CZ3: Gas System CO2 Avoided (Lifetime Tons) | DA3: Total System CO2 Avoided (Lifetime Tons) | DB3: Electric System CO2 Avoided (Annual Tons in 2022) | DC3: Gas System CO2 Avoided (Annual Tons in 2022) | DD3: Total System CO2 Avoided (Annual Tons in 2022) | DF3: Gas Site Savings (therms) | DG3: Load Shape (gas) | DH3: Diversitfied Load Factor (gas) | DI3: Wholesale Coincidence Factor (gas) | DJ3: Total Gas Utility System Energy | DK3: Gas Utility System T&D Def. Cap. | DL3: Gas Utility System Risk Mitigation Benefit | DM3: Gas Utility System Total System Benefit | DN3: Gas Utility System Total Non-Consumer Cost | DO3: Gas Utility System Net Levelized Cost (Net of Gas T&D Capacity Benefits & Risk-Mitigation Benefits) in cents/therm | DP3: Gas Utility System System B/C Ratio | DR3: PV Electricity Savings (kWh) (denominator for Levelized Cost) | DS3: Denominator for PV fields in MeasureTable
A4: Com-LightingInterior-2021P_V20-C19.xlsm | B4: All Btype_RETRO_LINEAR_Fixture_from_LEDTube_to_LEDPanel_CONTR | D4: No | E4: 14.21052632 | G4: 0 | I4: 0 | K4: 0 | M4: 0 | N4: 0 | O4: loadshape may vary by savings component | P4: 0 | R4: 0 | S4: 0 | V4: 0 | W4: 0 | Z4: 0 | AB4: n/a | AC4: n/a | AF4: n/a | AG4: n/a | AJ4: 0 | AK4: 0 | AL4: 0 | AM4: 0 | AN4: 0 | AO4: 0 | AP4: 0 | AQ4: 0 | AR4: 0 | AS4: 0 | AT4: 0 | AU4: 0 | AV4: 0 | AW4: 0 | AX4: 0 | AY4: 0 | AZ4: 0 | BA4: 0 | BB4: 0 | BC4: 0 | BD4: 0 | BE4: 0 | BF4: 0 | BG4: 0 | BH4: 0 | BI4: 0 | BJ4: 0 | BK4: 9999 | BL4: 0 | BM4: 0 | BN4: 0 | BO4: 0 | BP4: 0 | BQ4: 0 | BR4: 9999 | BS4: 0 | BT4: 0 | BU4: 0 | BV4: 0 | BW4: 0 | BX4: 0 | BY4: 9999 | BZ4: 9999 | CA4: 9999 | CB4: 9999 | CC4: 9999 | CD4: 9999 | CE4: 9999 | CF4: 0 | CG4: 0 | CH4: 0 | CI4: 0 | CJ4: 0 | CK4: 0 | CL4: 0 | CM4: 0 | CN4: 0 | CO4: 0 | CP4: 0 | CQ4: 0 | CR4: 0 | CS4: 0 | CT4: 0 | CU4: 0 | CV4: 0 | CW4: 9999 | CX4: 9999 | CY4: 0 | CZ4: 0 | DA4: 0 | DB4: 0 | DC4: 0 | DD4: 0 | DF4: 0 | DJ4: 0 | DK4: 0 | DL4: 0 | DM4: 0 | DN4: 0 | DO4: 9999 | DP4: 9999 | DR4: 0 | DS4: 0
A5: Com-LightingInterior-2021P_V20-C19.xlsm | B5: All Btype_RETRO_HIGHBAY_Fixture_from_LFTube_to_LEDPanel | D5: No | E5: 13.95327544 | G5: 0.7665704467 | I5: -0.01118567073 | K5: 0.7909462469 | M5: 0 | N5: -0.1148526868 | O5: loadshape may vary by savings component | P5: 0.8531676869 | R5: 0.0001367380086 | S5: 0.0001316369501 | V5: 0.0001297501482 | W5: 0.0001256700787 | Z5: -0.01129752732 | AB5: n/a | AC5: n/a | AF5: n/a | AG5: n/a | AJ5: 0.2680451408 | AK5: 0.1171800867 | AL5: 0 | AM5: 0.6413062618 | AN5: 0.04745677481 | AO5: 0.1107324746 | AP5: 0 | AQ5: 0 | AR5: 0 | AS5: 0 | AT5: 0 | AU5: 0 | AV5: 0 | AW5: 0 | AX5: 0 | AY5: -0.1148526868 | AZ5: 0.3155019157 | BA5: 0.2279125613 | BB5: 0 | BC5: 0.6413062618 | BD5: 1.069868052 | BE5: 0.05863618181 | BF5: 0.006074105486 | BG5: 0 | BH5: 0 | BI5: 0.0647102873 | BJ5: 0.3155019157 | BK5: 0.2051026764 | BL5: 0.05863618181 | BM5: 0.01287764727 | BN5: 0 | BO5: 0 | BP5: 0.07151382908 | BQ5: 0.2279125613 | BR5: 0.3137774797 | BS5: 0.05863618181 | BT5: 0.01895175276 | BU5: 0 | BV5: 0 | BW5: 0.07758793457 | BX5: 0.5434144769 | BY5: 44.23683431 | BZ5: 0.1427785564 | CA5: 26.61162619 | CB5: 19.22373078 | CC5: 0 | CD5: 44.40475652 | CE5: 90.24011349 | CF5: 0.05863618181 | CG5: -0.07572790867 | CH5: 0.01895175276 | CI5: 0 | CJ5: 0 | CK5: 0 | CL5: 0 | CM5: 0 | CN5: 0 | CO5: 0 | CP5: 0 | CQ5: 1.026531489 | CR5: 0.1581892494 | CS5: 0 | CT5: -0.1148526868 | CU5: 0.001860025894 | CV5: 1.069868052 | CW5: 0.1526762885 | CX5: 95.02900941 | CY5: 0.007934459488 | CZ5: -0.001321810696 | DA5: 0.006612648792 | DB5: 0.0003967229744 | DC5: -6.609053481e-05 | DD5: 0.0003306324396 | DF5: -0.01129752732 | DJ5: -0.07572790867 | DK5: 0 | DL5: 0 | DM5: -0.07572790867 | DN5: 0 | DO5: 9999 | DP5: 0 | DR5: 11.8557924 | DS5: 11.8557924
A6: Com-LightingInterior-2021P_V20-C19.xlsm | B6: All Btype_RETRO_LINEAR_Fixture_from_LFTube_to_LEDPanel | D6: No | E6: 15.70796048 | G6: 15.41527879 | I6: -0.1865970307 | K6: 15.67046077 | M6: 0 | N6: -0.8731872156 | O6: loadshape may vary by savings component | P6: 17.1522264 | R6: 0.00309643016 | S6: 0.00251899543 | V6: 0.002938206363 | W6: 0.002404814751 | Z6: -0.1884629986 | AB6: n/a | AC6: n/a | AF6: n/a | AG6: n/a | AJ6: 5.315386216 | AK6: 2.323703447 | AL6: 0 | AM6: 11.08277196 | AN6: 0.9402276464 | AO6: 2.193864508 | AP6: 0 | AQ6: 0 | AR6: 0 | AS6: 0 | AT6: 0 | AU6: 0 | AV6: 0 | AW6: 0 | AX6: 0 | AY6: -0.8731872156 | AZ6: 6.255613862 | BA6: 4.517567955 | BB6: 0 | BC6: 11.08277196 | BD6: 20.98276656 | BE6: 1.177244907 | BF6: 0.1347824939 | BG6: 0 | BH6: 0 | BI6: 1.312027401 | BJ6: 6.255613862 | BK6: 0.2097359955 | BL6: 1.177244907 | BM6: 0.2849185424 | BN6: 0 | BO6: 0 | BP6: 1.462163449 | BQ6: 4.517567955 | BR6: 0.3236616391 | BS6: 1.177244907 | BT6: 0.4197010363 | BU6: 0 | BV6: 0 | BW6: 1.596945943 | BX6: 10.77318182 | BY6: 43.43798725 | BZ6: 0.1482334532 | CA6: 26.24540296 | CB6: 18.95343831 | CC6: 0 | CD6: 42.83427201 | CE6: 88.03311327 | CF6: 1.177244907 | CG6: -1.251071219 | CH6: 0.4197010363 | CI6: 0 | CJ6: 0 | CK6: 0 | CL6: 0 | CM6: 0 | CN6: 0 | CO6: 0 | CP6: 0 | CQ6: 18.72186162 | CR6: 3.134092155 | CS6: 0 | CT6: -0.8731872156 | CU6: 0.3458747237 | CV6: 20.98276656 | CW6: 0.1068996618 | CX6: 91.52112355 | CY6: 0.1595157055 | CZ6: -0.02205017084 | DA6: 0.1374655347 | DB6: 0.007975785277 | DC6: -0.001102508542 | DD6: 0.006873276735 | DF6: -0.1884629986 | DJ6: -1.251071219 | DK6: 0 | DL6: 0 | DM6: -1.251071219 | DN6: 0 | DO6: 9999 | DP6: 0 | DR6: 238.3508408 | DS6: 238.3508408
A7: Com-LightingInterior-2021P_V20-C19.xlsm | B7: All Btype_RETRO_LINEAR_Fixture_from_LFTube_to_LEDPanel_CONTR | D7: No | E7: 15.66368168 | G7: 60.94310862 | I7: -0.7488907632 | K7: 55.04971798 | M7: 0 | N7: -2.389775538 | O7: loadshape may vary by savings component | P7: 67.8098682 | R7: 0.0122296998 | S7: 0.009940098533 | V7: 0.01160477659 | W7: 0.009489535752 | Z7: -0.756379661 | AB7: n/a | AC7: n/a | AF7: n/a | AG7: n/a | AJ7: 18.67274462 | AK7: 8.163079649 | AL7: 0 | AM7: 38.93334598 | AN7: 3.302983079 | AO7: 7.706960518 | AP7: 0 | AQ7: 0 | AR7: 0 | AS7: 0 | AT7: 0 | AU7: 0 | AV7: 0 | AW7: 0 | AX7: 0 | AY7: -2.389775538 | AZ7: 21.9757277 | BA7: 15.87004017 | BB7: 0 | BC7: 38.93334598 | BD7: 74.38933831 | BE7: 4.654222566 | BF7: 0.5326866835 | BG7: 0 | BH7: 0 | BI7: 5.186909249 | BJ7: 21.9757277 | BK7: 0.2360290098 | BL7: 4.654222566 | BM7: 1.126128177 | BN7: 0 | BO7: 0 | BP7: 5.780350742 | BQ7: 15.87004017 | BR7: 0.3642303789 | BS7: 4.654222566 | BT7: 1.65881486 | BU7: 0 | BV7: 0 | BW7: 6.313037426 | BX7: 37.84576787 | BY7: 38.40280336 | BZ7: 0.1668096007 | CA7: 23.32137634 | CB7: 16.84181677 | CC7: 0 | CD7: 38.7812577 | CE7: 78.9444508 | CF7: 4.654222566 | CG7: -5.022031868 | CH7: 1.65881486 | CI7: 0 | CJ7: 0 | CK7: 0 | CL7: 0 | CM7: 0 | CN7: 0 | CO7: 0 | CP7: 0 | CQ7: 65.76917025 | CR7: 11.0099436 | CS7: 0 | CT7: -2.389775538 | CU7: 1.291005558 | CV7: 74.38933831 | CW7: 0.1063898664 | CX7: 82.51360904 | CY7: 0.6306317742 | CZ7: -0.08849642034 | DA7: 0.5421353539 | DB7: 0.03153158871 | DC7: -0.004424821017 | DD7: 0.02710676769 | DF7: -0.756379661 | DJ7: -5.022031868 | DK7: 0 | DL7: 0 | DM7: -5.022031868 | DN7: 0 | DO7: 9999 | DP7: 0 | DR7: 942.299776 | DS7: 942.299776
A8: Com-LightingInterior-2021P_V20-C19.xlsm | B8: All Btype_RETRO_LINEAR_Fixture_from_LFTube_to_LEDPanel_RDX | D8: No | E8: 15.70796048 | G8: 4.638981558 | I8: -0.05615339144 | K8: 3.306896571 | M8: 0 | N8: -0.2182968039 | O8: loadshape may vary by savings component | P8: 5.161688155 | R8: 0.0009318211239 | S8: 0.0007580513789 | V8: 0.0008842062032 | W8: 0.0007236905301 | Z8: -0.05671492463 | AB8: n/a | AC8: n/a | AF8: n/a | AG8: n/a | AJ8: 1.121692125 | AK8: 0.4903650934 | AL8: 0 | AM8: 2.338768535 | AN8: 0.1984137942 | AO8: 0.4629655199 | AP8: 0 | AQ8: 0 | AR8: 0 | AS8: 0 | AT8: 0 | AU8: 0 | AV8: 0 | AW8: 0 | AX8: 0 | AY8: -0.2182968039 | AZ8: 1.320105919 | BA8: 0.9533306132 | BB8: 0 | BC8: 2.338768535 | BD8: 4.393908264 | BE8: 0.3542730225 | BF8: 0.04056063546 | BG8: 0 | BH8: 0 | BI8: 0.394833658 | BJ8: 1.320105919 | BK8: 0.2990924078 | BL8: 0.3542730225 | BM8: 0.08574167755 | BN8: 0 | BO8: 0 | BP8: 0.4400147001 | BQ8: 0.9533306132 | BR8: 0.4615551981 | BS8: 0.3542730225 | BT8: 0.126302313 | BU8: 0 | BV8: 0 | BW8: 0.4805753355 | BX8: 2.273436533 | BY8: 29.93444723 | BZ8: 0.2113871791 | CA8: 18.40436458 | CB8: 13.29093667 | CC8: 0 | CD8: 29.56272997 | CE8: 61.25803122 | CF8: 0.3542730225 | CG8: -0.3764898703 | CH8: 0.126302313 | CI8: 0 | CJ8: 0 | CK8: 0 | CL8: 0 | CM8: 0 | CN8: 0 | CO8: 0 | CP8: 0 | CQ8: 3.950825754 | CR8: 0.6613793141 | CS8: 0 | CT8: -0.2182968039 | CU8: 0.1040854652 | CV8: 4.393908264 | CW8: 0.1400911758 | CX8: 64.7460415 | CY8: 0.04800369984 | CZ8: -0.006635646181 | DA8: 0.04136805366 | DB8: 0.002400184992 | DC8: -0.0003317823091 | DD8: 0.002068402683 | DF8: -0.05671492463 | DJ8: -0.3764898703 | DK8: 0 | DL8: 0 | DM8: -0.3764898703 | DN8: 0 | DO8: 9999 | DP8: 0 | DR8: 71.72787268 | DS8: 71.72787268
A9: Com-LightingInterior-2021P_V20-C19.xlsm | B9: All Btype_RETRO_HIGHBAY_Fixture_from_LFTube_to_LEDPanel_CONTR | D9: No | E9: 13.88905224 | G9: 4.232330966 | I9: -0.06229095942 | K9: 2.694654015 | M9: 0 | N9: -0.362692695 | O9: loadshape may vary by savings component | P9: 4.710451327 | R9: 0.0007537305199 | S9: 0.0007272409798 | V9: 0.0007152117667 | W9: 0.0006942764329 | Z9: -0.06291386836 | AB9: n/a | AC9: n/a | AF9: n/a | AG9: n/a | AJ9: 0.9131959571 | AK9: 0.3992177628 | AL9: 0 | AM9: 2.184849476 | AN9: 0.1616792409 | AO9: 0.3772515621 | AP9: 0 | AQ9: 0 | AR9: 0 | AS9: 0 | AT9: 0 | AU9: 0 | AV9: 0 | AW9: 0 | AX9: 0 | AY9: -0.362692695 | AZ9: 1.074875198 | BA9: 0.7764693249 | BB9: 0 | BC9: 2.184849476 | BD9: 3.673501304 | BE9: 0.3237457368 | BF9: 0.03350385406 | BG9: 0 | BH9: 0 | BI9: 0.3572495909 | BJ9: 1.074875198 | BK9: 0.3323637865 | BL9: 0.3237457368 | BM9: 0.07103688364 | BN9: 0 | BO9: 0 | BP9: 0.3947826204 | BQ9: 0.7764693249 | BR9: 0.5084329899 | BS9: 0.3237457368 | BT9: 0.1045407377 | BU9: 0 | BV9: 0 | BW9: 0.4282864745 | BX9: 1.851344523 | BY9: 26.68611886 | BZ9: 0.2313380731 | CA9: 16.42098989 | CB9: 11.86220964 | CC9: 0 | CD9: 27.83729509 | CE9: 56.12049462 | CF9: 0.3237457368 | CG9: -0.4217697157 | CH9: 0.1045407377 | CI9: 0 | CJ9: 0 | CK9: 0 | CL9: 0 | CM9: 0 | CN9: 0 | CO9: 0 | CP9: 0 | CQ9: 3.497263196 | CR9: 0.538930803 | CS9: 0 | CT9: -0.362692695 | CU9: 0.006516758786 | CV9: 3.673501304 | CW9: 0.1774305984 | CX9: 60.96683757 | CY9: 0.04380719735 | CZ9: -0.007360922598 | DA9: 0.03644627475 | DB9: 0.002190359867 | DC9: -0.0003680461299 | DD9: 0.001822313737 | DF9: -0.06291386836 | DJ9: -0.4217697157 | DK9: 0 | DL9: 0 | DM9: -0.4217697157 | DN9: 0 | DO9: 9999 | DP9: 0 | DR9: 65.45739358 | DS9: 65.45739358
A10: Com-LightingInterior-2021P_V20-C19.xlsm | B10: All Btype_NEW_OTHER_Fixture_from_LEDPanel_to_LEDPanel_CONTR | D10: No | E10: 12.77465197 | G10: 16.30488029 | I10: -0.1689490402 | K10: 7.554008404 | M10: 0 | N10: 0 | O10: loadshape may vary by savings component | P10: 18.12808869 | R10: 0.002945983163 | S10: 0.002606334808 | V10: 0.002795456545 | W10: 0.002488192143 | Z10: -0.1706385274 | AB10: n/a | AC10: n/a | AF10: n/a | AG10: n/a | AJ10: 2.598178596 | AK10: 1.135834033 | AL10: 0 | AM10: 6.839178052 | AN10: 0.4532405042 | AO10: 1.057561177 | AP10: 0 | AQ10: 0 | AR10: 0 | AS10: 0 | AT10: 0 | AU10: 0 | AV10: 0 | AW10: 0 | AX10: 0 | AY10: 0 | AZ10: 3.051419101 | BA10: 2.193395209 | BB10: 0 | BC10: 6.839178052 | BD10: 12.08399236 | BE10: 1.247347761 | BF10: 0.1286566024 | BG10: 0 | BH10: 0 | BI10: 1.376004363 | BJ10: 3.051419101 | BK10: 0.4509391591 | BL10: 1.247347761 | BM10: 0.2716807481 | BN10: 0 | BO10: 0 | BP10: 1.519028509 | BQ10: 2.193395209 | BR10: 0.6925466522 | BS10: 1.247347761 | BT10: 0.4003373504 | BU10: 0 | BV10: 0 | BW10: 1.647685111 | BX10: 5.24481431 | BY10: 19.23085927 | BZ10: 0.31415509 | CA10: 12.11305406 | CB10: 8.70700283 | CC10: 0 | CD10: 27.14911677 | CE10: 47.96917366 | CF10: 1.247347761 | CG10: -1.125777128 | CH10: 0.4003373504 | CI10: 0 | CJ10: 0 | CK10: 0 | CL10: 0 | CM10: 0 | CN10: 0 | CO10: 0 | CP10: 0 | CQ10: 10.57319068 | CR10: 1.510801681 | CS10: 0 | CT10: 0 | CU10: 0.5219079835 | CV10: 12.08399236 | CW10: 0.1247323137 | CX10: 50.84891287 | CY10: 0.1685912248 | CZ10: -0.0199647077 | DA10: 0.1486265171 | DB10: 0.00842956124 | DC10: -0.0009982353851 | DD10: 0.007431325855 | DF10: -0.1706385274 | DJ10: -1.125777128 | DK10: 0 | DL10: 0 | DM10: -1.125777128 | DN10: 0 | DO10: 9999 | DP10: 0 | DR10: 251.9116224 | DS10: 251.9116224
A11: Com-LightingInterior-2021P_V20-C19.xlsm | B11: All Btype_NR_HIGHBAY_Fixture_from_LFTube_to_LEDPanel | D11: No | E11: 13.95327544 | G11: 6.89913402 | I11: -0.1006710366 | K11: 3.843114928 | M11: 0 | N11: -1.033674181 | O11: loadshape may vary by savings component | P11: 7.678509182 | R11: 0.001230642078 | S11: 0.001184732551 | V11: 0.001167751334 | W11: 0.001131030708 | Z11: -0.1016777459 | AB11: n/a | AC11: n/a | AF11: n/a | AG11: n/a | AJ11: 1.302399861 | AK11: 0.5693642802 | AL11: 0 | AM11: 3.116031814 | AN11: 0.2305868957 | AO11: 0.53803609 | AP11: 0 | AQ11: 0 | AR11: 0 | AS11: 0 | AT11: 0 | AU11: 0 | AV11: 0 | AW11: 0 | AX11: 0 | AY11: -1.033674181 | AZ11: 1.532986757 | BA11: 1.10740037 | BB11: 0 | BC11: 3.116031814 | BD11: 4.72274476 | BE11: 0.5277256363 | BF11: 0.05466694937 | BG11: 0 | BH11: 0 | BI11: 0.5823925857 | BJ11: 1.532986757 | BK11: 0.3799071212 | BL11: 0.5277256363 | BM11: 0.1158988254 | BN11: 0 | BO11: 0 | BP11: 0.6436244617 | BQ11: 1.10740037 | BR11: 0.5812030401 | BS11: 0.5277256363 | BT11: 0.1705657748 | BU11: 0 | BV11: 0 | BW11: 0.6982914111 | BX11: 2.640387127 | BY11: 23.14687921 | BZ11: 0.2644655414 | CA11: 14.36697406 | CB11: 10.37842781 | CC11: 0 | CD11: 19.51561418 | CE11: 44.26101604 | CF11: 0.5277256363 | CG11: -0.6815511781 | CH11: 0.1705657748 | CI11: 0 | CJ11: 0 | CK11: 0 | CL11: 0 | CM11: 0 | CN11: 0 | CO11: 0 | CP11: 0 | CQ11: 4.987795955 | CR11: 0.7686229856 | CS11: 0 | CT11: -1.033674181 | CU11: 0.01674023304 | CV11: 4.72274476 | CW11: 0.2690235525 | CX11: 49.04991197 | CY11: 0.07141013539 | CZ11: -0.01189629627 | DA11: 0.05951383912 | DB11: 0.003570506769 | DC11: -0.0005948148133 | DD11: 0.002975691956 | DF11: -0.1016777459 | DJ11: -0.6815511781 | DK11: 0 | DL11: 0 | DM11: -0.6815511781 | DN11: 0 | DO11: 9999 | DP11: 0 | DR11: 106.7021316 | DS11: 106.7021316
A12: Com-LightingInterior-2021P_V20-C19.xlsm | B12: All Btype_NEW_HIGHBAY_Fixture_from_LFTube_to_LEDPanel_CONTR | D12: No | E12: 15.26585464 | G12: 77.37667791 | I12: -1.032617845 | K12: 33.27923522 | M12: 0 | N12: -7.074012038 | O12: loadshape may vary by savings component | P12: 86.1037178 | R12: 0.0149465615 | S12: 0.01283462591 | V12: 0.01418279593 | W12: 0.01225285753 | Z12: -1.042944011 | AB12: n/a | AC12: n/a | AF12: n/a | AG12: n/a | AJ12: 11.24005559 | AK12: 4.913764467 | AL12: 0 | AM12: 24.20679854 | AN12: 1.996754113 | AO12: 4.65909293 | AP12: 0 | AQ12: 0 | AR12: 0 | AS12: 0 | AT12: 0 | AU12: 0 | AV12: 0 | AW12: 0 | AX12: 0 | AY12: -7.074012038 | AZ12: 13.2368097 | BA12: 9.572857397 | BB12: 0 | BC12: 24.20679854 | BD12: 39.9424536 | BE12: 5.913353327 | BF12: 0.6521199618 | BG12: 0 | BH12: 0 | BI12: 6.565473288 | BJ12: 13.2368097 | BK12: 0.4960011843 | BL12: 5.913353327 | BM12: 1.379697542 | BN12: 0 | BO12: 0 | BP12: 7.293050869 | BQ12: 9.572857397 | BR12: 0.7618468098 | BS12: 5.913353327 | BT12: 2.031817504 | BU12: 0 | BV12: 0 | BW12: 7.945170831 | BX12: 22.8096671 | BY12: 17.36530864 | BZ12: 0.3483247167 | CA12: 11.0628044 | CB12: 8.000617318 | CC12: 0 | CD12: 14.31890842 | CE12: 33.38233013 | CF12: 5.913353327 | CG12: -6.9209637 | CH12: 2.031817504 | CI12: 0 | CJ12: 0 | CK12: 0 | CL12: 0 | CM12: 0 | CN12: 0 | CO12: 0 | CP12: 0 | CQ12: 40.36061859 | CR12: 6.655847043 | CS12: 0 | CT12: -7.074012038 | CU12: 1.024207131 | CV12: 39.9424536 | CW12: 0.2784556671 | CX12: 37.46848603 | CY12: 0.8007645755 | CZ12: -0.1220244493 | DA12: 0.6787401262 | DB12: 0.04003822878 | DC12: -0.006101222466 | DD12: 0.03393700631 | DF12: -1.042944011 | DJ12: -6.9209637 | DK12: 0 | DL12: 0 | DM12: -6.9209637 | DN12: 0 | DO12: 9999 | DP12: 0 | DR12: 1196.514846 | DS12: 1196.514846
A13: Com-LightingInterior-2021P_V20-C19.xlsm | B13: All Btype_NEW_CAN_Fixture_from_LEDPanel_to_LEDPanel_CONTR | D13: No | E13: 13.12250397 | G13: 4.313317234 | I13: -0.04396989922 | K13: 1.391761255 | M13: 0 | N13: 0 | O13: loadshape may vary by savings component | P13: 4.797571347 | R13: 0.0008153660516 | S13: 0.0007175753788 | V13: 0.000773703247 | W13: 0.0006850484465 | Z13: -0.04440959749 | AB13: n/a | AC13: n/a | AF13: n/a | AG13: n/a | AJ13: 0.4791321492 | AK13: 0.2094600433 | AL13: 0 | AM13: 1.205330795 | AN13: 0.08350567528 | AO13: 0.1948465757 | AP13: 0 | AQ13: 0 | AR13: 0 | AS13: 0 | AT13: 0 | AU13: 0 | AV13: 0 | AW13: 0 | AX13: 0 | AY13: 0 | AZ13: 0.5626378245 | BA13: 0.4043066189 | BB13: 0 | BC13: 1.205330795 | BD13: 2.172275238 | BE13: 0.3297408115 | BF13: 0.03580892913 | BG13: 0 | BH13: 0 | BI13: 0.3655497406 | BJ13: 0.5626378245 | BK13: 0.6497070134 | BL13: 0.3297408115 | BM13: 0.0756487884 | BN13: 0 | BO13: 0 | BP13: 0.4053895999 | BQ13: 0.4043066189 | BR13: 1.002678613 | BS13: 0.3297408115 | BT13: 0.1114577175 | BU13: 0 | BV13: 0 | BW13: 0.441198529 | BX13: 0.9669444435 | BY13: 12.83203825 | BZ13: 0.4562811566 | CA13: 8.439394636 | CB13: 6.06447516 | CC13: 0 | CD13: 18.07959188 | CE13: 32.58346168 | CF13: 0.3297408115 | CG13: -0.2938231944 | CH13: 0.1114577175 | CI13: 0 | CJ13: 0 | CK13: 0 | CL13: 0 | CM13: 0 | CN13: 0 | CO13: 0 | CP13: 0 | CQ13: 1.893922987 | CR13: 0.2783522509 | CS13: 0 | CT13: 0 | CU13: 0.1473753346 | CV13: 2.172275238 | CW13: 0.1789054821 | CX13: 35.31888784 | CY13: 0.04461741353 | CZ13: -0.005195922906 | DA13: 0.03942149062 | DB13: 0.002230870676 | DC13: -0.0002597961453 | DD13: 0.001971074531 | DF13: -0.04440959749 | DJ13: -0.2938231944 | DK13: 0 | DL13: 0 | DM13: -0.2938231944 | DN13: 0 | DO13: 9999 | DP13: 0 | DR13: 66.66803116 | DS13: 66.66803116
A14: Com-LightingInterior-2021P_V20-C19.xlsm | B14: All Btype_NR_LINEAR_Fixture_from_LFTube_to_LEDPanel_RDX | D14: No | E14: 15.70796048 | G14: 41.75083403 | I14: -0.505380523 | K14: 16.22900507 | M14: 0 | N14: -1.964671235 | O14: loadshape may vary by savings component | P14: 46.4551934 | R14: 0.008386390115 | S14: 0.00682246241 | V14: 0.007957855829 | W14: 0.00651321477 | Z14: -0.5104343216 | AB14: n/a | AC14: n/a | AF14: n/a | AG14: n/a | AJ14: 5.504843227 | AK14: 2.406527515 | AL14: 0 | AM14: 11.47779666 | AN14: 0.9737403042 | AO14: 2.27206071 | AP14: 0 | AQ14: 0 | AR14: 0 | AS14: 0 | AT14: 0 | AU14: 0 | AV14: 0 | AW14: 0 | AX14: 0 | AY14: -1.964671235 | AZ14: 6.478583531 | BA14: 4.678588225 | BB14: 0 | BC14: 11.47779666 | BD14: 20.67029718 | BE14: 3.188457203 | BF14: 0.3650457191 | BG14: 0 | BH14: 0 | BI14: 3.553502922 | BJ14: 6.478583531 | BK14: 0.5484999777 | BL14: 3.188457203 | BM14: 0.7716750979 | BN14: 0 | BO14: 0 | BP14: 3.960132301 | BQ14: 4.678588225 | BR14: 0.846437453 | BS14: 3.188457203 | BT14: 1.136720817 | BU14: 0 | BV14: 0 | BW14: 4.32517802 | BX14: 11.15717176 | BY14: 15.5223262 | BZ14: 0.3876589977 | CA14: 10.03574465 | CB14: 7.247435574 | CC14: 0 | CD14: 14.73644619 | CE14: 32.01962642 | CF14: 3.188457203 | CG14: -3.388408833 | CH14: 1.136720817 | CI14: 0 | CJ14: 0 | CK14: 0 | CL14: 0 | CM14: 0 | CN14: 0 | CO14: 0 | CP14: 0 | CQ14: 19.3891674 | CR14: 3.245801014 | CS14: 0 | CT14: -1.964671235 | CU14: 0.9367691869 | CV14: 20.67029718 | CW14: 0.2416999606 | CX14: 35.5076367 | CY14: 0.4320332986 | CZ14: -0.05972081563 | DA14: 0.372312483 | DB14: 0.02160166493 | DC14: -0.002986040782 | DD14: 0.01861562415 | DF14: -0.5104343216 | DJ14: -3.388408833 | DK14: 0 | DL14: 0 | DM14: -3.388408833 | DN14: 0 | DO14: 9999 | DP14: 0 | DR14: 645.5508541 | DS14: 645.5508541
A15: Com-LightingInterior-2021P_V20-C19.xlsm | B15: All Btype_NEW_DISP_Fixture_from_LEDPanel_to_LEDPanel_CONTR | D15: No | E15: 8.922849721 | G15: 8.905758001 | I15: -0.09217032777 | K15: 2.09580224 | M15: 0 | N15: 0 | O15: loadshape may vary by savings component | P15: 9.906091845 | R15: 0.001693568318 | S15: 0.001483051954 | V15: 0.001607031699 | W15: 0.001415826919 | Z15: -0.09309202955 | AB15: n/a | AC15: n/a | AF15: n/a | AG15: n/a | AJ15: 0.722784116 | AK15: 0.315976276 | AL15: 0 | AM15: 2.866921936 | AN15: 0.1257481344 | AO15: 0.2934123135 | AP15: 0 | AQ15: 0 | AR15: 0 | AS15: 0 | AT15: 0 | AU15: 0 | AV15: 0 | AW15: 0 | AX15: 0 | AY15: 0 | AZ15: 0.8485322504 | BA15: 0.6093885895 | BB15: 0 | BC15: 2.866921936 | BD15: 4.324842776 | BE15: 0.6807111006 | BF15: 0.07448666048 | BG15: 0 | BH15: 0 | BI15: 0.755197761 | BJ15: 0.8485322504 | BK15: 0.8900047827 | BL15: 0.6807111006 | BM15: 0.1573781454 | BN15: 0 | BO15: 0 | BP15: 0.838089246 | BQ15: 0.6093885895 | BR15: 1.375295272 | BS15: 0.6807111006 | BT15: 0.2318648059 | BU15: 0 | BV15: 0 | BW15: 0.9125759064 | BX15: 1.45792084 | BY15: 8.90659657 | BZ15: 0.6259433856 | CA15: 6.164101983 | CB15: 4.426859924 | CC15: 0 | CD15: 20.82654983 | CE15: 31.41751174 | CF15: 0.6807111006 | CG15: -0.6162840281 | CH15: 0.2318648059 | CI15: 0 | CJ15: 0 | CK15: 0 | CL15: 0 | CM15: 0 | CN15: 0 | CO15: 0 | CP15: 0 | CQ15: 3.905682328 | CR15: 0.4191604479 | CS15: 0 | CT15: 0 | CU15: 0.2962918783 | CV15: 4.324842776 | CW15: 0.1846898375 | CX15: 34.21009774 | CY15: 0.09212665416 | CZ15: -0.01089176746 | DA15: 0.0812348867 | DB15: 0.004606332708 | DC15: -0.0005445883729 | DD15: 0.004061744335 | DF15: -0.09309202955 | DJ15: -0.6162840281 | DK15: 0 | DL15: 0 | DM15: -0.6162840281 | DN15: 0 | DO15: 9999 | DP15: 0 | DR15: 137.6570752 | DS15: 137.6570752
A16: Com-LightingInterior-2021P_V20-C19.xlsm | B16: All Btype_NR_HIGHBAY_Fixture_from_LFTube_to_LEDPanel_CONTR | D16: No | E16: 13.88905224 | G16: 38.09097869 | I16: -0.5606186348 | K16: 13.90851363 | M16: 0 | N16: -3.264234255 | O16: loadshape may vary by savings component | P16: 42.39406195 | R16: 0.006783574679 | S16: 0.006545168818 | V16: 0.0064369059 | W16: 0.006248487896 | Z16: -0.5662248153 | AB16: n/a | AC16: n/a | AF16: n/a | AG16: n/a | AJ16: 4.713480226 | AK16: 2.060570917 | AL16: 0 | AM16: 11.27714673 | AN16: 0.8345108177 | AO16: 1.947191908 | AP16: 0 | AQ16: 0 | AR16: 0 | AS16: 0 | AT16: 0 | AU16: 0 | AV16: 0 | AW16: 0 | AX16: 0 | AY16: -3.264234255 | AZ16: 5.547991043 | BA16: 4.007762825 | BB16: 0 | BC16: 11.27714673 | BD16: 17.56866634 | BE16: 2.913711631 | BF16: 0.3015346865 | BG16: 0 | BH16: 0 | BI16: 3.215246318 | BJ16: 5.547991043 | BK16: 0.579533437 | BL16: 2.913711631 | BM16: 0.6393319528 | BN16: 0 | BO16: 0 | BP16: 3.553043584 | BQ16: 4.007762825 | BR16: 0.8865403816 | BS16: 2.913711631 | BT16: 0.9408666393 | BU16: 0 | BV16: 0 | BW16: 3.854578271 | BX16: 9.555753868 | BY16: 14.62340065 | BZ16: 0.4033777265 | CA16: 9.417476248 | CB16: 6.803005072 | CC16: 0 | CD16: 13.60157439 | CE16: 29.82205571 | CF16: 2.913711631 | CG16: -3.795927441 | CH16: 0.9408666393 | CI16: 0 | CJ16: 0 | CK16: 0 | CL16: 0 | CM16: 0 | CN16: 0 | CO16: 0 | CP16: 0 | CQ16: 18.05119787 | CR16: 2.781702726 | CS16: 0 | CT16: -3.264234255 | CU16: 0.05865082907 | CV16: 17.56866634 | CW16: 0.2890439007 | CX16: 34.66839867 | CY16: 0.3942647761 | CZ16: -0.06624830339 | DA16: 0.3280164727 | DB16: 0.01971323881 | DC16: -0.003312415169 | DD16: 0.01640082364 | DF16: -0.5662248153 | DJ16: -3.795927441 | DK16: 0 | DL16: 0 | DM16: -3.795927441 | DN16: 0 | DO16: 9999 | DP16: 0 | DR16: 589.1165422 | DS16: 589.1165422
A17: Com-LightingInterior-2021P_V20-C19.xlsm | B17: All Btype_NR_LINEAR_Fixture_from_LEDTube_to_LEDPanel_CONTR | D17: No | E17: 14.93960874 | G17: 115.0628189 | I17: -1.285173082 | K17: 37.16300907 | M17: 0 | N17: -2.0694642 | O17: loadshape may vary by savings component | P17: 128.0176204 | R17: 0.02253195941 | S17: 0.01913603878 | V17: 0.02138059616 | W17: 0.01826863276 | Z17: -1.298024797 | AB17: n/a | AC17: n/a | AF17: n/a | AG17: n/a | AJ17: 12.60877813 | AK17: 5.512122733 | AL17: 0 | AM17: 27.67814099 | AN17: 2.229780544 | AO17: 5.20282127 | AP17: 0 | AQ17: 0 | AR17: 0 | AS17: 0 | AT17: 0 | AU17: 0 | AV17: 0 | AW17: 0 | AX17: 0 | AY17: -2.0694642 | AZ17: 14.83855867 | BA17: 10.714944 | BB17: 0 | BC17: 27.67814099 | BD17: 51.16217946 | BE17: 8.79200979 | BF17: 0.9803610215 | BG17: 0 | BH17: 0 | BI17: 9.772370812 | BJ17: 14.83855867 | BK17: 0.6585795177 | BL17: 8.79200979 | BM17: 2.073355584 | BN17: 0 | BO17: 0 | BP17: 10.86536537 | BQ17: 10.714944 | BR17: 1.014038466 | BS17: 8.79200979 | BT17: 3.053716606 | BU17: 0 | BV17: 0 | BW17: 11.8457264 | BX17: 25.55350267 | BY17: 12.64772607 | BZ17: 0.4635656625 | CA17: 8.341147102 | CB17: 6.023154008 | CC17: 0 | CD17: 14.39531594 | CE17: 28.75961705 | CF17: 8.79200979 | CG17: -8.631289484 | CH17: 3.053716606 | CI17: 0 | CJ17: 0 | CK17: 0 | CL17: 0 | CM17: 0 | CN17: 0 | CO17: 0 | CP17: 0 | CQ17: 45.79904185 | CR17: 7.432601814 | CS17: 0 | CT17: -2.0694642 | CU17: 3.214436912 | CV17: 51.16217946 | CW17: 0.2249358362 | CX17: 31.89491859 | CY17: 1.190563869 | CZ17: -0.1518689013 | DA17: 1.038694968 | DB17: 0.05952819347 | DC17: -0.007593445065 | DD17: 0.05193474841 | DF17: -1.298024797 | DJ17: -8.631289484 | DK17: 0 | DL17: 0 | DM17: -8.631289484 | DN17: 0 | DO17: 9999 | DP17: 0 | DR17: 1778.958995 | DS17: 1778.958995
A18: Com-LightingInterior-2021P_V20-C19.xlsm | B18: All Btype_NR_LINEAR_Fixture_from_LFTube_to_LEDPanel_CONTR | D18: No | E18: 15.66368168 | G18: 548.4879776 | I18: -6.740016869 | K18: 181.1901413 | M18: 0 | N18: -21.50797984 | O18: loadshape may vary by savings component | P18: 610.2888138 | R18: 0.1100672982 | S18: 0.08946088679 | V18: 0.1044429893 | W18: 0.08540582176 | Z18: -6.807416949 | AB18: n/a | AC18: n/a | AF18: n/a | AG18: n/a | AJ18: 61.45930189 | AK18: 26.86788614 | AL18: 0 | AM18: 128.144861 | AN18: 10.87140848 | AO18: 25.36661978 | AP18: 0 | AQ18: 0 | AR18: 0 | AS18: 0 | AT18: 0 | AU18: 0 | AV18: 0 | AW18: 0 | AX18: 0 | AY18: -21.50797984 | AZ18: 72.33071036 | BA18: 52.23450592 | BB18: 0 | BC18: 128.144861 | BD18: 231.2020974 | BE18: 41.88800309 | BF18: 4.794180152 | BG18: 0 | BH18: 0 | BI18: 46.68218324 | BJ18: 72.33071036 | BK18: 0.6453992089 | BL18: 41.88800309 | BM18: 10.13515359 | BN18: 0 | BO18: 0 | BP18: 52.02315668 | BQ18: 52.23450592 | BR18: 0.9959538387 | BS18: 41.88800309 | BT18: 14.92933374 | BU18: 0 | BV18: 0 | BW18: 56.81733683 | BX18: 124.5652163 | BY18: 12.92769566 | BZ18: 0.4561252212 | CA18: 8.528862895 | CB18: 6.159222509 | CC18: 0 | CD18: 12.57406894 | CE18: 27.26215435 | CF18: 41.88800309 | CG18: -45.19828681 | CH18: 14.92933374 | CI18: 0 | CJ18: 0 | CK18: 0 | CL18: 0 | CM18: 0 | CN18: 0 | CO18: 0 | CP18: 0 | CQ18: 216.472049 | CR18: 36.23802826 | CS18: 0 | CT18: -21.50797984 | CU18: 11.61905002 | CV18: 231.2020974 | CW18: 0.2629174811 | CX18: 30.83131259 | CY18: 5.675685968 | CZ18: -0.7964677831 | DA18: 4.879218185 | DB18: 0.2837842984 | DC18: -0.03982338915 | DD18: 0.2439609093 | DF18: -6.807416949 | DJ18: -45.19828681 | DK18: 0 | DL18: 0 | DM18: -45.19828681 | DN18: 0 | DO18: 9999 | DP18: 0 | DR18: 8480.697984 | DS18: 8480.697984
A19: Com-LightingInterior-2021P_V20-C19.xlsm | B19: All Btype_NEW_LINEAR_Fixture_from_LFTube_to_LEDPanel_CONTR | D19: No | E19: 15.25667435 | G19: 662.2820751 | I19: -6.617286086 | K19: 212.9785392 | M19: 0 | N19: -25.71551692 | O19: loadshape may vary by savings component | P19: 736.8378713 | R19: 0.1307170357 | S19: 0.1098061631 | V19: 0.1240377047 | W19: 0.1048288113 | Z19: -6.683458855 | AB19: n/a | AC19: n/a | AF19: n/a | AG19: n/a | AJ19: 72.79566255 | AK19: 31.82375187 | AL19: 0 | AM19: 155.7335969 | AN19: 12.77871235 | AO19: 29.81699549 | AP19: 0 | AQ19: 0 | AR19: 0 | AS19: 0 | AT19: 0 | AU19: 0 | AV19: 0 | AW19: 0 | AX19: 0 | AY19: -25.71551692 | AZ19: 85.5743749 | BA19: 61.64074735 | BB19: 0 | BC19: 155.7335969 | BD19: 277.2332022 | BE19: 50.58622282 | BF19: 5.668750056 | BG19: 0 | BH19: 0 | BI19: 56.25497287 | BJ19: 85.5743749 | BK19: 0.6573810552 | BL19: 50.58622282 | BM19: 11.97702003 | BN19: 0 | BO19: 0 | BP19: 62.56324285 | BQ19: 61.64074735 | BR19: 1.014965677 | BS19: 50.58622282 | BT19: 17.64577009 | BU19: 0 | BV19: 0 | BW19: 68.23199291 | BX19: 147.2151223 | BY19: 12.65418445 | BZ19: 0.4634849454 | CA19: 8.357485053 | CB19: 6.020045431 | CC19: 0 | CD19: 12.69800874 | CE19: 27.07553922 | CF19: 50.58622282 | CG19: -44.284311 | CH19: 17.64577009 | CI19: 0 | CJ19: 0 | CK19: 0 | CL19: 0 | CM19: 0 | CN19: 0 | CO19: 0 | CP19: 0 | CQ19: 260.3530113 | CR19: 42.59570784 | CS19: 0 | CT19: -25.71551692 | CU19: 23.9476819 | CV19: 277.2332022 | CW19: 0.2705604066 | CX19: 29.6771499 | CY19: 6.852592203 | CZ19: -0.781964686 | DA19: 6.070627517 | DB19: 0.3426296101 | DC19: -0.0390982343 | DD19: 0.3035313758 | DF19: -6.683458855 | DJ19: -44.284311 | DK19: 0 | DL19: 0 | DM19: -44.284311 | DN19: 0 | DO19: 9999 | DP19: 0 | DR19: 10239.24953 | DS19: 10239.24953
A20: Com-LightingInterior-2021P_V20-C19.xlsm | B20: All Btype_RETRO_LINEAR_Lamp_from_LFTube_to_LEDTube_RDX | D20: No | E20: 14.83529601 | G20: 69.8332489 | I20: -0.8453091938 | K20: 20.63923873 | M20: 0 | N20: -3.594848353 | O20: loadshape may vary by savings component | P20: 77.70185096 | R20: 0.01402723759 | S20: 0.01141138199 | V20: 0.01331046289 | W20: 0.01089412844 | Z20: -0.8537622747 | AB20: n/a | AC20: n/a | AF20: n/a | AG20: n/a | AJ20: 7.075117691 | AK20: 3.092997329 | AL20: 0 | AM20: 15.5673168 | AN20: 1.238354324 | AO20: 2.889493422 | AP20: 0 | AQ20: 0 | AR20: 0 | AS20: 0 | AT20: 0 | AU20: 0 | AV20: 0 | AW20: 0 | AX20: 0 | AY20: -3.594848353 | AZ20: 8.313472014 | BA20: 5.98249075 | BB20: 0 | BC20: 15.5673168 | BD20: 26.26843121 | BE20: 5.333074911 | BF20: 0.6105824987 | BG20: 0 | BH20: 0 | BI20: 5.943657409 | BJ20: 8.313472014 | BK20: 0.7149428541 | BL20: 5.333074911 | BM20: 1.290718627 | BN20: 0 | BO20: 0 | BP20: 6.623793538 | BQ20: 5.98249075 | BR20: 1.10719662 | BS20: 5.333074911 | BT20: 1.901301126 | BU20: 0 | BV20: 0 | BW20: 7.234376037 | BX20: 14.29596276 | BY20: 11.47908108 | BZ20: 0.5060432904 | CA20: 7.69936462 | CB20: 5.540570479 | CC20: 0 | CD20: 11.08807485 | CE20: 24.32800995 | CF20: 5.333074911 | CG20: -5.667517857 | CH20: 1.901301126 | CI20: 0 | CJ20: 0 | CK20: 0 | CL20: 0 | CM20: 0 | CN20: 0 | CO20: 0 | CP20: 0 | CQ20: 25.73543182 | CR20: 4.127847745 | CS20: 0 | CT20: -3.594848353 | CU20: 1.566858179 | CV20: 26.26843121 | CW20: 0.3047841641 | CX20: 27.81602023 | CY20: 0.722627214 | CZ20: -0.09989018614 | DA20: 0.6227370278 | DB20: 0.0361313607 | DC20: -0.004994509307 | DD20: 0.03113685139 | DF20: -0.8537622747 | DJ20: -5.667517857 | DK20: 0 | DL20: 0 | DM20: -5.667517857 | DN20: 0 | DO20: 9999 | DP20: 0 | DR20: 1079.760789 | DS20: 1079.760789
A21: Com-LightingInterior-2021P_V20-C19.xlsm | B21: All Btype_RETRO_HIGHBAY_Fixture_from_HID_to_LEDPanel | D21: No | E21: 20.94312573 | G21: 0.306041347 | I21: -0.004676628 | K21: 0.2908867132 | M21: 0 | N21: -0.2542560682 | O21: loadshape may vary by savings component | P21: 0.3406226144 | R21: 7.840489377e-05 | S21: 4.702727482e-05 | V21: 7.439877525e-05 | W21: 4.489574499e-05 | Z21: -0.004723394237 | AB21: n/a | AC21: n/a | AF21: n/a | AG21: n/a | AJ21: 0.09624886313 | AK21: 0.04207668191 | AL21: 0 | AM21: 0.1457628721 | AN21: 0.01745320279 | AO21: 0.04072413984 | AP21: 0 | AQ21: 0 | AR21: 0 | AS21: 0 | AT21: 0 | AU21: 0 | AV21: 0 | AW21: 0 | AX21: 0 | AY21: -0.2542560682 | AZ21: 0.1137020659 | BA21: 0.08280082175 | BB21: 0 | BC21: 0.1457628721 | BD21: 0.08800969159 | BE21: 0.02331884921 | BF21: 0.00335590946 | BG21: 0 | BH21: 0 | BI21: 0.02667475867 | BJ21: 0.1137020659 | BK21: 0.234602234 | BL21: 0.02331884921 | BM21: 0.007082459958 | BN21: 0 | BO21: 0 | BP21: 0.03040130917 | BQ21: 0.08280082175 | BR21: 0.3671619258 | BS21: 0.02331884921 | BT21: 0.01043836942 | BU21: 0 | BV21: 0 | BW21: 0.03375721863 | BX21: 0.1965028877 | BY21: 39.30917211 | BZ21: 0.1717899367 | CA21: 24.02142074 | CB21: 17.4930276 | CC21: 0 | CD21: -22.92096181 | CE21: 18.59348653 | CF21: 0.02331884921 | CG21: -0.03081375759 | CH21: 0.01043836942 | CI21: 0 | CJ21: 0 | CK21: 0 | CL21: 0 | CM21: 0 | CN21: 0 | CO21: 0 | CP21: 0 | CQ21: 0.2840884172 | CR21: 0.05817734263 | CS21: 0 | CT21: -0.2542560682 | CU21: 0.002943461034 | CV21: 0.08800969159 | CW21: 0.7719890088 | CX21: 22.89812047 | CY21: 0.003167790313 | CZ21: -0.0005526371258 | DA21: 0.002615153188 | DB21: 0.0001583895157 | DC21: -2.763185629e-05 | DD21: 0.0001307576594 | DF21: -0.004723394237 | DJ21: -0.03081375759 | DK21: 0 | DL21: 0 | DM21: -0.03081375759 | DN21: 0 | DO21: 9999 | DP21: 0 | DR21: 4.733361408 | DS21: 4.733361408
A22: Com-LightingInterior-2021P_V20-C19.xlsm | B22: All Btype_RETRO_HIGHBAY_Fixture_from_HID_to_LEDPanel_CONTR | D22: No | E22: 20.95736562 | G22: 1.432592458 | I22: -0.02192258828 | K22: 1.057081931 | M22: 0 | N22: -0.856441493 | O22: loadshape may vary by savings component | P22: 1.594475098 | R22: 0.0003676325702 | S22: 0.0002193976287 | V22: 0.0003488482871 | W22: 0.0002094533669 | Z22: -0.02214181396 | AB22: n/a | AC22: n/a | AF22: n/a | AG22: n/a | AJ22: 0.3497682414 | AK22: 0.1529066065 | AL22: 0 | AM22: 0.5297020848 | AN22: 0.06342491587 | AO22: 0.1479914704 | AP22: 0 | AQ22: 0 | AR22: 0 | AS22: 0 | AT22: 0 | AU22: 0 | AV22: 0 | AW22: 0 | AX22: 0 | AY22: -0.856441493 | AZ22: 0.4131931573 | BA22: 0.3008980768 | BB22: 0 | BC22: 0.5297020848 | BD22: 0.3873518259 | BE22: 0.1091504667 | BF22: 0.01573554631 | BG22: 0 | BH22: 0 | BI22: 0.124886013 | BJ22: 0.4131931573 | BK22: 0.3022460823 | BL22: 0.1091504667 | BM22: 0.03320902758 | BN22: 0 | BO22: 0 | BP22: 0.1423594943 | BQ22: 0.3008980768 | BR22: 0.4731153345 | BS22: 0.1091504667 | BT22: 0.04894457389 | BU22: 0 | BV22: 0 | BW22: 0.1580950406 | BX22: 0.7140912341 | BY22: 30.0195022 | BZ22: 0.2213933361 | CA22: 18.64829764 | CB22: 13.58017866 | CC22: 0 | CD22: -14.74645363 | CE22: 17.48202267 | CF22: 0.1091504667 | CG22: -0.144486657 | CH22: 0.04894457389 | CI22: 0 | CJ22: 0 | CK22: 0 | CL22: 0 | CM22: 0 | CN22: 0 | CO22: 0 | CP22: 0 | CQ22: 1.032376933 | CR22: 0.2114163862 | CS22: 0 | CT22: -0.856441493 | CU22: 0.01360838358 | CV22: 0.3873518259 | CW22: 0.7307866937 | CX22: 21.79404277 | CY22: 0.01482861841 | CZ22: -0.002590592233 | DA22: 0.01223802618 | DB22: 0.0007414309204 | DC22: -0.0001295296117 | DD22: 0.0006119013088 | DF22: -0.02214181396 | DJ22: -0.144486657 | DK22: 0 | DL22: 0 | DM22: -0.144486657 | DN22: 0 | DO22: 9999 | DP22: 0 | DR22: 22.15715157 | DS22: 22.15715157
A23: Com-LightingInterior-2021P_V20-C19.xlsm | B23: All Btype_NR_LINEAR_Lamp_from_LFTube_to_LEDTube_RDX | D23: No | E23: 14.83529601 | G23: 7.759249878 | I23: -0.09392324375 | K23: 1.424886156 | M23: 0 | N23: -0.3994275948 | O23: loadshape may vary by savings component | P23: 8.633538996 | R23: 0.001558581954 | S23: 0.001267931333 | V23: 0.001478940321 | W23: 0.001210458715 | Z23: -0.09486247497 | AB23: n/a | AC23: n/a | AF23: n/a | AG23: n/a | AJ23: 0.4884500532 | AK23: 0.2135335094 | AL23: 0 | AM23: 1.074732188 | AN23: 0.08549316939 | AO23: 0.1994840619 | AP23: 0 | AQ23: 0 | AR23: 0 | AS23: 0 | AT23: 0 | AU23: 0 | AV23: 0 | AW23: 0 | AX23: 0 | AY23: -0.3994275948 | AZ23: 0.5739432226 | BA23: 0.4130175713 | BB23: 0 | BC23: 1.074732188 | BD23: 1.662265387 | BE23: 0.592563879 | BF23: 0.06784249985 | BG23: 0 | BH23: 0 | BI23: 0.6604063788 | BJ23: 0.5739432226 | BK23: 1.150647578 | BL23: 0.592563879 | BM23: 0.1434131808 | BN23: 0 | BO23: 0 | BP23: 0.7359770598 | BQ23: 0.4130175713 | BR23: 1.781950965 | BS23: 0.592563879 | BT23: 0.2112556807 | BU23: 0 | BV23: 0 | BW23: 0.8038195596 | BX23: 0.9869607938 | BY23: 6.465641364 | BZ23: 0.8144392003 | CA23: 4.783919788 | CB23: 3.442575597 | CC23: 0 | CD23: 5.628785009 | CE23: 13.85528039 | CF23: 0.592563879 | CG23: -0.6297242064 | CH23: 0.2112556807 | CI23: 0 | CJ23: 0 | CK23: 0 | CL23: 0 | CM23: 0 | CN23: 0 | CO23: 0 | CP23: 0 | CQ23: 1.776715751 | CR23: 0.2849772313 | CS23: 0 | CT23: -0.3994275948 | CU23: 0.1740953533 | CV23: 1.662265387 | CW23: 0.4470682433 | CX23: 17.34329067 | CY23: 0.08029191266 | CZ23: -0.01109890957 | DA23: 0.06919300309 | DB23: 0.004014595633 | DC23: -0.0005549454786 | DD23: 0.003459650155 | DF23: -0.09486247497 | DJ23: -0.6297242064 | DK23: 0 | DL23: 0 | DM23: -0.6297242064 | DN23: 0 | DO23: 9999 | DP23: 0 | DR23: 119.973421 | DS23: 119.973421
A24: Com-LightingInterior-2021P_V20-C19.xlsm | B24: All Btype_NR_LINEAR_Fixture_from_LFTube_to_LEDPanel | D24: No | E24: 15.70796048 | G24: 138.7375092 | I24: -1.679373276 | K24: 26.20935676 | M24: 0 | N24: -7.858684941 | O24: loadshape may vary by savings component | P24: 154.3700376 | R24: 0.02786787144 | S24: 0.02267095887 | V24: 0.02644385727 | W24: 0.02164333276 | Z24: -1.696166987 | AB24: n/a | AC24: n/a | AF24: n/a | AG24: n/a | AJ24: 8.890156814 | AK24: 3.886469806 | AL24: 0 | AM24: 18.53629758 | AN24: 1.572561405 | AO24: 3.669309946 | AP24: 0 | AQ24: 0 | AR24: 0 | AS24: 0 | AT24: 0 | AU24: 0 | AV24: 0 | AW24: 0 | AX24: 0 | AY24: -7.858684941 | AZ24: 10.46271822 | BA24: 7.555779751 | BB24: 0 | BC24: 18.53629758 | BD24: 28.69611061 | BE24: 10.59520416 | BF24: 1.213042445 | BG24: 0 | BH24: 0 | BI24: 11.80824661 | BJ24: 10.46271822 | BK24: 1.128602181 | BL24: 10.59520416 | BM24: 2.564266881 | BN24: 0 | BO24: 0 | BP24: 13.15947104 | BQ24: 7.555779751 | BR24: 1.741643017 | BS24: 10.59520416 | BT24: 3.777309326 | BU24: 0 | BV24: 0 | BW24: 14.37251349 | BX24: 18.01849797 | BY24: 6.638761117 | BZ24: 0.7976532511 | CA24: 4.877365831 | CB24: 3.522249306 | CC24: 0 | CD24: 4.977542353 | CE24: 13.37715749 | CF24: 10.59520416 | CG24: -11.25964097 | CH24: 3.777309326 | CI24: 0 | CJ24: 0 | CK24: 0 | CL24: 0 | CM24: 0 | CN24: 0 | CO24: 0 | CP24: 0 | CQ24: 31.3129242 | CR24: 5.241871351 | CS24: 0 | CT24: -7.858684941 | CU24: 3.112872513 | CV24: 28.69611061 | CW24: 0.4649474101 | CX24: 16.86516777 | CY24: 1.43564135 | CZ24: -0.1984515375 | DA24: 1.237189812 | DB24: 0.07178206749 | DC24: -0.009922576876 | DD24: 0.06185949061 | DF24: -1.696166987 | DJ24: -11.25964097 | DK24: 0 | DL24: 0 | DM24: -11.25964097 | DN24: 0 | DO24: 9999 | DP24: 0 | DR24: 2145.157567 | DS24: 2145.157567
A25: Com-LightingInterior-2021P_V20-C19.xlsm | B25: All Btype_NEW_LINEAR_Fixture_from_LEDPanel_to_LEDPanel_CONTR | D25: No | E25: 15.10998381 | G25: 30.78711827 | I25: -0.3294960331 | K25: 3.405268927 | M25: 0 | N25: 0 | O25: loadshape may vary by savings component | P25: 34.2524148 | R25: 0.006029901757 | S25: 0.005087917453 | V25: 0.005721786424 | W25: 0.004857290284 | Z25: -0.3327909889 | AB25: n/a | AC25: n/a | AF25: n/a | AG25: n/a | AJ25: 1.163914489 | AK25: 0.5088232541 | AL25: 0 | AM25: 2.489991623 | AN25: 0.2043161356 | AO25: 0.4767376497 | AP25: 0 | AQ25: 0 | AR25: 0 | AS25: 0 | AT25: 0 | AU25: 0 | AV25: 0 | AW25: 0 | AX25: 0 | AY25: 0 | AZ25: 1.368230625 | BA25: 0.9855609038 | BB25: 0 | BC25: 2.489991623 | BD25: 4.843783151 | BE25: 2.351897618 | BF25: 0.2622493587 | BG25: 0 | BH25: 0 | BI25: 2.614146976 | BJ25: 1.368230625 | BK25: 1.910604052 | BL25: 2.351897618 | BM25: 0.5542258451 | BN25: 0 | BO25: 0 | BP25: 2.906123463 | BQ25: 0.9855609038 | BR25: 2.948700026 | BS25: 2.351897618 | BT25: 0.8164752038 | BU25: 0 | BV25: 0 | BW25: 3.168372822 | BX25: 2.353791529 | BY25: 3.229801684 | BZ25: 1.346071979 | CA25: 2.874563618 | CB25: 2.070599404 | CC25: 0 | CD25: 5.231310568 | CE25: 10.17647359 | CF25: 2.351897618 | CG25: -2.206316244 | CH25: 0.8164752038 | CI25: 0 | CJ25: 0 | CK25: 0 | CL25: 0 | CM25: 0 | CN25: 0 | CO25: 0 | CP25: 0 | CQ25: 4.162729366 | CR25: 0.6810537853 | CS25: 0 | CT25: 0 | CU25: 0.9620565777 | CV25: 4.843783151 | CW25: 0.4494082486 | CX25: 13.09643929 | CY25: 0.3185474576 | CZ25: -0.0389365457 | DA25: 0.2796109119 | DB25: 0.01592737288 | DC25: -0.001946827285 | DD25: 0.0139805456 | DF25: -0.3327909889 | DJ25: -2.206316244 | DK25: 0 | DL25: 0 | DM25: -2.206316244 | DN25: 0 | DO25: 9999 | DP25: 0 | DR25: 475.9785508 | DS25: 475.9785508
A26: Com-LightingInterior-2021P_V20-C19.xlsm | B26: All Btype_RETRO_OTHER_Lamp_from_CFL_to_LEDScrew | D26: No | E26: 5.455524151 | G26: 24.14056308 | I26: -0.2842632681 | K26: 11.07939333 | M26: 0 | N26: -32.27642909 | O26: loadshape may vary by savings component | P26: 26.84233084 | R26: 0.004449307806 | S26: 0.003946776578 | V26: 0.004221961128 | W26: 0.003767873023 | Z26: -0.2871058958 | AB26: n/a | AC26: n/a | AF26: n/a | AG26: n/a | AJ26: 3.82097574 | AK26: 1.670398751 | AL26: 0 | AM26: 26.81167654 | AN26: 0.6647635998 | AO26: 1.551115066 | AP26: 0 | AQ26: 0 | AR26: 0 | AS26: 0 | AT26: 0 | AU26: 0 | AV26: 0 | AW26: 0 | AX26: 0 | AY26: -32.27642909 | AZ26: 4.48573934 | BA26: 3.221513817 | BB26: 0 | BC26: 26.81167654 | BD26: 2.242500601 | BE26: 1.847182782 | BF26: 0.1959662605 | BG26: 0 | BH26: 0 | BI26: 2.043149043 | BJ26: 4.48573934 | BK26: 0.455476542 | BL26: 1.847182782 | BM26: 0.4140359343 | BN26: 0 | BO26: 0 | BP26: 2.261218716 | BQ26: 3.221513817 | BR26: 0.7019118478 | BS26: 1.847182782 | BT26: 0.6100021949 | BU26: 0 | BV26: 0 | BW26: 2.457184977 | BX26: 7.707253157 | BY26: 19.02715034 | BZ26: 0.3188146187 | CA26: 12.02590091 | CB26: 8.63661551 | CC26: 0 | CD26: -14.65055541 | CE26: 6.011961011 | CF26: 1.847182782 | CG26: -1.897830754 | CH26: 0.6100021949 | CI26: 0 | CJ26: 0 | CK26: 0 | CL26: 0 | CM26: 0 | CN26: 0 | CO26: 0 | CP26: 0 | CQ26: 32.30305103 | CR26: 2.215878666 | CS26: 0 | CT26: -32.27642909 | CU26: 0.5593542225 | CV26: 2.242500601 | CW26: 0.9537809965 | CX26: 9.464524228 | CY26: 0.2496336768 | CZ26: -0.03359138981 | DA26: 0.216042287 | DB26: 0.01248168384 | DC26: -0.001679569491 | DD26: 0.01080211435 | DF26: -0.2871058958 | DJ26: -1.897830754 | DK26: 0 | DL26: 0 | DM26: -1.897830754 | DN26: 0 | DO26: 9999 | DP26: 0 | DR26: 373.0065109 | DS26: 373.0065109
A27: Com-LightingInterior-2021P_V20-C19.xlsm | B27: All Btype_NEW_HIGHBAY_Fixture_from_LEDPanel_to_LEDPanel_CONTR | D27: No | E27: 15.49208085 | G27: 9.168437311 | I27: -0.1233150714 | K27: 0.2071075564 | M27: 0 | N27: 0 | O27: loadshape may vary by savings component | P27: 10.20254043 | R27: 0.00176447626 | S27: 0.001525664974 | V27: 0.001674311631 | W27: 0.001456509531 | Z27: -0.1245482207 | AB27: n/a | AC27: n/a | AF27: n/a | AG27: n/a | AJ27: 0.07000720488 | AK27: 0.03060473439 | AL27: 0 | AM27: 0.1457423075 | AN27: 0.01242645338 | AO27: 0.02899505789 | AP27: 0 | AQ27: 0 | AR27: 0 | AS27: 0 | AT27: 0 | AU27: 0 | AV27: 0 | AW27: 0 | AX27: 0 | AY27: 0 | AZ27: 0.08243365826 | BA27: 0.05959979228 | BB27: 0 | BC27: 0.1457423075 | BD27: 0.287775758 | BE27: 0.7007037042 | BF27: 0.07703206822 | BG27: 0 | BH27: 0 | BI27: 0.7777357724 | BJ27: 0.08243365826 | BK27: 9.434687102 | BL27: 0.7007037042 | BM27: 0.1629906136 | BN27: 0 | BO27: 0 | BP27: 0.8636943178 | BQ27: 0.05959979228 | BR27: 14.49156591 | BS27: 0.7007037042 | BT27: 0.2400226818 | BU27: 0 | BV27: 0 | BW27: 0.940726386 | BX27: 0.1420334505 | BY27: -0.6911524282 | BZ27: 6.623273478 | CA27: 0.5814335143 | CB27: 0.420378246 | CC27: 0 | CD27: 1.02797163 | CE27: 2.02978339 | CF27: 0.7007037042 | CG27: -0.826575154 | CH27: 0.2400226818 | CI27: 0 | CJ27: 0 | CK27: 0 | CL27: 0 | CM27: 0 | CN27: 0 | CO27: 0 | CP27: 0 | CQ27: 0.2463542468 | CR27: 0.04142151128 | CS27: 0 | CT27: 0 | CU27: 0.114151232 | CV27: 0.287775758 | CW27: 0.8441922341 | CX27: 6.166943774 | CY27: 0.09488362604 | CZ27: -0.01457214182 | DA27: 0.08031148422 | DB27: 0.004744181302 | DC27: -0.000728607091 | DD27: 0.004015574211 | DF27: -0.1245482207 | DJ27: -0.826575154 | DK27: 0 | DL27: 0 | DM27: -0.826575154 | DN27: 0 | DO27: 9999 | DP27: 0 | DR27: 141.7765854 | DS27: 141.7765854
A28: Com-LightingInterior-2021P_V20-C19.xlsm | B28: All Btype_RETRO_CAN_Lamp_from_CFL_to_LEDScrew | D28: No | E28: 13.34598532 | G28: 12.37722263 | I28: -0.1463465756 | K28: 1.970238695 | M28: 0 | N28: -7.538679241 | O28: loadshape may vary by savings component | P28: 13.76537861 | R28: 0.00239319524 | S28: 0.002030028491 | V28: 0.002270907381 | W28: 0.001938009739 | Z28: -0.1478100391 | AB28: n/a | AC28: n/a | AF28: n/a | AG28: n/a | AJ28: 0.6786443881 | AK28: 0.29667991 | AL28: 0 | AM28: 1.699484585 | AN28: 0.1182143217 | AO28: 0.2758334173 | AP28: 0 | AQ28: 0 | AR28: 0 | AS28: 0 | AT28: 0 | AU28: 0 | AV28: 0 | AW28: 0 | AX28: 0 | AY28: -7.538679241 | AZ28: 0.7968587098 | BA28: 0.5725133273 | BB28: 0 | BC28: 1.699484585 | BD28: -4.469822619 | BE28: 0.94616128 | BF28: 0.103678539 | BG28: 0 | BH28: 0 | BI28: 1.049839819 | BJ28: 0.7968587098 | BK28: 1.31747298 | BL28: 0.94616128 | BM28: 0.2190395035 | BN28: 0 | BO28: 0 | BP28: 1.165200784 | BQ28: 0.5725133273 | BR28: 2.035237833 | BS28: 0.94616128 | BT28: 0.3227180425 | BU28: 0 | BV28: 0 | BW28: 1.268879323 | BX28: 1.369372037 | BY28: 5.471656013 | BZ28: 0.9266140159 | CA28: 4.165786185 | CB28: 2.992962341 | CC28: 0 | CD28: -30.52590896 | CE28: -23.36716043 | CF28: 0.94616128 | CG28: -0.9781220984 | CH28: 0.3227180425 | CI28: 0 | CJ28: 0 | CK28: 0 | CL28: 0 | CM28: 0 | CN28: 0 | CO28: 0 | CP28: 0 | CQ28: 2.674808883 | CR28: 0.394047739 | CS28: 0 | CT28: -7.538679241 | CU28: 0.2907572242 | CV28: -4.469822619 | CW28: 2.176329349 | CX28: -19.94086525 | CY28: 0.128018021 | CZ28: -0.01729377457 | DA28: 0.1107242465 | DB28: 0.006400901052 | DC28: -0.0008646887287 | DD28: 0.005536212324 | DF28: -0.1478100391 | DJ28: -0.9781220984 | DK28: 0 | DL28: 0 | DM28: -0.9781220984 | DN28: 0 | DO28: 9999 | DP28: 0 | DR28: 191.2865122 | DS28: 191.2865122
A29: Com-LightingInterior-2021P_V20-C19.xlsm | B29: All Btype_NEW_CAN_Fixture_from_CFL_to_LEDPanel | D29: No | E29: 13.42392496 | G29: 39.5614997 | I29: -0.3666359696 | K29: 3.926275737 | M29: 0 | N29: -24.05189928 | O29: loadshape may vary by savings component | P29: 44.00791818 | R29: 0.00774568472 | S29: 0.006611312082 | V29: 0.007349904234 | W29: 0.006311628326 | Z29: -0.3703023236 | AB29: n/a | AC29: n/a | AF29: n/a | AG29: n/a | AJ29: 1.351715471 | AK29: 0.5909233632 | AL29: 0 | AM29: 3.380386787 | AN29: 0.2355765442 | AO29: 0.5496786032 | AP29: 0 | AQ29: 0 | AR29: 0 | AS29: 0 | AT29: 0 | AU29: 0 | AV29: 0 | AW29: 0 | AX29: 0 | AY29: -24.05189928 | AZ29: 1.587292015 | BA29: 1.140601966 | BB29: 0 | BC29: 3.380386787 | BD29: -17.94361851 | BE29: 3.022281128 | BF29: 0.3372533227 | BG29: 0 | BH29: 0 | BI29: 3.35953445 | BJ29: 1.587292015 | BK29: 2.116519467 | BL29: 3.022281128 | BM29: 0.7122566133 | BN29: 0 | BO29: 0 | BP29: 3.734537741 | BQ29: 1.140601966 | BR29: 3.274181398 | BS29: 3.022281128 | BT29: 1.049509936 | BU29: 0 | BV29: 0 | BW29: 4.071791064 | BX29: 2.727893982 | BY29: 2.744506922 | BZ29: 1.492650041 | CA29: 2.59555251 | CB29: 1.865121395 | CC29: 0 | CD29: -33.8022214 | CE29: -29.3415475 | CF29: 3.022281128 | CG29: -2.447900239 | CH29: 1.049509936 | CI29: 0 | CJ29: 0 | CK29: 0 | CL29: 0 | CM29: 0 | CN29: 0 | CO29: 0 | CP29: 0 | CQ29: 5.323025621 | CR29: 0.7852551475 | CS29: 0 | CT29: -24.05189928 | CU29: 1.623890825 | CV29: -17.94361851 | CW29: 3.286944294 | CX29: -27.05488857 | CY29: 0.4092736391 | CZ29: -0.04332537187 | DA29: 0.3659482672 | DB29: 0.02046368195 | DC29: -0.002166268593 | DD29: 0.01829741336 | DF29: -0.3703023236 | DJ29: -2.447900239 | DK29: 0 | DL29: 0 | DM29: -2.447900239 | DN29: 0 | DO29: 9999 | DP29: 0 | DR29: 611.5430179 | DS29: 611.5430179
A30: Com-LightingInterior-2021P_V20-C19.xlsm | B30: All Btype_RETRO_CAN_Lamp_from_Inc/Hal_to_LEDScrew | D30: No | E30: 12.31830056 | G30: 18.01773151 | I30: -0.2273832746 | K30: 1.038551305 | M30: 0 | N30: -11.37447998 | O30: loadshape may vary by savings component | P30: 20.03735148 | R30: 0.003178883522 | S30: 0.002989764564 | V30: 0.003016448538 | W30: 0.002854241483 | Z30: -0.2296571034 | AB30: n/a | AC30: n/a | AF30: n/a | AG30: n/a | AJ30: 0.3572631768 | AK30: 0.1561831336 | AL30: 0 | AM30: 0.9932505547 | AN30: 0.06231307832 | AO30: 0.1453971827 | AP30: 0 | AQ30: 0 | AR30: 0 | AS30: 0 | AT30: 0 | AU30: 0 | AV30: 0 | AW30: 0 | AX30: 0 | AY30: -11.37447998 | AZ30: 0.4195762551 | BA30: 0.3015803163 | BB30: 0 | BC30: 0.9932505547 | BD30: -9.660072854 | BE30: 1.378737977 | BF30: 0.1428105987 | BG30: 0 | BH30: 0 | BI30: 1.521548576 | BJ30: 0.4195762551 | BK30: 3.626393433 | BL30: 1.378737977 | BM30: 0.3019377934 | BN30: 0 | BO30: 0 | BP30: 1.680675771 | BQ30: 0.3015803163 | BR30: 5.572896107 | BS30: 1.378737977 | BT30: 0.4447483921 | BU30: 0 | BV30: 0 | BW30: 1.823486369 | BX30: 0.7211565715 | BY30: 0.9926916901 | BZ30: 2.52855821 | CA30: 1.506865183 | CB30: 1.083094844 | CC30: 0 | CD30: -37.28312312 | CE30: -34.69316309 | CF30: 1.378737977 | CG30: -1.521702828 | CH30: 0.4447483921 | CI30: 0 | CJ30: 0 | CK30: 0 | CL30: 0 | CM30: 0 | CN30: 0 | CO30: 0 | CP30: 0 | CQ30: 1.506696865 | CR30: 0.2077102611 | CS30: 0 | CT30: -11.37447998 | CU30: 0.301783542 | CV30: -9.660072854 | CW30: 4.078342992 | CX30: -30.82539145 | CY30: 0.1863473688 | CZ30: -0.0268698811 | DA30: 0.1594774877 | DB30: 0.00931736844 | DC30: -0.001343494055 | DD30: 0.007973874385 | DF30: -0.2296571034 | DJ30: -1.521702828 | DK30: 0 | DL30: 0 | DM30: -1.521702828 | DN30: 0 | DO30: 9999 | DP30: 0 | DR30: 278.4431281 | DS30: 278.4431281
A31: Com-LightingInterior-2021P_V20-C19.xlsm | B31: All Btype_RETRO_DISP_Lamp_from_Inc/Hal_to_LEDScrew | D31: No | E31: 9.256145703 | G31: 7.490286376 | I31: -0.0810945987 | K31: 0.5928489193 | M31: 0 | N31: -5.33341529 | O31: loadshape may vary by savings component | P31: 8.335202584 | R31: 0.001444921051 | S31: 0.001313207159 | V31: 0.001371084329 | W31: 0.001253680862 | Z31: -0.08190554377 | AB31: n/a | AC31: n/a | AF31: n/a | AG31: n/a | AJ31: 0.2044571639 | AK31: 0.0893816173 | AL31: 0 | AM31: 0.7853407905 | AN31: 0.03557093516 | AO31: 0.0829988487 | AP31: 0 | AQ31: 0 | AR31: 0 | AS31: 0 | AT31: 0 | AU31: 0 | AV31: 0 | AW31: 0 | AX31: 0 | AY31: -5.33341529 | AZ31: 0.2400280991 | BA31: 0.172380466 | BB31: 0 | BC31: 0.7853407905 | BD31: -4.135665934 | BE31: 0.5725640527 | BF31: 0.06393707627 | BG31: 0 | BH31: 0 | BI31: 0.636501129 | BJ31: 0.2400280991 | BK31: 2.651777569 | BL31: 0.5725640527 | BM31: 0.1352489327 | BN31: 0 | BO31: 0 | BP31: 0.7078129854 | BQ31: 0.172380466 | BR31: 4.106109014 | BS31: 0.5725640527 | BT31: 0.1991860089 | BU31: 0 | BV31: 0 | BW31: 0.7717500616 | BX31: 0.4124085651 | BY31: 1.840860157 | BZ31: 1.871324039 | CA31: 2.072286216 | CB31: 1.488249355 | CC31: 0 | CD31: -39.26586984 | CE31: -35.70533427 | CF31: 0.5725640527 | CG31: -0.5462309537 | CH31: 0.1991860089 | CI31: 0 | CJ31: 0 | CK31: 0 | CL31: 0 | CM31: 0 | CN31: 0 | CO31: 0 | CP31: 0 | CQ31: 1.079179572 | CR31: 0.1185697839 | CS31: 0 | CT31: -5.33341529 | CU31: 0.2255191079 | CV31: -4.135665934 | CW31: 3.500707731 | CX31: -32.7091165 | CY31: 0.07751738403 | CZ31: -0.009582948621 | DA31: 0.06793443541 | DB31: 0.003875869202 | DC31: -0.0004791474311 | DD31: 0.003396721771 | DF31: -0.08190554377 | DJ31: -0.5462309537 | DK31: 0 | DL31: 0 | DM31: -0.5462309537 | DN31: 0 | DO31: 9999 | DP31: 0 | DR31: 115.8276773 | DS31: 115.8276773
A32: Com-LightingInterior-2021P_V20-C19.xlsm | B32: All Btype_NR_CAN_Lamp_from_CFL_to_LEDScrew | D32: No | E32: 13.34598532 | G32: 12.37722263 | I32: -0.1463465756 | K32: 0.05770422683 | M32: 0 | N32: -7.538679241 | O32: loadshape may vary by savings component | P32: 13.76537861 | R32: 0.00239319524 | S32: 0.002030028491 | V32: 0.002270907381 | W32: 0.001938009739 | Z32: -0.1478100391 | AB32: n/a | AC32: n/a | AF32: n/a | AG32: n/a | AJ32: 0.01987609411 | AK32: 0.008689142522 | AL32: 0 | AM32: 0.0497743975 | AN32: 0.00346225361 | AO32: 0.008078591757 | AP32: 0 | AQ32: 0 | AR32: 0 | AS32: 0 | AT32: 0 | AU32: 0 | AV32: 0 | AW32: 0 | AX32: 0 | AY32: -7.538679241 | AZ32: 0.02333834772 | BA32: 0.01676773428 | BB32: 0 | BC32: 0.0497743975 | BD32: -7.448798761 | BE32: 0.94616128 | BF32: 0.103678539 | BG32: 0 | BH32: 0 | BI32: 1.049839819 | BJ32: 0.02333834772 | BK32: 44.98346806 | BL32: 0.94616128 | BM32: 0.2190395035 | BN32: 0 | BO32: 0 | BP32: 1.165200784 | BQ32: 0.01676773428 | BR32: 69.49065176 | BS32: 0.94616128 | BT32: 0.3227180425 | BU32: 0 | BV32: 0 | BW32: 1.268879323 | BX32: 0.040106082 | BY32: -1.477427537 | BZ32: 31.6380773 | CA32: 0.1220072835 | CB32: 0.08765769258 | CC32: 0 | CD32: -39.15019809 | CE32: -38.94053311 | CF32: 0.94616128 | CG32: -0.9781220984 | CH32: 0.3227180425 | CI32: 0 | CJ32: 0 | CK32: 0 | CL32: 0 | CM32: 0 | CN32: 0 | CO32: 0 | CP32: 0 | CQ32: 0.07833963413 | CR32: 0.01154084537 | CS32: 0 | CT32: -7.538679241 | CU32: 0.2907572242 | CV32: -7.448798761 | CW32: 8.246757775 | CX32: -35.51423793 | CY32: 0.128018021 | CZ32: -0.01729377457 | DA32: 0.1107242465 | DB32: 0.006400901052 | DC32: -0.0008646887287 | DD32: 0.005536212324 | DF32: -0.1478100391 | DJ32: -0.9781220984 | DK32: 0 | DL32: 0 | DM32: -0.9781220984 | DN32: 0 | DO32: 9999 | DP32: 0 | DR32: 191.2865122 | DS32: 191.2865122
A33: Com-LightingInterior-2021P_V20-C19.xlsm | B33: All Btype_NR_CAN_Lamp_from_Inc/Hal_to_LEDScrew | D33: No | E33: 12.31830056 | G33: 18.01773151 | I33: -0.2273832746 | K33: 0.2731695315 | M33: 0 | N33: -11.37447998 | O33: loadshape may vary by savings component | P33: 20.03735148 | R33: 0.003178883522 | S33: 0.002989764564 | V33: 0.003016448538 | W33: 0.002854241483 | Z33: -0.2296571034 | AB33: n/a | AC33: n/a | AF33: n/a | AG33: n/a | AJ33: 0.0939707207 | AK33: 0.04108075664 | AL33: 0 | AM33: 0.2612541021 | AN33: 0.01639017189 | AO33: 0.03824373441 | AP33: 0 | AQ33: 0 | AR33: 0 | AS33: 0 | AT33: 0 | AU33: 0 | AV33: 0 | AW33: 0 | AX33: 0 | AY33: -11.37447998 | AZ33: 0.1103608926 | BA33: 0.07932449106 | BB33: 0 | BC33: 0.2612541021 | BD33: -10.92354049 | BE33: 1.378737977 | BF33: 0.1428105987 | BG33: 0 | BH33: 0 | BI33: 1.521548576 | BJ33: 0.1103608926 | BK33: 13.78702673 | BL33: 1.378737977 | BM33: 0.3019377934 | BN33: 0 | BO33: 0 | BP33: 1.680675771 | BQ33: 0.07932449106 | BR33: 21.18735019 | BS33: 1.378737977 | BT33: 0.4447483921 | BU33: 0 | BV33: 0 | BW33: 1.823486369 | BX33: 0.1896853836 | BY33: -0.9160326928 | BZ33: 9.613214969 | CA33: 0.3963498519 | CB33: 0.2848857919 | CC33: 0 | CD33: -39.91201347 | CE33: -39.23077782 | CF33: 1.378737977 | CG33: -1.521702828 | CH33: 0.4447483921 | CI33: 0 | CJ33: 0 | CK33: 0 | CL33: 0 | CM33: 0 | CN33: 0 | CO33: 0 | CP33: 0 | CQ33: 0.3963055794 | CR33: 0.0546339063 | CS33: 0 | CT33: -11.37447998 | CU33: 0.301783542 | CV33: -10.92354049 | CW33: 6.690501497 | CX33: -35.36300618 | CY33: 0.1863473688 | CZ33: -0.0268698811 | DA33: 0.1594774877 | DB33: 0.00931736844 | DC33: -0.001343494055 | DD33: 0.007973874385 | DF33: -0.2296571034 | DJ33: -1.521702828 | DK33: 0 | DL33: 0 | DM33: -1.521702828 | DN33: 0 | DO33: 9999 | DP33: 0 | DR33: 278.4431281 | DS33: 278.4431281
A34: Com-LightingInterior-2021P_V20-C19.xlsm | B34: All Btype_NR_DISP_Lamp_from_Inc/Hal_to_LEDScrew | D34: No | E34: 9.256145703 | G34: 7.490286376 | I34: -0.0810945987 | K34: 0.1790215499 | M34: 0 | N34: -5.33341529 | O34: loadshape may vary by savings component | P34: 8.335202584 | R34: 0.001444921051 | S34: 0.001313207159 | V34: 0.001371084329 | W34: 0.001253680862 | Z34: -0.08190554377 | AB34: n/a | AC34: n/a | AF34: n/a | AG34: n/a | AJ34: 0.06173957173 | AK34: 0.02699041045 | AL34: 0 | AM34: 0.2371479832 | AN34: 0.010741293 | AO34: 0.02506301699 | AP34: 0 | AQ34: 0 | AR34: 0 | AS34: 0 | AT34: 0 | AU34: 0 | AV34: 0 | AW34: 0 | AX34: 0 | AY34: -5.33341529 | AZ34: 0.07248086473 | BA34: 0.05205342744 | BB34: 0 | BC34: 0.2371479832 | BD34: -4.971733014 | BE34: 0.5725640527 | BF34: 0.06393707627 | BG34: 0 | BH34: 0 | BI34: 0.636501129 | BJ34: 0.07248086473 | BK34: 8.781643698 | BL34: 0.5725640527 | BM34: 0.1352489327 | BN34: 0 | BO34: 0 | BP34: 0.7078129854 | BQ34: 0.05205342744 | BR34: 13.59781709 | BS34: 0.5725640527 | BT34: 0.1991860089 | BU34: 0 | BV34: 0 | BW34: 0.7717500616 | BX34: 0.1245342922 | BY34: -0.6445067236 | BZ34: 6.197088755 | CA34: 0.6257646397 | CB34: 0.4494040515 | CC34: 0 | CD34: -43.99870072 | CE34: -42.92353203 | CF34: 0.5725640527 | CG34: -0.5462309537 | CH34: 0.1991860089 | CI34: 0 | CJ34: 0 | CK34: 0 | CL34: 0 | CM34: 0 | CN34: 0 | CO34: 0 | CP34: 0 | CQ34: 0.3258779654 | CR34: 0.03580430999 | CS34: 0 | CT34: -5.33341529 | CU34: 0.2255191079 | CV34: -4.971733014 | CW34: 6.724392988 | CX34: -39.92731426 | CY34: 0.07751738403 | CZ34: -0.009582948621 | DA34: 0.06793443541 | DB34: 0.003875869202 | DC34: -0.0004791474311 | DD34: 0.003396721771 | DF34: -0.08190554377 | DJ34: -0.5462309537 | DK34: 0 | DL34: 0 | DM34: -0.5462309537 | DN34: 0 | DO34: 9999 | DP34: 0 | DR34: 115.8276773 | DS34: 115.8276773
A35: Com-LightingInterior-2021P_V20-C19.xlsm | B35: All Btype_RETRO_DISP_Lamp_from_CFL_to_LEDScrew | D35: No | E35: 8.751618736 | G35: 0.4830144381 | I35: -0.007232418809 | K35: 0.2215562231 | M35: 0 | N35: -0.7978389537 | O35: loadshape may vary by savings component | P35: 0.5375319255 | R35: 8.6296159e-05 | S35: 8.577582031e-05 | V35: 8.188625347e-05 | W35: 8.188772307e-05 | Z35: -0.007304742903 | AB35: n/a | AC35: n/a | AF35: n/a | AG35: n/a | AJ35: 0.07640860184 | AK35: 0.03340320426 | AL35: 0 | AM35: 0.3120632246 | AN35: 0.01329337339 | AO35: 0.03101787123 | AP35: 0 | AQ35: 0 | AR35: 0 | AS35: 0 | AT35: 0 | AU35: 0 | AV35: 0 | AW35: 0 | AX35: 0 | AY35: -0.7978389537 | AZ35: 0.08970197522 | BA35: 0.06442107549 | BB35: 0 | BC35: 0.3120632246 | BD35: -0.3316526784 | BE35: 0.03697179744 | BF35: 0.003996954082 | BG35: 0 | BH35: 0 | BI35: 0.04096875152 | BJ35: 0.08970197522 | BK35: 0.456720729 | BL35: 0.03697179744 | BM35: 0.008468118998 | BN35: 0 | BO35: 0 | BP35: 0.04543991644 | BQ35: 0.06442107549 | BR35: 0.7053579297 | BS35: 0.03697179744 | BT35: 0.01246507308 | BU35: 0 | BV35: 0 | BW35: 0.04943687052 | BX35: 0.1541230507 | BY35: 18.9644646 | BZ35: 0.3207623408 | CA35: 12.00885374 | CB35: 8.624372776 | CC35: 0 | CD35: -65.0332355 | CE35: -44.40000898 | CF35: 0.03697179744 | CG35: -0.04868724823 | CH35: 0.01246507308 | CI35: 0 | CJ35: 0 | CK35: 0 | CL35: 0 | CM35: 0 | CN35: 0 | CO35: 0 | CP35: 0 | CQ35: 0.4218750307 | CR35: 0.04431124462 | CS35: 0 | CT35: -0.7978389537 | CU35: 0.0007496222911 | CV35: -0.3316526784 | CW35: 1.64559991 | CX35: -39.55076456 | CY35: 0.004999046907 | CZ35: -0.0008546549196 | DA35: 0.004144391988 | DB35: 0.0002499523454 | DC35: -4.273274598e-05 | DD35: 0.0002072195994 | DF35: -0.007304742903 | DJ35: -0.04868724823 | DK35: 0 | DL35: 0 | DM35: -0.04868724823 | DN35: 0 | DO35: 9999 | DP35: 0 | DR35: 7.469653407 | DS35: 7.469653407
A36: Com-LightingInterior-2021P_V20-C19.xlsm | B36: All Btype_NR_HIGHBAY_Fixture_from_HID_to_LEDPanel_CONTR | D36: No | E36: 20.95736562 | G36: 0.3581481144 | I36: -0.00548064707 | K36: -0.06177131788 | M36: 0 | N36: -0.2141103732 | O36: loadshape may vary by savings component | P36: 0.3986187744 | R36: 9.190814255e-05 | S36: 5.484940717e-05 | V36: 8.721207176e-05 | W36: 5.236334172e-05 | Z36: -0.00553545349 | AB36: n/a | AC36: n/a | AF36: n/a | AG36: n/a | AJ36: -0.02043895046 | AK36: -0.008935203899 | AL36: 0 | AM36: -0.03095350974 | AN36: -0.003706279073 | AO36: -0.008647984503 | AP36: 0 | AQ36: 0 | AR36: 0 | AS36: 0 | AT36: 0 | AU36: 0 | AV36: 0 | AW36: 0 | AX36: 0 | AY36: -0.2141103732 | AZ36: -0.02414522953 | BA36: -0.0175831884 | BB36: 0 | BC36: -0.03095350974 | BD36: -0.2867923009 | BE36: 0.02728761668 | BF36: 0.003933886578 | BG36: 0 | BH36: 0 | BI36: 0.03122150325 | BJ36: -0.02414522953 | BK36: 9999 | BL36: 0.02728761668 | BM36: 0.008302256895 | BN36: 0 | BO36: 0 | BP36: 0.03558987357 | BQ36: -0.0175831884 | BR36: 9999 | BS36: 0.02728761668 | BT36: 0.01223614347 | BU36: 0 | BV36: 0 | BW36: 0.03952376015 | BX36: -0.04172841794 | BY36: -9.74214781 | BZ36: 9999 | CA36: -4.358904972 | CB36: -3.174268741 | CC36: 0 | CD36: -44.24104465 | CE36: -51.77421837 | CF36: 0.02728761668 | CG36: -0.03612166425 | CH36: 0.01223614347 | CI36: 0 | CJ36: 0 | CK36: 0 | CL36: 0 | CM36: 0 | CN36: 0 | CO36: 0 | CP36: 0 | CQ36: -0.06032766411 | CR36: -0.01235426358 | CS36: 0 | CT36: -0.2141103732 | CU36: 0.003402095895 | CV36: -0.2867923009 | CW36: 9.033804721 | CX36: -47.46219826 | CY36: 0.003707154602 | CZ36: -0.0006476480583 | DA36: 0.003059506544 | DB36: 0.0001853577301 | DC36: -3.238240292e-05 | DD36: 0.0001529753272 | DF36: -0.00553545349 | DJ36: -0.03612166425 | DK36: 0 | DL36: 0 | DM36: -0.03612166425 | DN36: 0 | DO36: 9999 | DP36: 0 | DR36: 5.539287892 | DS36: 5.539287892
A37: Com-LightingInterior-2021P_V20-C19.xlsm | B37: All Btype_NR_HIGHBAY_Fixture_from_HID_to_LEDPanel | D37: No | E37: 20.94312573 | G37: 0.07651033674 | I37: -0.001169157 | K37: -0.02407198129 | M37: 0 | N37: -0.06356401706 | O37: loadshape may vary by savings component | P37: 0.08515565359 | R37: 1.960122344e-05 | S37: 1.17568187e-05 | V37: 1.859969381e-05 | W37: 1.122393625e-05 | Z37: -0.001180848559 | AB37: n/a | AC37: n/a | AF37: n/a | AG37: n/a | AJ37: -0.007964959304 | AK37: -0.003482005378 | AL37: 0 | AM37: -0.01206243177 | AN37: -0.001444318877 | AO37: -0.00337007738 | AP37: 0 | AQ37: 0 | AR37: 0 | AS37: 0 | AT37: 0 | AU37: 0 | AV37: 0 | AW37: 0 | AX37: 0 | AY37: -0.06356401706 | AZ37: -0.009409278181 | BA37: -0.006852082758 | BB37: 0 | BC37: -0.01206243177 | BD37: -0.09188780977 | BE37: 0.005829712303 | BF37: 0.0008389773649 | BG37: 0 | BH37: 0 | BI37: 0.006668689668 | BJ37: -0.009409278181 | BK37: 9999 | BL37: 0.005829712303 | BM37: 0.001770614989 | BN37: 0 | BO37: 0 | BP37: 0.007600327292 | BQ37: -0.006852082758 | BR37: 9999 | BS37: 0.005829712303 | BT37: 0.002609592354 | BU37: 0 | BV37: 0 | BW37: 0.008439304657 | BX37: -0.01626136094 | BY37: -15.94718989 | BZ37: 9999 | CA37: -7.951455526 | CB37: -5.790458127 | CC37: 0 | CD37: -63.909296 | CE37: -77.65120965 | CF37: 0.005829712303 | CG37: -0.007703439399 | CH37: 0.002609592354 | CI37: 0 | CJ37: 0 | CK37: 0 | CL37: 0 | CM37: 0 | CN37: 0 | CO37: 0 | CP37: 0 | CQ37: -0.02350939645 | CR37: -0.004814396258 | CS37: 0 | CT37: -0.06356401706 | CU37: 0.0007358652586 | CV37: -0.09188780977 | CW37: 13.02367803 | CX37: -73.34657571 | CY37: 0.0007919475784 | CZ37: -0.0001381592814 | DA37: 0.0006537882969 | DB37: 3.959737892e-05 | DC37: -6.907964072e-06 | DD37: 3.268941485e-05 | DF37: -0.001180848559 | DJ37: -0.007703439399 | DK37: 0 | DL37: 0 | DM37: -0.007703439399 | DN37: 0 | DO37: 9999 | DP37: 0 | DR37: 1.183340352 | DS37: 1.183340352
A38: Com-LightingInterior-2021P_V20-C19.xlsm | B38: All Btype_NR_DISP_Lamp_from_CFL_to_LEDScrew | D38: No | E38: 8.751618736 | G38: 0.4830144381 | I38: -0.007232418809 | K38: 0.00212844126 | M38: 0 | N38: -0.7978389537 | O38: loadshape may vary by savings component | P38: 0.5375319255 | R38: 8.6296159e-05 | S38: 8.577582031e-05 | V38: 8.188625347e-05 | W38: 8.188772307e-05 | Z38: -0.007304742903 | AB38: n/a | AC38: n/a | AF38: n/a | AG38: n/a | AJ38: 0.0007340404098 | AK38: 0.0003208971392 | AL38: 0 | AM38: 0.002997921854 | AN38: 0.0001277064756 | AO38: 0.0002979817764 | AP38: 0 | AQ38: 0 | AR38: 0 | AS38: 0 | AT38: 0 | AU38: 0 | AV38: 0 | AW38: 0 | AX38: 0 | AY38: -0.7978389537 | AZ38: 0.0008617468854 | BA38: 0.0006188789156 | BB38: 0 | BC38: 0.002997921854 | BD38: -0.7933604061 | BE38: 0.03697179744 | BF38: 0.003996954082 | BG38: 0 | BH38: 0 | BI38: 0.04096875152 | BJ38: 0.0008617468854 | BK38: 47.54151389 | BL38: 0.03697179744 | BM38: 0.008468118998 | BN38: 0 | BO38: 0 | BP38: 0.04543991644 | BQ38: 0.0006188789156 | BR38: 73.42295122 | BS38: 0.03697179744 | BT38: 0.01246507308 | BU38: 0 | BV38: 0 | BW38: 0.04943687052 | BX38: 0.001480625801 | BY38: -1.4705431 | BZ38: 33.38917266 | CA38: 0.1153663816 | CB38: 0.08285242727 | CC38: 0 | CD38: -106.4093591 | CE38: -106.2111403 | CF38: 0.03697179744 | CG38: -0.04868724823 | CH38: 0.01246507308 | CI38: 0 | CJ38: 0 | CK38: 0 | CL38: 0 | CM38: 0 | CN38: 0 | CO38: 0 | CP38: 0 | CQ38: 0.004052859403 | CR38: 0.0004256882521 | CS38: 0 | CT38: -0.7978389537 | CU38: 0.0007496222911 | CV38: -0.7933604061 | CW38: 15.93648341 | CX38: -101.3618959 | CY38: 0.004999046907 | CZ38: -0.0008546549196 | DA38: 0.004144391988 | DB38: 0.0002499523454 | DC38: -4.273274598e-05 | DD38: 0.0002072195994 | DF38: -0.007304742903 | DJ38: -0.04868724823 | DK38: 0 | DL38: 0 | DM38: -0.04868724823 | DN38: 0 | DO38: 9999 | DP38: 0 | DR38: 7.469653407 | DS38: 7.469653407
A39: Com-LightingInterior-2021P_V20-C19.xlsm | B39: All Btype_NEW_OTHER_Fixture_from_CFL_to_LEDPanel | D39: No | E39: 13.14019087 | G39: 13.3248126 | I39: -0.1236809315 | K39: 3.585328427 | M39: 0 | N39: -29.58439497 | O39: loadshape may vary by savings component | P39: 14.81873464 | R39: 0.00250030666 | S39: 0.002140877481 | V39: 0.002372551411 | W39: 0.00204383386 | Z39: -0.1249177386 | AB39: n/a | AC39: n/a | AF39: n/a | AG39: n/a | AJ39: 1.233202636 | AK39: 0.5391136409 | AL39: 0 | AM39: 3.172643568 | AN39: 0.2151197056 | AO39: 0.5019459797 | AP39: 0 | AQ39: 0 | AR39: 0 | AS39: 0 | AT39: 0 | AU39: 0 | AV39: 0 | AW39: 0 | AX39: 0 | AY39: -29.58439497 | AZ39: 1.448322341 | BA39: 1.041059621 | BB39: 0 | BC39: 3.172643568 | BD39: -23.92236944 | BE39: 1.018549081 | BF39: 0.1078975392 | BG39: 0 | BH39: 0 | BI39: 1.126446621 | BJ39: 1.448322341 | BK39: 0.7777596109 | BL39: 1.018549081 | BM39: 0.2277961767 | BN39: 0 | BO39: 0 | BP39: 1.246345258 | BQ39: 1.041059621 | BR39: 1.197189127 | BS39: 1.018549081 | BT39: 0.3356937159 | BU39: 0 | BV39: 0 | BW39: 1.354242797 | BX39: 2.489381962 | BY39: 10.45864758 | BZ39: 0.5440076365 | CA39: 7.033280225 | CB39: 5.05554864 | CC39: 0 | CD39: -128.2596032 | CE39: -116.1707743 | CF39: 1.018549081 | CG39: -0.8245948258 | CH39: 0.3356937159 | CI39: 0 | CJ39: 0 | CK39: 0 | CL39: 0 | CM39: 0 | CN39: 0 | CO39: 0 | CP39: 0 | CQ39: 4.944959844 | CR39: 0.7170656853 | CS39: 0 | CT39: -29.58439497 | CU39: 0.5296479715 | CV39: -23.92236944 | CW39: 4.769608219 | CX39: -113.796594 | CY39: 0.1378142321 | CZ39: -0.01461537541 | DA39: 0.1231988567 | DB39: 0.006890711607 | DC39: -0.0007307687707 | DD39: 0.006159942836 | DF39: -0.1249177386 | DJ39: -0.8245948258 | DK39: 0 | DL39: 0 | DM39: -0.8245948258 | DN39: 0 | DO39: 9999 | DP39: 0 | DR39: 205.9241627 | DS39: 205.9241627
A40: Com-LightingInterior-2021P_V20-C19.xlsm | B40: All Btype_RETRO_OTHER_Lamp_from_Inc/Hal_to_LEDScrew | D40: No | E40: 5.288414247 | G40: 52.24913574 | I40: -0.5666989152 | K40: 3.093942435 | M40: 0 | N40: -110.5607586 | O40: loadshape may vary by savings component | P40: 58.09953483 | R40: 0.009348788282 | S40: 0.008572536723 | V40: 0.008871092522 | W40: 0.008183951102 | Z40: -0.5723658939 | AB40: n/a | AC40: n/a | AF40: n/a | AG40: n/a | AJ40: 1.06701501 | AK40: 0.4664621452 | AL40: 0 | AM40: 7.764877911 | AN40: 0.1856365461 | AO40: 0.4331519408 | AP40: 0 | AQ40: 0 | AR40: 0 | AS40: 0 | AT40: 0 | AU40: 0 | AV40: 0 | AW40: 0 | AX40: 0 | AY40: -110.5607586 | AZ40: 1.252651556 | BA40: 0.899614086 | BB40: 0 | BC40: 7.764877911 | BD40: -100.643615 | BE40: 3.998348345 | BF40: 0.4155165875 | BG40: 0 | BH40: 0 | BI40: 4.413864932 | BJ40: 1.252651556 | BK40: 3.52361749 | BL40: 3.998348345 | BM40: 0.8778911202 | BN40: 0 | BO40: 0 | BP40: 4.876239465 | BQ40: 0.899614086 | BR40: 5.420368068 | BS40: 3.998348345 | BT40: 1.293407708 | BU40: 0 | BV40: 0 | BW40: 5.291756053 | BX40: 2.152265642 | BY40: 1.063781637 | BZ40: 2.458690948 | CA40: 1.551534508 | CB40: 1.114262216 | CC40: 0 | CD40: -127.3230017 | CE40: -124.6572049 | CF40: 3.998348345 | CG40: -3.789667622 | CH40: 1.293407708 | CI40: 0 | CJ40: 0 | CK40: 0 | CL40: 0 | CM40: 0 | CN40: 0 | CO40: 0 | CP40: 0 | CQ40: 9.298355066 | CR40: 0.6187884869 | CS40: 0 | CT40: -110.5607586 | CU40: 1.50208843 | CV40: -100.643615 | CW40: 8.45218579 | CX40: -121.5653368 | CY40: 0.5403256739 | CZ40: -0.06696680959 | DA40: 0.4733588644 | DB40: 0.0270162837 | DC40: -0.00334834048 | DD40: 0.02366794322 | DF40: -0.5723658939 | DJ40: -3.789667622 | DK40: 0 | DL40: 0 | DM40: -3.789667622 | DN40: 0 | DO40: 9999 | DP40: 0 | DR40: 807.3630006 | DS40: 807.3630006
A41: Com-LightingInterior-2021P_V20-C19.xlsm | B41: All Btype_NR_OTHER_Lamp_from_CFL_to_LEDScrew | D41: No | E41: 5.455524151 | G41: 24.14056308 | I41: -0.2842632681 | K41: -5.847774384 | M41: 0 | N41: -32.27642909 | O41: loadshape may vary by savings component | P41: 26.84233084 | R41: 0.004449307806 | S41: 0.003946776578 | V41: 0.004221961128 | W41: 0.003767873023 | Z41: -0.2871058958 | AB41: n/a | AC41: n/a | AF41: n/a | AG41: n/a | AJ41: -2.016735338 | AK41: -0.8816471028 | AL41: 0 | AM41: -14.15137369 | AN41: -0.3508664631 | AO41: -0.8186884138 | AP41: 0 | AQ41: 0 | AR41: 0 | AS41: 0 | AT41: 0 | AU41: 0 | AV41: 0 | AW41: 0 | AX41: 0 | AY41: -32.27642909 | AZ41: -2.367601801 | BA41: -1.700335517 | BB41: 0 | BC41: -14.15137369 | BD41: -50.4957401 | BE41: 1.847182782 | BF41: 0.1959662605 | BG41: 0 | BH41: 0 | BI41: 2.043149043 | BJ41: -2.367601801 | BK41: 9999 | BL41: 1.847182782 | BM41: 0.4140359343 | BN41: 0 | BO41: 0 | BP41: 2.261218716 | BQ41: -1.700335517 | BR41: 9999 | BS41: 1.847182782 | BT41: 0.6100021949 | BU41: 0 | BV41: 0 | BW41: 2.457184977 | BX41: -4.067937318 | BY41: -12.54117388 | BZ41: 9999 | CA41: -6.347347116 | CB41: -4.558460689 | CC41: 0 | CD41: -124.4691484 | CE41: -135.3749563 | CF41: 1.847182782 | CG41: -1.897830754 | CH41: 0.6100021949 | CI41: 0 | CJ41: 0 | CK41: 0 | CL41: 0 | CM41: 0 | CN41: 0 | CO41: 0 | CP41: 0 | CQ41: -17.04975613 | CR41: -1.169554877 | CS41: 0 | CT41: -32.27642909 | CU41: 0.5593542225 | CV41: -50.4957401 | CW41: 27.9018163 | CX41: -131.922393 | CY41: 0.2496336768 | CZ41: -0.03359138981 | DA41: 0.216042287 | DB41: 0.01248168384 | DC41: -0.001679569491 | DD41: 0.01080211435 | DF41: -0.2871058958 | DJ41: -1.897830754 | DK41: 0 | DL41: 0 | DM41: -1.897830754 | DN41: 0 | DO41: 9999 | DP41: 0 | DR41: 373.0065109 | DS41: 373.0065109
A42: Com-LightingInterior-2021P_V20-C19.xlsm | B42: All Btype_NR_OTHER_Lamp_from_Inc/Hal_to_LEDScrew | D42: No | E42: 5.288414247 | G42: 52.24913574 | I42: -0.5666989152 | K42: -0.3980887958 | M42: 0 | N42: -110.5607586 | O42: loadshape may vary by savings component | P42: 58.09953483 | R42: 0.009348788282 | S42: 0.008572536723 | V42: 0.008871092522 | W42: 0.008183951102 | Z42: -0.5723658939 | AB42: n/a | AC42: n/a | AF42: n/a | AG42: n/a | AJ42: -0.1372897943 | AK42: -0.0600183609 | AL42: 0 | AM42: -0.9990848123 | AN42: -0.02388532775 | AO42: -0.05573243141 | AP42: 0 | AQ42: 0 | AR42: 0 | AS42: 0 | AT42: 0 | AU42: 0 | AV42: 0 | AW42: 0 | AX42: 0 | AY42: -110.5607586 | AZ42: -0.161175122 | BA42: -0.1157507923 | BB42: 0 | BC42: -0.9990848123 | BD42: -111.8367693 | BE42: 3.998348345 | BF42: 0.4155165875 | BG42: 0 | BH42: 0 | BI42: 4.413864932 | BJ42: -0.161175122 | BK42: 9999 | BL42: 3.998348345 | BM42: 0.8778911202 | BN42: 0 | BO42: 0 | BP42: 4.876239465 | BQ42: -0.1157507923 | BR42: 9999 | BS42: 3.998348345 | BT42: 1.293407708 | BU42: 0 | BV42: 0 | BW42: 5.291756053 | BX42: -0.2769259143 | BY42: -1.945015589 | BZ42: 9999 | CA42: -0.1996315436 | CB42: -0.1433689582 | CC42: 0 | CD42: -138.1780479 | CE42: -138.5210484 | CF42: 3.998348345 | CG42: -3.789667622 | CH42: 1.293407708 | CI42: 0 | CJ42: 0 | CK42: 0 | CL42: 0 | CM42: 0 | CN42: 0 | CO42: 0 | CP42: 0 | CQ42: -1.196392967 | CR42: -0.07961775915 | CS42: 0 | CT42: -110.5607586 | CU42: 1.50208843 | CV42: -111.8367693 | CW42: 30.90733464 | CX42: -135.4291803 | CY42: 0.5403256739 | CZ42: -0.06696680959 | DA42: 0.4733588644 | DB42: 0.0270162837 | DC42: -0.00334834048 | DD42: 0.02366794322 | DF42: -0.5723658939 | DJ42: -3.789667622 | DK42: 0 | DL42: 0 | DM42: -3.789667622 | DN42: 0 | DO42: 9999 | DP42: 0 | DR42: 807.3630006 | DS42: 807.3630006
A43: Com-LightingInterior-2021P_V20-C19.xlsm | B43: All Btype_NEW_DISP_Fixture_from_CFL_to_LEDPanel | D43: No | E43: 9.139693587 | G43: 5.344602091 | I43: -0.04953106896 | K43: -0.7564851925 | M43: 0 | N43: -14.3173647 | O43: loadshape may vary by savings component | P43: 5.945295636 | R43: 0.001046411361 | S43: 0.0008931621057 | V43: 0.0009929429833 | W43: 0.000852676016 | Z43: -0.05002637889 | AB43: n/a | AC43: n/a | AF43: n/a | AG43: n/a | AJ43: -0.26089078 | AK43: -0.114052447 | AL43: 0 | AM43: -1.028908167 | AN43: -0.04538911155 | AO43: -0.1059079269 | AP43: 0 | AQ43: 0 | AR43: 0 | AS43: 0 | AT43: 0 | AU43: 0 | AV43: 0 | AW43: 0 | AX43: 0 | AY43: -14.3173647 | AZ43: -0.3062798916 | BA43: -0.219960374 | BB43: 0 | BC43: -1.028908167 | BD43: -15.87251313 | BE43: 0.4082982232 | BF43: 0.04556158961 | BG43: 0 | BH43: 0 | BI43: 0.4538598128 | BJ43: -0.3062798916 | BK43: 9999 | BL43: 0.4082982232 | BM43: 0.09622305053 | BN43: 0 | BO43: 0 | BP43: 0.5045212737 | BQ43: -0.219960374 | BR43: 9999 | BS43: 0.4082982232 | BT43: 0.1417846401 | BU43: 0 | BV43: 0 | BW43: 0.5500828633 | BX43: -0.5262402656 | BY43: -8.085800308 | BZ43: 9999 | CA43: -3.707224118 | CB43: -2.662409207 | CC43: 0 | CD43: -185.7519036 | CE43: -192.1215369 | CF43: 0.4082982232 | CG43: -0.3307016376 | CH43: 0.1417846401 | CI43: 0 | CJ43: 0 | CK43: 0 | CL43: 0 | CM43: 0 | CN43: 0 | CO43: 0 | CP43: 0 | CQ43: -1.403851394 | CR43: -0.1512970385 | CS43: 0 | CT43: -14.3173647 | CU43: 0.2193812258 | CV43: -15.87251313 | CW43: 49.65985689 | CX43: -189.834878 | CY43: 0.05529124941 | CZ43: -0.00585308633 | DA43: 0.04943816309 | DB43: 0.002764562471 | DC43: -0.0002926543165 | DD43: 0.002471908154 | DF43: -0.05002637889 | DJ43: -0.3307016376 | DK43: 0 | DL43: 0 | DM43: -0.3307016376 | DN43: 0 | DO43: 9999 | DP43: 0 | DR43: 82.61704226 | DS43: 82.61704226

Sheet Lists
B1: static list | D1: static list | F1: static list | H1: static list | J1: static list | L1: static list | N1: static list | P1: static list | R1: static list | T1: dynamic list | V1: dynamic list | X1: dynamic list | Z1: dynamic list | AB1: dynamic list | AD1: dynamic list | AF1: dynamic list | AH1: dynamic list | AJ1: dynamic list | AL1: dynamic list | AN1: dynamic list | AP1: dynamic list | AR1: dynamic list | AT1: dynamic list | AV1: dynamic list | AX1: dynamic list | AZ1: dynamic list | BB1: dynamic list | BD1: dynamic list | BF1: dynamic list | BH1: dynamic list | BJ1: dynamic list | BL1: dynamic list | BN1: dynamic list | BP1: dynamic list | BR1: dynamic list | BT1: dynamic list | BV1: dynamic list | BX1: dynamic list | BZ1: dynamic list | CB1: dynamic list | CD1: dynamic list | CF1: dynamic list | CH1: dynamic list | CJ1: dynamic list | CL1: dynamic list | CN1: dynamic list | CP1: dynamic list | CR1: dynamic list | CT1: dynamic list | CV1: dynamic list | CX1: dynamic list | CZ1: dynamic list | DB1: dynamic list | DD1: dynamic list | DF1: dynamic list | DH1: dynamic list | DJ1: dynamic list | DL1: dynamic list | DN1: dynamic list | DP1: dynamic list | DR1: dynamic list | DT1: dynamic list | DV1: dynamic list | DX1: dynamic list | DZ1: dynamic list | EB1: dynamic list | ED1: dynamic list | EF1: dynamic list | EH1: dynamic list | EJ1: dynamic list | EL1: dynamic list | EN1: dynamic list | EP1: dynamic list | ER1: dynamic list | ET1: dynamic list | EV1: dynamic list | EX1: dynamic list | EZ1: dynamic list | FB1: dynamic list | FD1: dynamic list | FF1: dynamic list | FH1: dynamic list | FJ1: dynamic list | FL1: dynamic list | FN1: dynamic list | FP1: dynamic list | FR1: dynamic list | FT1: dynamic list | FV1: dynamic list | FX1: dynamic list | FZ1: dynamic list | GB1: dynamic list | GD1: dynamic list | GF1: dynamic list | GH1: dynamic list | GJ1: dynamic list | GL1: dynamic list | GN1: dynamic list | GP1: dynamic list | GR1: dynamic list | GT1: dynamic list | GV1: dynamic list | GX1: dynamic list | GZ1: dynamic list | HB1: dynamic list | HD1: dynamic list | HF1: dynamic list | HH1: dynamic list | HJ1: dynamic list | HL1: dynamic list | HN1: dynamic list | HP1: dynamic list | HR1: dynamic list | HT1: dynamic list | HV1: dynamic list | HX1: dynamic list | HZ1: dynamic list | IB1: dynamic list | ID1: dynamic list | IF1: dynamic list | IH1: dynamic list | IJ1: dynamic list | IL1: dynamic list | IN1: dynamic list | IP1: dynamic list | IR1: dynamic list | IT1: dynamic list | IV1: dynamic list | IX1: dynamic list | IZ1: dynamic list | JB1: dynamic list | JD1: dynamic list | JF1: dynamic list | JH1: dynamic list | JJ1: dynamic list | JL1: dynamic list | JN1: dynamic list | JP1: dynamic list | JR1: dynamic list | JT1: dynamic list | JV1: dynamic list | JX1: dynamic list | JZ1: dynamic list | KB1: dynamic list | KD1: dynamic list | KF1: dynamic list | KH1: dynamic list | KJ1: dynamic list | KL1: dynamic list | KN1: dynamic list | KP1: dynamic list | KR1: dynamic list | KT1: dynamic list | KV1: dynamic list | KX1: dynamic list | KZ1: dynamic list | LB1: dynamic list | LD1: dynamic list | LF1: dynamic list | LH1: dynamic list
B2: Sector List | D2: Sort Character | F2: Fuel Type | H2: On / Off | J2: ProData Sector List | L2: Yes or No | N2: Run Type | P2: Forecast Scenario | R2: Forecast Region | T2: Tab List, File 1 | V2: Tab List, File 2 | X2: Tab List, File 3 | Z2: Tab List, File 4 | AB2: Tab List, File 5 | AD2: Tab List, File 6 | AF2: Tab List, File 7 | AH2: Tab List, File 8 | AJ2: Tab List, File 9 | AL2: Tab List, File 10 | AN2: Tab List, File 11 | AP2: Tab List, File 12 | AR2: Tab List, File 13 | AT2: Tab List, File 14 | AV2: Tab List, File 15 | AX2: Tab List, File 16 | AZ2: Tab List, File 17 | BB2: Tab List, File 18 | BD2: Tab List, File 19 | BF2: Tab List, File 20 | BH2: Tab List, File 21 | BJ2: Tab List, File 22 | BL2: Tab List, File 23 | BN2: Tab List, File 24 | BP2: Tab List, File 25 | BR2: Tab List, File 26 | BT2: Tab List, File 27 | BV2: Tab List, File 28 | BX2: Tab List, File 29 | BZ2: Tab List, File 30 | CB2: Tab List, File 31 | CD2: Tab List, File 32 | CF2: Tab List, File 33 | CH2: Tab List, File 34 | CJ2: Tab List, File 35 | CL2: Tab List, File 36 | CN2: Tab List, File 37 | CP2: Tab List, File 38 | CR2: Tab List, File 39 | CT2: Tab List, File 40 | CV2: Tab List, File 41 | CX2: Tab List, File 42 | CZ2: Tab List, File 43 | DB2: Tab List, File 44 | DD2: Tab List, File 45 | DF2: Tab List, File 46 | DH2: Tab List, File 47 | DJ2: Tab List, File 48 | DL2: Tab List, File 49 | DN2: Tab List, File 50 | DP2: Tab List, File 51 | DR2: Tab List, File 52 | DT2: Tab List, File 53 | DV2: Tab List, File 54 | DX2: Tab List, File 55 | DZ2: Tab List, File 56 | EB2: Tab List, File 57 | ED2: Tab List, File 58 | EF2: Tab List, File 59 | EH2: Tab List, File 60 | EJ2: Tab List, File 61 | EL2: Tab List, File 62 | EN2: Tab List, File 63 | EP2: Tab List, File 64 | ER2: Tab List, File 65 | ET2: Tab List, File 66 | EV2: Tab List, File 67 | EX2: Tab List, File 68 | EZ2: Tab List, File 69 | FB2: Tab List, File 70 | FD2: Tab List, File 71 | FF2: Tab List, File 72 | FH2: Tab List, File 73 | FJ2: Tab List, File 74 | FL2: Tab List, File 75 | FN2: Tab List, File 76 | FP2: Tab List, File 77 | FR2: Tab List, File 78 | FT2: Tab List, File 79 | FV2: Tab List, File 80 | FX2: Tab List, File 81 | FZ2: Tab List, File 82 | GB2: Tab List, File 83 | GD2: Tab List, File 84 | GF2: Tab List, File 85 | GH2: Tab List, File 86 | GJ2: Tab List, File 87 | GL2: Tab List, File 88 | GN2: Tab List, File 89 | GP2: Tab List, File 90 | GR2: Tab List, File 91 | GT2: Tab List, File 92 | GV2: Tab List, File 93 | GX2: Tab List, File 94 | GZ2: Tab List, File 95 | HB2: Tab List, File 96 | HD2: Tab List, File 97 | HF2: Tab List, File 98 | HH2: Tab List, File 99 | HJ2: Tab List, File 100 | HL2: Tab List, File 101 | HN2: Tab List, File 102 | HP2: Tab List, File 103 | HR2: Tab List, File 104 | HT2: Tab List, File 105 | HV2: Tab List, File 106 | HX2: Tab List, File 107 | HZ2: Tab List, File 108 | IB2: Tab List, File 109 | ID2: Tab List, File 110 | IF2: Tab List, File 111 | IH2: Tab List, File 112 | IJ2: Tab List, File 113 | IL2: Tab List, File 114 | IN2: Tab List, File 115 | IP2: Tab List, File 116 | IR2: Tab List, File 117 | IT2: Tab List, File 118 | IV2: Tab List, File 119 | IX2: Tab List, File 120 | IZ2: Tab List, File 121 | JB2: Tab List, File 122 | JD2: Tab List, File 123 | JF2: Tab List, File 124 | JH2: Tab List, File 125 | JJ2: Tab List, File 126 | JL2: Tab List, File 127 | JN2: Tab List, File 128 | JP2: Tab List, File 129 | JR2: Tab List, File 130 | JT2: Tab List, File 131 | JV2: Tab List, File 132 | JX2: Tab List, File 133 | JZ2: Tab List, File 134 | KB2: Tab List, File 135 | KD2: Tab List, File 136 | KF2: Tab List, File 137 | KH2: Tab List, File 138 | KJ2: Tab List, File 139 | KL2: Tab List, File 140 | KN2: Tab List, File 141 | KP2: Tab List, File 142 | KR2: Tab List, File 143 | KT2: Tab List, File 144 | KV2: Tab List, File 145 | KX2: Tab List, File 146 | KZ2: Tab List, File 147 | LB2: Tab List, File 148 | LD2: Tab List, File 149 | LF2: Tab List, File 150 | LH2: Tab List, MC File
B3: Residential | D3: X | F3: Electric | H3: On | J3: Residential | L3: Yes | N3: ProCost Batch Run | P3: Low | R3: OR | T3: 2021P Draft - ReadMe | V3: 2021P Draft - ReadMe | X3: 2021P Draft - ReadMe | Z3: 2021P Draft - ReadMe | AB3: 2021P Draft - ReadMe | AD3: 2021P Draft - ReadMe | AF3: 2021P Draft - ReadMe | AH3: 2021P Draft - ReadMe | AJ3: 2021P Draft - ReadMe | AL3: 2021P Draft - ReadMe | AN3: 2021P Draft - ReadMe | AP3: 2021P Draft - ReadMe | AR3: 2021P Draft - ReadMe | AT3: 2021P Draft - ReadMe | AV3: 2021P Draft - ReadMe | AX3: 2021P Draft - ReadMe | AZ3: 2021P Draft - ReadMe | BB3: 2021P Draft - ReadMe | BD3: 2021P Draft - ReadMe | BF3: 2021P Draft - ReadMe | BH3: 2021P Draft - ReadMe | BJ3: 2021P Draft - ReadMe | BL3: 2021P Draft - ReadMe | BN3: 2021P Draft - ReadMe | BP3: 2021P Draft - ReadMe | BR3: 2021P Draft - ReadMe | BT3: 2021P Draft - ReadMe | BV3: 2021P Draft - ReadMe | BX3: 2021P Draft - ReadMe | BZ3: 2021P Draft - ReadMe | CB3: 2021P Draft - ReadMe | CD3: 2021P Draft - ReadMe | CF3: 2021P Draft - ReadMe | CH3: 2021P Draft - ReadMe | CJ3: 2021P Draft - ReadMe | CL3: 2021P Draft - ReadMe | CN3: 2021P Draft - ReadMe | CP3: 2021P Draft - ReadMe | CR3: 2021P Draft - ReadMe | CT3: 2021P Draft - ReadMe | CV3: 2021P Draft - ReadMe | CX3: 2021P Draft - ReadMe | CZ3: 2021P Draft - ReadMe | DB3: 2021P Draft - ReadMe | DD3: 2021P Draft - ReadMe | DF3: 2021P Draft - ReadMe | DH3: 2021P Draft - ReadMe | DJ3: 2021P Draft - ReadMe | DL3: 2021P Draft - ReadMe | DN3: 2021PSourceSummary | DP3: 2021P Draft - ReadMe | DR3: 2021P Draft - ReadMe | DT3: 2021P Draft - ReadMe | DV3: 2021P Draft - ReadMe | DX3: 2021P Draft - ReadMe | DZ3: 2021P Draft - ReadMe | EB3: 2021P Draft - ReadMe | ED3: 2021P Draft - ReadMe | EF3: 2021P Draft - ReadMe | EH3: 2021P Draft - ReadMe | EJ3: 2021P Draft - ReadMe | EL3: 2021P Draft - ReadMe | EN3: 2021P Draft - ReadMe | EP3: 2021P Draft - ReadMe | ER3: 2021P Draft - ReadMe | ET3: 2021P Draft - ReadMe | EV3: 2021P Draft - ReadMe | EX3: 2021P Draft - ReadMe | EZ3: 2021P Draft - ReadMe | FB3: 2021P Draft - ReadMe | FD3: 2021P Draft - ReadMe | FF3: 2021P Draft - ReadMe | FH3: 2021P Draft - ReadMe | FJ3: 2021P Draft - ReadMe | FL3: 2021P Draft - ReadMe | FN3: 2021P Draft - ReadMe | FP3: 2021P Draft - ReadMe | FR3: 2021P Draft - ReadMe | FT3: 2021P Draft - ReadMe | FV3: 2021P Draft - ReadMe | FX3: Notes | FZ3: 2021P Draft - ReadMe | GB3: 2021P Draft - ReadMe | GD3: 2021P Draft - ReadMe | GF3: 2021P Draft - ReadMe | GH3: 2021P Draft - ReadMe | GJ3: 2021P Draft - ReadMe | GL3: 2021P Draft - ReadMe | GN3: 2021P Draft - ReadMe | GP3: 2021P Draft - ReadMe | GR3: 2021P Draft - ReadMe | GT3: 2021P Draft - ReadMe | GV3: 2021P Draft - ReadMe | GX3: 2021P Draft - ReadMe | GZ3: 2021P Draft - ReadMe | HB3: 2021P Draft - ReadMe | HD3: 2021P Draft - ReadMe | HF3: INTRO | HH3: INTRO | LH3: Header
B4: Commercial | F4: Gas | H4: Off | J4: Commercial | L4: No | P4: Base | R4: WA | T4: 2021PSourceSummary | V4: 2021PSourceSummary | X4: 2021PSourceSumm | Z4: 2021PSourceSumm | AB4: 2021PSourceSumm | AD4: 2021PSourceSumm | AF4: 2021PSourceSumm | AH4: 2021Plan Summary | AJ4: 2021PSourceSumm | AL4: 2021PSourceSummary | AN4: 2021PSourceSumm | AP4: 2021PSourceSummary | AR4: 2021Plan Summary | AT4: 2021PSourceSummary | AV4: 2021PSourceSummary | AX4: 2021PSourceSummary | AZ4: 2021PSourceSummary | BB4: 2021PSourceSumm | BD4: 2021PSourceSummary | BF4: 2021PSourceSumm | BH4: 2021PSourceSummary | BJ4: 2021PSourceSummary | BL4: 2021PSourceSummary | BN4: 2021PSourceSumm | BP4: 2021PSourceSumm | BR4: 2021PSourceSummary | BT4: 2021PSourceSummary | BV4: 2021PSourceSummary | BX4: 2021PSourceSummary | BZ4: 2021PSourceSummary | CB4: 2021Plan Summary | CD4: 2021Plan Summary | CF4: 2021PSourceSummary | CH4: 2021PSourceSummary | CJ4: 2021PSourceSummary | CL4: 2021PSourceSummary | CN4: 2021PSourceSummary | CP4: 2021PSourceSumm | CR4: 2021PSourceSummary | CT4: 2021PSourceSummary | CV4: 2021PSourceSummary | CX4: 2021PSourceSummary | CZ4: 2021PSourceSummary | DB4: forRPM | DD4: 7P to 8P | DF4: forRPM | DH4: forRPM | DJ4: 2021PSourceSummary | DL4: 2021PSourceSummary | DN4: X-forRPM | DP4: 2021PSourceSummary | DR4: ReadMe | DT4: 2021PSourceSummary | DV4: 2021PSourceSummary | DX4: 2021PSourceSummary | DZ4: 2021PSourceSummary | EB4: 2021PSourceSummary | ED4: 2021PSourceSummary | EF4: 2021PSourceSummary | EH4: 2021PSourceSummary | EJ4: 2021PSourceSummary | EL4: 2021PSourceSummary | EN4: 2021PSourceSummary | EP4: SourceSummary | ER4: forRPM | ET4: 7P to 8P | EV4: 7P to 8P | EX4: 7P to 8P | EZ4: 7P to 8P | FB4: 7P to 8P | FD4: forRPM | FF4: 7P to 8P | FH4: forRPM | FJ4: 2021PSourceSummary | FL4: 2021PSourceSummary | FN4: 2021PSourceSummary | FP4: 2021PSourceSummary | FR4: 2021PSourceSummary | FT4: 2021PSourceSummary | FV4: 2021PSourceSummary | FX4: Summary-Res | FZ4: 2021PSourceSummary | GB4: 2021PSourceSummary | GD4: 2021PSourceSummary | GF4: 2021PSourceSummary | GH4: SourceSummary | GJ4: 2021PSourceSummary | GL4: 2021PSourceSummary | GN4: 2021PSourceSummary | GP4: 2021PSourceSummary | GR4: 2021PSourceSummary | GT4: 2021PSourceSummary | GV4: SourceSummary | GX4: forRPM | GZ4: M_Input_Out | HB4: forRPM | HD4: M_Input_Out | HF4: GLS_to_24 | HH4: GLS_to_24 | LH4: KEY
B5: Industrial | J5: Industrial | P5: High | R5: ID | T5: forRPM | V5: forRPM | X5: forRPM | Z5: forRPM | AB5: forRPM | AD5: forRPM | AF5: forRPM | AH5: forRPM | AJ5: forRPM | AL5: forRPM | AN5: forRPM | AP5: forRPM | AR5: forRPM | AT5: forRPM | AV5: forRPM | AX5: forRPM | AZ5: forRPM | BB5: forRPM | BD5: forRPM | BF5: forRPM | BH5: forRPM | BJ5: forRPM | BL5: forRPM | BN5: forRPM | BP5: forRPM | BR5: forRPM | BT5: forRPM | BV5: forRPM | BX5: forRPM | BZ5: forRPM | CB5: forRPM | CD5: forRPM | CF5: forRPM | CH5: forRPM | CJ5: forRPM | CL5: forRPM | CN5: forRPM | CP5: forRPM | CR5: forRPM | CT5: forRPM | CV5: forRPM | CX5: forRPM | CZ5: forRPM | DB5: SourceSummary | DD5: forRPM | DF5: SC-Retro | DH5: SC-Retro | DJ5: To Do 8P | DL5: X-forRPM | DN5: SC-New | DP5: forRPM | DR5: M_Input_Out | DT5: X-forRPM | DV5: X-forRPM | DX5: To Do 8P | DZ5: To Do 8P | EB5: To Do 8P | ED5: To Do 8P | EF5: forRPM | EH5: To Do 8P | EJ5: To Do 8P | EL5: forRPM | EN5: To Do 8P | EP5: forRPM | ER5: Source Summary | ET5: forRPM | EV5: forRPM | EX5: forRPM | EZ5: forRPM | FB5: forRPM | FD5: SourceSummary | FF5: forRPM | FH5: SourceSummary | FJ5: To Do 8P | FL5: forRPM | FN5: To Do 8P | FP5: forRPM | FR5: To Do 8P | FT5: ToDo | FV5: To Do 8P | FX5: 2021PSourceSummary | FZ5: forRPM | GB5: forRPM | GD5: forRPM | GF5: forRPM | GH5: 7P to 8P | GJ5: To Do 8P | GL5: forRPM | GN5: forRPM | GP5: forRPM | GR5: X-forRPM | GT5: forRPM | GV5: 7P to 8P | GX5: Source Summary | GZ5: Measure_InputOutput | HB5: Source Summary | HD5: Measure_InputOutput | HF5: GLS_to_48 | HH5: GLS_to_48 | LH5: UtilityPeakHours
B6: Agriculture | J6: Agriculture | R6: MT | T6: SC-New | V6: SC-New | X6: SC-New | Z6: SC-New | AB6: SC-New | AD6: SC-New | AF6: SC-New Fridge | AH6: SC-New | AJ6: SC-New | AL6: SC-New | AN6: SC-New | AP6: SC-New | AR6: SC-New | AT6: SC-New | AV6: SC-New | AX6: SC-New | AZ6: SC-New Desktop | BB6: SC-New | BD6: SC-New Desktop | BF6: SC-New | BH6: SC-New | BJ6: SC-New | BL6: SC-New | BN6: SC-New | BP6: SC-New | BR6: SC-New | BT6: SC-New | BV6: SC-New | BX6: SC-New | BZ6: SC-New | CB6: SC-New | CD6: SC-New | CF6: SC-New | CH6: SC-New | CJ6: SC-New | CL6: SC-New | CN6: SC-New | CP6: SC-New | CR6: SC-NR | CT6: SC-Retro | CV6: SC-Retro | CX6: SC-Retro | CZ6: SC-Retro | DB6: 7P to 8P | DD6: SourceSummary | DF6: SourceSummary | DH6: SourceSummary | DJ6: forRPM | DL6: SC-New | DN6: SC-NR | DP6: SC-NR | DR6: M_Input(Fixture) | DT6: SC-NEW | DV6: SC-NR | DX6: forRPM | DZ6: forRPM | EB6: forRPM | ED6: forRPM | EF6: SC New | EH6: forRPM | EJ6: forRPM | EL6: SC New | EN6: forRPM | EP6: LOG | ER6: 7P to 8P | ET6: SourceSummary | EV6: SourceSummary | EX6: SourceSummary | EZ6: SourceSummary | FB6: SourceSummary | FD6: SC-New | FF6: SC-NR | FH6: SC-New | FJ6: forRPM | FL6: SC New | FN6: forRPM | FP6: SC-NEW | FR6: forRPM | FT6: forRPM | FV6: Pivot | FX6: forRPM | FZ6: SC-NEW | GB6: SC New | GD6: SC New | GF6: SC-Retro | GH6: forRPM | GJ6: Pivot | GL6: SC-NR | GN6: SC-NR | GP6: SC-NR | GR6: SC-NR | GT6: SC-NR | GV6: forRPM | GX6: 7P to 8P | GZ6: CostCF | HB6: 7P to 8P | HD6: CostCF | HF6: GLS_to_PeakDemand | HH6: GLS_to_PeakDemand | LH6: UtilityPeakHours_alt
B7: Utility | J7: Melded | R7: Region | T7: SC-Retro | V7: SC-New (2) | X7: SC-NR | Z7: SC-NR | AB7: SC-New (2) | AD7: SC-NR | AF7: SC-New Freezer | AH7: M_Input_Out | AJ7: SC-NR | AL7: SC-NR | AN7: SC-NR | AP7: SC-Retro | AR7: SC-NR | AT7: SC-Retro | AV7: SC-Retro | AX7: SC-NR | AZ7: SC-New Laptop | BB7: SC-NR | BD7: SC-New Laptop | BF7: SC-NR | BH7: SC-Retro | BJ7: SC-Retro | BL7: SC-Retro | BN7: SC-New (2) | BP7: SC-New (2) | BR7: SC-Retro | BT7: SC-Retro | BV7: SC-New (2) | BX7: SC-New (2) | BZ7: SC-Retro | CB7: M_Input_Out | CD7: M_Input_Out | CF7: SC-Retro | CH7: SC-Retro | CJ7: SC-Retro | CL7: SC-Retro | CN7: SC-Retro | CP7: SC-NR | CR7: Accomplishments | CT7: M_Input_Out | CV7: SC-NR | CX7: Overlap&RampRate | CZ7: Summary_Rewind | DB7: SC-New | DD7: SC-New Glass | DF7: 7P to 8P | DH7: 7P to 8P | DJ7: SC New | DL7: SC-NR | DN7: M_Input_Out | DP7: SC-Retro | DR7: Measure Development | DT7: SC-NR | DV7: M_Input_Out | DX7: SC New | DZ7: SC New | EB7: SC New | ED7: SC New | EF7: SC Retro | EH7: SC New | EJ7: SC New | EL7: SC-NR | EN7: SC New | EP7: SC-New | ER7: Trac Results | ET7: SC-New | EV7: SC-NR Servers&PS | EX7: SC-New | EZ7: SC-NR Servers&PS | FB7: SC-NR | FD7: SC-NR | FF7: SourceSummary | FH7: SC-NR | FJ7: SC New | FL7: SC New AC | FN7: SC New | FP7: SC-NR | FR7: SC New | FT7: SC-New | FV7: forRPM | FX7: SC-Retro | FZ7: SC-NR | GB7: SC-NR | GD7: SC-NR | GF7: M_Input_Out | GH7: SC-Retro | GJ7: forRPM | GL7: SC-Retro | GN7: SC-Retro | GP7: SC-Retro | GR7: M_Input_Out | GT7: SC-Retro | GV7: SC-Retro | GX7: Trac Results | GZ7: Update Log | HB7: Trac Results | HD7: Update Log | HF7: SystemPeaks | HH7: SystemPeaks | LH7: 7P Mid
B8: Local Government | J8: Utility | T8: UnitsPerHome | V8: SC-Retro | X8: Weighting | Z8: M_Input_Out | AB8: SC-NR | AD8: EV Saturation | AF8: SC-NR Fridge | AH8: Measure_InputOutput | AJ8: HVACWeighting | AL8: Units per home | AN8: M_Input_Out | AP8: M_Input_Out | AR8: M_Input_Out | AT8: M_Input_Out | AV8: M_Input_Out | AX8: Saturations | AZ8: SC-NR Desktop | BB8: Volume | BD8: SC-NR Desktop | BF8: M_Input_Out | BH8: Segmentation | BJ8: Accomplishments | BL8: Accomplishments | BN8: SC-Retro | BP8: SC-Retro | BR8: M_Input_Out | BT8: Segmentation | BV8: SC-NR | BX8: SC-NR | BZ8: EFAF and DHP prevalence | CB8: Measure_InputOutput | CD8: Measure_InputOutput | CF8: Accomplishments | CH8: Accomplishments | CJ8: Applicability | CL8: Applicability | CN8: Applicability | CP8: Applicability | CR8: M_Input_Out | CT8: M_Input | CV8: M_Input_Out | CX8: M_Input_Out | CZ8: M_Input_Out | DB8: SC-New ComType | DD8: SC-NR Glass | DF8: M_Input_Out | DH8: M_Input_Out | DJ8: SC NR | DL8: M_Input_Out | DN8: M_Input | DP8: SC-Retro-6p | DR8: Proxy Measures | DT8: M_Input_Out | DV8: M_Input | DX8: SC NR | DZ8: SC-NR | EB8: SC NR | ED8: SC NR | EF8: M_Input_Out | EH8: SC-NR | EJ8: SC-NR | EL8: SC Retro | EN8: SC-NR | EP8: SC-NR | ER8: SC-New | ET8: SC-NR | EV8: Read Me Servers | EX8: SC-NR | EZ8: Read Me Servers | FB8: M_Input_Out | FD8: M_Input_Out | FF8: M_Input_Out | FH8: M_Input_Out | FJ8: SC NR | FL8: SC NR | FN8: SC NR | FP8: SC-Retro | FR8: SC NR-old | FT8: SC-NR | FV8: SC New | FX8: SC-NR | FZ8: M_Input_Out | GB8: M_Input_Out | GD8: SC Retro | GF8: M_Input | GH8: M_Input_Out | GJ8: SC New | GL8: SC-Retro-6p | GN8: SC-Retro-6p | GP8: SC-Retro-6p | GR8: M_Input | GT8: SC-Retro-6p | GV8: M_Input_Out | GX8: SC-New | HB8: SC-New | HF8: Time Segments | HH8: Time Segments | LH8: 7P Low
J9: Local Government | T9: M_Input_Out | V9: SC-Retro (2) | X9: M_Input_Out | Z9: Measure_InputOutput | AB9: SC-NR (2) | AD9: M_Input_Out | AF9: SC-NR Freezer | AH9: Savings | AJ9: M_Input_Out | AL9: M_Input_Out | AN9: Measure_InputOutput | AP9: Measure_InputOutput | AR9: Measure_InputOutput | AT9: Measure_InputOutput | AV9: Measure_InputOutput | AX9: M_Input_Out | AZ9: SC-NR Laptop | BB9: M_Input_Out | BD9: SC-NR Laptop | BF9: Measure_InputOutput | BH9: M_Input_Out | BJ9: Applicability | BL9: Eligibility | BN9: SC-NR | BP9: SC-NR | BR9: Measure_InputOutput | BT9: M_Input_Out | BV9: SC-NR (2) | BX9: SC-NR (2) | BZ9: M_Input_Out | CB9: Consolidated | CD9: Consolidated | CF9: Applicability | CH9: Applicability | CJ9: M_Input_Out | CL9: M_Input_Out | CN9: M_Input_Out | CP9: M_Input_Out | CR9: M_Input | CT9: Composite | CV9: M_Input | CX9: M_Input | CZ9: M_Input | DB9: SC-NR | DD9: SC-Retro SGS | DF9: M_Input(per KSF) | DH9: M_Input(per KSF) | DJ9: SC Retro | DL9: M_Input | DN9: RTF_Measures | DP9: ACHIEV | DR9: Data & Tables | DT9: M_Input | DV9: MMap (End Use) | DX9: SC Retro | DZ9: SC Retro | EB9: SC Retro | ED9: SC Retro | EF9: M_Input | EH9: SC Retro | EJ9: SC Retro | EL9: M_Input_Out | EN9: SC Retro | EP9: M_Input(Fixt wo OM) | ER9: SC-NR | ET9: SC-Retro | EV9: M_Input_Out | EX9: SC-Retro | EZ9: M_Input_Out | FB9: M_Input(Fixt) | FD9: M_Input | FF9: M_Input | FH9: M_Input | FJ9: SC Retro | FL9: SC NR AC | FN9: SC Retro | FP9: M_Input_Out | FR9: SC NR | FT9: SC-Retro | FV9: SC NR | FX9: M_Input_Out | FZ9: M_Input | GB9: M_Input | GD9: M_Input_Out | GF9: Savings and Cost | GH9: M_input | GJ9: SC NR | GL9: ACHIEV | GN9: ACHIEV | GP9: ACHIEV | GR9: MMap (End Use) | GT9: ACHIEV | GV9: M_input | GX9: SC-NR | HB9: SC-NR | HF9: GLSShapes | HH9: GLSShapes | LH9: 7P High
T10: Measure_InputOutput | V10: M_Input_Out | X10: Measure_InputOutput | Z10: Measure Dev | AB10: Ramps | AD10: Measure_InputOutput | AF10: Sales by Config | AH10: Parameters | AJ10: Measure_InputOutput | AL10: M_Input | AN10: MeasureAssembly | AP10: SavingsData&Analysis | AR10: Increment | AT10: Parameters | AV10: Applicability | AX10: Measure_InputOutput | AZ10: Sales Data | BB10: Measure_InputOutput | BD10: Sales Data | BF10: Costs | BH10: Measure_InputOutput | BJ10: M_Input_Out | BL10: M_Input_Out | BN10: Applicability | BP10: Applicability | BR10: Savings Summary | BT10: Measure_InputOutput | BV10: MF Applic | BX10: MF Applic | BZ10: Measure_InputOutput | CB10: Weights | CD10: Weights | CF10: M_Input_Out | CH10: M_Input_Out | CJ10: Measure_InputOutput | CL10: Measure_InputOutput | CN10: Measure_InputOutput | CP10: Measure_InputOutput | CR10: Raw | CT10: Sample Savings Estimate | CV10: Raw | CX10: Consolidation | CZ10: Composite_Rewind | DB10: SC-NR ComType | DD10: SC-Retro Applied Film | DF10: M_Input(Fixture wo OM) | DH10: M_Input(Fixture wo OM) | DJ10: M_Input_Out | DL10: RTF_Calculation_Methodology | DN10: Applications | DP10: M_Input_Out | DR10: Saturation Data | DT10: MMap | DV10: 1. Efficient Motor Technologies | DX10: M_Input_Out | DZ10: M_Input_Out | EB10: M_Input_Out | ED10: M_Input_Out | EF10: Measure InputOutput-New_Out | EH10: M_Input_Out | EJ10: M_Input_Out | EL10: M_Input | EN10: M_Input_Out | EP10: M_Input_Out | ER10: SC-Retro | ET10: M_Input_Out | EV10: M_Input Servers&PS | EX10: M_Input_Out | EZ10: M_Input Servers&PS | FB10: M_Input(KSF) | FD10: MMap | FF10: MMap | FH10: MMap | FJ10: M_Input_Out | FL10: SC Retro | FN10: M_Input_Out | FP10: M_Input | FR10: M_Input_Out | FT10: M_Input_Out | FV10: SC Retro | FX10: M_Input | FZ10: MMap | GB10: Measures | GD10: M_Input | GF10: Market Data | GH10: Roll Up | GJ10: SC Retro | GL10: M_Input_Out | GN10: M_Input_Out | GP10: M_Input_Out | GR10: 1. Efficient Motor Technologies | GT10: M_Input_Out | GV10: Roll Up | GX10: SC-Retro | HB10: SC-Retro | HF10: Day Counter | HH10: Day Counter | LH10: 7P Equil MP
T11: MeasureAssembly | V11: Measure_InputOutput | X11: Measure_Summarize | Z11: CEC dbase | AB11: M_Input_Out | AD11: >>> UES >>> | AF11: M_Input_Out | AH11: Weights | AJ11: RegionalCollapse | AL11: RBSA Appliance_Computer | AN11: Eff Dist | AP11: CostData&Analysis | AR11: RawInput | AT11: Lookups for MeasureAssembly | AV11: SavingsData&Analysis | AX11: Definitions | AZ11: Units per home | BB11: MarketInfo | BD11: Units per home | BF11: Savings | BH11: FMY adjustment | BJ11: Measure_InputOutput | BL11: Measure_InputOutput | BN11: M_Input_Out | BP11: M_Input_Out | BR11: Lighting | BT11: SavingsData&Analysis | BV11: M_Input_Out | BX11: M_Input_Out | BZ11: FMY adjustment | CB11: Savings | CD11: Savings | CF11: Measure_InputOutput | CH11: Measure_InputOutput | CJ11: Consolidated | CL11: SavingsData&Analysis | CN11: SavingsData&Analysis | CP11: CostData&Analysis | CR11: MarketData | CT11: SavingsData&Analysis | CV11: ECM Estimated Cost & Savings | CX11: SavingsData&Analysis_IrrHW | CZ11: Composite_AgPump | DB11: M_Input_Out | DD11: M_Input_Out SGS | DF11: M_Input(Fixture) | DH11: M_Input(Fixture) | DJ11: M_Input | DL11: Lifetime | DN11: SavingsCalculations | DP11: M_Input | DT11: Lifetime | DV11: 2. Motor Efficiency Standards | DX11: M_Input | DZ11: M_Input | EB11: M_Input | ED11: M_Input | EF11: Measure InputOutput-New | EH11: M_Input | EJ11: M_Input | EL11: Measure InputOutput-New_Out | EN11: M_Input | EP11: M_Input(Fixture) | ER11: Workbook Guide | ET11: M_Input | EV11: Servers NR Summary | EX11: M_Input | EZ11: Servers NR Summary | FB11: Measure Assembly | FD11: Sources | FF11: Savings | FH11: Sources | FJ11: M_Input | FL11: M_Input_Out | FN11: M_Input | FP11: Calculation_Methodology | FR11: M_Input | FT11: M_Input | FV11: M_Input_Out | FX11: Measure Build | FZ11: Lifetime | GB11: Shipments | GD11: Savings, Cost & Weightings | GF11: RTF Analysis | GH11: Input Data | GJ11: M_Input_Out | GL11: M_Input | GN11: M_Input | GP11: M_Input | GR11: 2. Motor Efficiency Standards | GT11: M_Input | GV11: Input Data | GX11: Workbook Guide | HB11: Workbook Guide | HF11: Loadshapes | HH11: Loadshapes | LH11: 7P Gas
T12: RES Studies | V12: MeasureAssembly | X12: Measure_InputOutput_2018_RTF | Z12: CEE Qualifying Dishwashers | AB12: Measure_InputOutput | AD12: Savings Summary | AF12: Measure_InputOutput | AH12: Cost | AJ12: HZWeights | AL12: RBSA Alt Weights | AN12: Weights | AP12: WasteWater System Savings | AR12: Residential UEC Analysis | AT12: MeasureAssembly | AV12: Adjustment Factor | AX12: SavingsData&Analysis | AZ12: M_Input_Out | BB12: Cost | BD12: M_Input_Out | BF12: Consumption Info | BH12: RawMeasureIn | BJ12: RawRTF | BL12: SavingsData&Analysis | BN12: Measure_InputOutput | BP12: Measure_InputOutput | BR12: Cost&EUL | BT12: CostData&Analysis | BV12: M_Input | BX12: M_Input | BZ12: SupplementFuelImpact | CB12: Cost | CD12: Cost | CF12: RawRTF | CH12: RawRTF | CJ12: Weighting | CL12: SEEMandRBSA_SFsummary | CN12: SEEMandRBSA_SFsummary | CP12: Homes by CZ | CR12: LEDMarketShareData | CT12: SavingsData&Analysis_Circ | CV12: Input Assumptions | CX12: SavingsData&Analysis_Conversion | CZ12: SavingsData&Analysis_GMR | DB12: M_Input | DD12: Combined SGS | DF12: Measure Development | DH12: Measure Development | DJ12: Measure Data | DL12: Applicability | DN12: Trim_EnergySavings | DP12: Pivot End Use | DT12: Rotary_EnergySavings | DV12: 3. Equipment by End Use | DX12: Measure InputOutput-New_Out | DZ12: Measure InputOutput-New_Out | EB12: Measure InputOutput-New_Out | ED12: Measure_InputOutput | EF12: MMap | EH12: Measure InputOutput-New_Out | EJ12: Measure InputOutput-New_Out | EL12: Measure InputOutput-New | EN12: Shapes | EP12: M_Input | ER12: M_Input(Fixture wo OM) | ET12: M_Input (WT) | EV12: Servers NC Summary | EX12: M_Input (WT) | EZ12: Servers NC Summary | FB12: Fixt Ref Specs | FD12: Back of Envelope | FF12: Cost | FH12: Back of Envelope | FJ12: Measure Data | FL12: M_Input | FN12: Measure Data | FP12: Lifetime | FR12: Measure Data | FT12: MMap | FV12: M_Input | FX12: MeasureTable | FZ12: Rotary_Energy Savings | GB12: Summary | GD12: Regional Counts Based on CBSA | GH12: System Analysis | GJ12: M_Input | GL12: Pivot End Use | GN12: Pivot End Use | GP12: Pivot End Use | GR12: 3. Equipment by End Use | GT12: Pivot End Use | GV12: System Analysis | GX12: M_Input(Fixture wo OM) | HB12: M_Input(Fixture wo OM) | LH12: 7P GasLow
T13: RES Costs | V13: UnitEnergyConsumption | X13: SavingsData&Analysis_2018 | Z13: Cost Model | AB13: InputOutput | AD13: Measure UES Analysis | AF13: MeasureAssembly | AH13: NRC Ratings | AJ13: Consolidated | AL13: Analysis | AN13: CostSavingsInfo | AP13: Parameters | AR13: UEC Weights | AT13: CostData&Analysis | AV13: BaselineAnalysis | AX13: Pump Characteristics | AZ13: M_Input | BB13: Update Log | BD13: M_Input | BF13: Update Log | BH13: Weighting | BJ13: SavingsData&Analysis | BL13: PSE Duct Ninja Study | BN13: Existing Homes --> | BP13: Existing Homes --> | BR13: todo | BT13: update log | BV13: Lifetime | BX13: Lifetime | BZ13: CostData&Analysis | CB13: RCP data | CD13: RCP data | CF13: SavingsData&Analysis | CH13: SavingsData&Analysis | CJ13: RawRTF | CL13: SEEMandRBSA_MHsummary | CN13: SEEMandRBSA_MHsummary | CP13: SavingsData&Analysis | CR13: MeasureApplicationBuild-Up | CT13: CostData&Analysis | CV13: Accomplishments | CX13: SavingsMethodology | CZ13: SavingsData&Analysis_Pump | DB13: Measure Assembly | DD13: M_Input_Out Film | DF13: Base and EE Specs | DH13: Base and EE Specs | DJ13: MMap | DL13: RTF_Measures | DN13: Lifetime | DP13: Names | DT13: Rotary_CS->VS | DV13: 4. End Use Energy Consumption | DX13: Measure InputOutput-New | DZ13: Measure InputOutput-New | EB13: Measure InputOutput-New | ED13: Measure InputOutput-New_Out | EF13: EUI Data | EH13: Measure InputOutput-New | EJ13: Measure InputOutput-New | EL13: MMap | EN13: Market Data | EP13: M_Weight | ER13: M_Input(Fixture) | ET13: M_Input(Fixture) | EV13: PSU NR Summary | EX13: M_Input(Fixture) | EZ13: PSU NR Summary | FB13: Sources | FD13: Stock | FF13: Sources | FH13: Stock | FJ13: MMap | FL13: Measure Data | FN13: MMap | FP13: Average Pump Size | FR13: MMap | FT13: Applications | FV13: Measure Input | FX13: Measure_InputOutput-Res | FZ13: Rotary_CS->VS | GB13: Costs | GD13: Raw CBSA Data | GH13: 2018 AMI & Substation Data | GJ13: Measure Input | GL13: Names | GN13: Names | GP13: Names | GR13: 4. End Use Energy Consumption | GT13: Names | GV13: 2018 AMI & Substation Data | GX13: M_Input(Fixture) | HB13: M_Input(Fixture) | LH13: 7P GasHigh
T14: RES HVAC Interaction | V14: Parameters | X14: Parameters | Z14: Standards | AB14: SavingsData_collapse | AD14: Workplace vs Home Charging | AF14: Summary-Savings Cost Lifetime | AH14: RBSA_SiteDetail | AJ14: Measure_InputOutput_RTF | AL14: ENERGY STAR Data Set | AN14: Update Log | AP14: Log | AR14: UECs | AV14: CECApplianceDatabase | AX14: Hourly water usage | AZ14: Summary | BD14: Summary | BH14: ProCostInputBuildUp | BJ14: CostData&Analysis | BL14: RBSA II Electric Heat Data | BN14: InputOutput | BP14: InputOutput | BV14: MMap | BX14: MMap | BZ14: SavingsSummary | CB14: UpdateLog | CD14: UpdateLog | CF14: CostData&Analysis | CH14: CostData&Analysis | CJ14: SavingsData&Analysis | CL14: MeasureLife | CN14: MeasureLife | CP14: MarketData | CR14: CompiledProductData | CT14: Market Data | CV14: Herd Size | CX14: Assumptions | CZ14: CostData&Analysis | DB14: RegionalCollapse_Tier3 | DD14: M_Input_Out | DF14: DLC QPL 2019 | DH14: DLC QPL 2019 | DJ14: Savings and Cost Matrix | DL14: IND_Calculations | DN14: Savings & Cost | DT14: Rotary_Cost | DV14: 5. Efficiency Savings | DX14: MMap | DZ14: Measure Weightings | EB14: MMap | ED14: Measure InputOutput-New | EF14: Cost | EH14: CBSA Data | EJ14: CBSA Data | EL14: CBSA Data | EN14: Measure_InputOutput_Com | EP14: Savings and Cost Analysis | ER14: M_Input(per KSF)_Out | ET14: M_Input (WT)(wo OM) | EV14: PSU NC Summary | EX14: M_Input (WT)(wo OM) | EZ14: PSU NC Summary | FB14: CBSA | FD14: CBSA2014 | FF14: ES 2007-2018 | FH14: CBSA2014 | FJ14: Savings and Cost Matrix | FL14: Savings and Cost Matrix | FN14: Savings and Cost Matrix | FP14: Applicability | FR14: Savings and Cost Matrix | FT14: RTF_Measures | FV14: Measure List | FX14: Measure_InputOutput-Comm | FZ14: Rotary_Cost | GB14: Desktop HOU | GD14: HVAC Interaction Factors | GH14: HeatingCooling Zone | GJ14: Measure List | GR14: 5. Efficiency Savings | GV14: HeatingCooling Zone | GX14: M_Input(per KSF)_Out | HB14: M_Input(per KSF)_Out | LH14: CO2 lbs per kWh
T15: RBSA II Data | V15: WaterUseModel | X15: StandardAndEESpecs | Z15: RBSA II sat | AB15: SavingsData&Analysis | AD15: ESTAR EVSE QPL | AF15: Federal Standards | AH15: RBSA_Demographics | AJ15: CostData&Analysis | AL15: Specification Tables | AR15: UESs | AV15: TMY3_Summary | AX15: CostData&Analysis | AZ15: Costs | BD15: Costs | BH15: CostData&Analysis | BJ15: EUL | BL15: RBSA II Gas Heat Data | BN15: FMY adjustment | BP15: FMY adjustment | BV15: BuildingType | BX15: BuildingType | BZ15: SavingsGraphics | CF15: Lifetime | CH15: Lifetime | CJ15: Loadshapes | CL15: SummaryOfStudies | CN15: PNNL Summary | CP15: Detailed Data | CR15: RawProductData | CT15: TMY Data | CV15: State Dairy Production Data | CX15: Inputs | CZ15: RegionalPotential_GRewind | DB15: HZWeights | DD15: Combined Film | DF15: CLTC Studies | DH15: CLTC Studies | DJ15: Energy Plus Resutls | DL15: MUN_Calculations | DN15: ReferenceTables | DT15: Applicability | DV15: 6. Variable Speed Savings | DX15: Measure setup | DZ15: CBSA Data | EB15: Measure setup | ED15: MMap | EF15: Market Data | EH15: MMap | EJ15: MMap | EL15: RTFMeasure_InputOutput | EN15: Measure_InputOutput_Res | EP15: Product Specs | ER15: M_Input(per KSF) | ET15: MMap | EV15: Supply Curve Servers Analysis | EX15: MMap | EZ15: Supply Curve Servers Analysis | FB15: Back of Envelope | FD15: LOG | FF15: ESTAR ASAP | FH15: LOG | FJ15: Life | FL15: EnergyPlus Data | FN15: Energy Plus Data | FP15: RTF_Measures | FR15: Life | FT15: Calculations | FV15: Flow Chart | FX15: Summary-Comm | FZ15: Applicability | GB15: Laptop HOU | GH15: 2018 Sales | GJ15: Flow Chart | GR15: 6. Variable Speed Savings | GV15: 2018 Sales | GX15: M_Input(per KSF) | HB15: M_Input(per KSF) | LH15: CO2 lbs per therm
T16: RES EUL | V16: FlowRates | X16: EnergyDisaggregationMethod | Z16: RBSA alt weights | AB16: AnnualConsumption | AD16: EPA Charger Efficiency | AF16: EnergyStar Criteria | AH16: RBSA_WaterHeater | AJ16: Program Cost Data | AL16: Residential HOU | AR16: MeasureAssembly_UESs | AV16: Corvallis_Bin | AX16: EUL | AZ16: Storage Costs | BD16: Storage Costs | BH16: Cooling Savings | BJ16: update log | BL16: update log | BN16: SF Conversion_EFAFwCAC | BP16: SF Conversion_EFAFwCAC | BV16: ECM_Savings | BX16: ECM_Savings | BZ16: BPA2012 | CF16: update log | CH16: update log | CJ16: CostData&Analysis | CL16: CostData&Analysis | CN16: CostData&Analysis | CP16: ENERGY STAR Spec | CR16: Assumptions | CT16: Representative CZ | CV16: Milking Cows by State | CX16: Parameters | CZ16: Ag Survey | DB16: Measure_InputOutput_RTF | DD16: M_Input_Out Triple | DF16: Shape | DH16: Shape | DJ16: Life | DL16: Trim_SystemUpgrade_Savings | DN16: Shipments | DT16: Rotary_Shipments | DV16: 7. Total Savings | DX16: Savings Calculation | DZ16: MMap | EB16: Savings Calculation | ED16: MMap2 | EF16: Savings Data | EH16: RTF_InputOutput_2018 | EJ16: Plan Measures | EL16: COM Studies | EN16: Final Savings Estimate Summary | EP16: Reference Fixtures | ER16: M_Input_Out | ET16: Luminaires 8P | EV16: Supply Curve PSU Analysis | EX16: Luminaires 8P | EZ16: Supply Curve PSU Analysis | FF16: Notes | FJ16: 7P Savings & Cost | FL16: Savings and Cost Data | FN16: CBSA Data | FP16: Regional Scaling | FR16: APPLICABILITY | FT16: Trim_EnergySavings | FV16: CBSA Data | FX16: RCP Data | FZ16: Rotary_Shipments | GB16: Code Comparison | GH16: 2012 Sales | GJ16: CBSA Data | GR16: 7. Total Savings | GV16: 2012 Sales | GX16: M_Input_Out | HB16: M_Input_Out | LH16: Dollars per ton CO2
V17: SBWstudies | X17: NEEA Washer Lab Tests | Z17: Update Log | AB17: Current Practice | AD17: >>> Annual VMT >>> | AF17: CEE Tiers | AH17: RBSA_Shower | AJ17: Final Savings Rollup | AL17: Shipment Data | AR17: Flow rate vs pressure | AV17: Seattle_Bin | AX17: RBSA Well Pumps | AZ17: Residential Desktop HOU | BD17: Residential Desktop HOU | BH17: HeatingSavingsReportSummary | BN17: SF Conversion_EFAFwoCAC | BP17: SF Conversion_EFAFwoCAC | BV17: Shipments | BX17: Shipments | BZ17: ETO 2018 | CJ17: Lifetime | CL17: todo | CN17: todo | CP17: Update Log | CR17: RTFUESSummary | CT17: CBH Baseline Data | CV17: NYSERDA - EUI by Equip Type | CX17: Acres | CZ17: Parameters_GMR | DB17: ComHPWH | DD17: Combined New | DF17: Lists&Tables | DH17: Lists&Tables | DJ17: Standards Data | DL17: IND_Shipments | DN17: Cost_Methodology | DT17: Reciprocating_EnergySavings | DV17: 8. Installed Stock Baseline | DX17: Cadmus 10APR2020 Additions --> | DZ17: Standards | EB17: Cadmus 10APR2020 Additions --> | ED17: Pivot Meas | EF17: To Do 8P | EH17: LookupTable | EJ17: Measure_InputOutput | EL17: COM TRC | EN17: SavingsData&Analysis | EP17: Watt Allocation 2019 | ER17: M_Input(per KSF Btype) | ET17: DLC QPL | EV17: CBSA_Servers | EX17: DLC QPL | EZ17: CBSA_Servers | FF17: EnergyStarProductList | FJ17: Standards Data | FL17: Life | FN17: Life | FP17: Savings & Cost | FR17: CBSA DATA | FT17: Lifetime | FV17: Applicability Data | FX17: Comm-RegionalPotential | FZ17: Regional Scaling | GB17: Washington State | GH17: 2005 Sales | GJ17: Applicability Data | GR17: 8. Installed Stock Baseline | GV17: 2005 Sales | GX17: M_Input(per KSF Btype) | HB17: M_Input(per KSF Btype) | LH17: GLSShapes
V18: MeteredResults | X18: MarketData_raw | AB18: Cost | AD18: 2017 NHTS Summary | AF18: RTF Measure Data Compilation | AH18: RBSA_ALT_svy_wt | AJ18: SavingsData&Analysis | AL18: ENERGY STAR Emails | AR18: Flow rate vs duration | AV18: Boise_Bin | AX18: Alt_weights | AZ18: Residential Laptop HOU | BD18: Residential Laptop HOU | BH18: HeatingSavingsbyReport | BN18: SF Upgrade_8.8 to 9.5 HSPF | BP18: SF Upgrade_8.8 to 9.5 HSPF | BV18: Controls_Savings | BX18: Controls_Savings | BZ18: BPA 2018 | CJ18: update log | CR18: SubjectMatterExpertsInterviewed | CT18: NQ | CV18: NYSERDA - EUI by End Use | CX18: IrrWaterMngmtSurvey | CZ18: W vs E | DB18: Update Tracker | DD18: Measure Assembly | DF18: Park Garage Data 2014 | DH18: Park Garage Data 2014 | DJ18: Cost Data | DL18: MUN_Shipments | DN18: Cost_CS_VS | DT18: Reciprocating_Shipments | DV18: 9. Cost | DX18: Chiller Saturation Updated | DZ18: RTF_InputOutput_2018 | EB18: Chiller Saturation Updated | ED18: RTF Data | EF18: Measure Life | EH18: Results | EJ18: LookupTable | EL18: COM Savings | EN18: CostData&Analysis | EP18: Watt Allocation (2014) | ER18: Model Output Check | ET18: Stock | EV18: CBSA_Office&Retail_Match | EX18: Stock | EZ18: CBSA_Office&Retail_Match | FF18: ES Pivot | FJ18: Applicability | FL18: Standards Data | FN18: Standards Data | FP18: NR_HVACCalculations | FR18: NEEA Data | FT18: Cost_CS_VS | FV18: Display Case Thermal Load | FX18: Comm-Usage | FZ18: Reciprocating_EnergySavings | GB18: ESTAR v8.0 | GH18: 7P Data | GJ18: Display Case Thermal Load | GR18: 9. Cost | GV18: 7P Data | GX18: Model Output Check | HB18: Model Output Check | LH18: Calendars
X19: MarketData | AB19: Performance Metrics | AD19: VMT by State | AF19: RTF Compilation by Class (2018) | AH19: ChangeLog | AJ19: Inputs&Assumptions | AL19: Read Me | AR19: RetailMarketMix | AV19: TMY3_Temps_in_C | AX19: Info | AZ19: Spec Comparison | BD19: Spec Comparison | BH19: ScreenedHeatingSavings_Summary | BN19: SF Upgrade_8.8 to VCHP | BP19: SF Upgrade_8.8 to VCHP | BV19: CostCalculation | BX19: CostCalculation | BZ19: Tacoma 2018 | CR19: GDP Deflator | CT19: BL Size1 Regressions | CV19: CA EUIs and ECM Savings Est | CX19: Costs | CZ19: OriginalMotorEfficiency | DD19: Measure Assembly (Triple) | DF19: Parking garage 2019 CBSA | DH19: Parking garage 2019 CBSA | DJ19: Capacity Assumptions | DL19: IND_Regional Scaling | DN19: Regional Scaling | DT19: Reciprocating_Costs | DV19: 10. Lifetime | DX19: Baseline Chillers | DZ19: Griddle Input | EB19: Cooling EUI | ED19: CBSA | EF19: ETO Data | EH19: RegionalPotential | EJ19: Presentation Graphs | EL19: COM HVAC Interaction | EN19: Measure InputOutput-New_Out | EP19: 2021 Sales Pen | ER19: Model Input Summary | ET19: Sources OM | EV19: Active Calculations_SERT | EX19: Sources OM | EZ19: Active Calculations_SERT | FF19: U.S. and State totals | FJ19: EnergyPlus Data | FL19: Capacity Assumptions | FN19: Cost Data | FP19: NEW_HVACCalculations | FR19: GDP Deflator | FT19: Shipments | FV19: Walk In Thermal Load | FX19: Comm-Fitness Centers Survey | FZ19: Reciprocating_Shipments | GB19: ESTAR v7.1 | GH19: 7P Source Data | GJ19: Walk In Thermal Load | GR19: 10. Lifetime | GV19: 7P Source Data | GX19: Model Input Summary | HB19: Model Input Summary | LH19: SysLoad
X20: CategoryUECs | AB20: Parameters | AD20: VMT by 2010 Census Division | AF20: RTF Compilation by Class & Year | AJ20: Market Data from NEEA | AR20: RBSA_SiteDetail | AV20: EUL | AX20: ToDo8P | AZ20: Washington State Code | BD20: Washington State Code | BH20: ScreenedHeatingSavings_2018BPA | BN20: MH Conversion_EFAFwCAC | BP20: MH Conversion_EFAFwCAC | BV20: HH_Distribution | BX20: HH_Distribution | BZ20: Optimized Controls --> | CR20: UpdateLog | CT20: BL Size2 Var | CV20: GDP Deflator | CX20: Plan Emails-Excerpts | CZ20: MarketData | DD20: Lists & Tables | DJ20: GDP Deflator | DL20: IND_Regional Scaling2 | DN20: Regional Scaling2 | DT20: Industrial Scaling | DV20: Detail from 8P Tool | DX20: Cooling EUI | DZ20: GriddleSavings | EB20: Baseline Chillers | ED20: Achievements | EF20: RCP Data | EH20: Parameters | EJ20: Final UECs, UESs, Costs, TRC | EL20: COM EUL | EN20: Measure InputOutput-New | EP20: Sales Data | ER20: Proxy Measures | ET20: Pricing | EV20: SERT-Data | EX20: Pricing | EZ20: SERT-Data | FJ20: Cost Research | FL20: GDP Deflator | FN20: Capacity Assumptions | FP20: HVACPump_Shipments | FR20: Standards Data | FT20: Savings & Cost | FV20: Compressors | FX20: Comm-EnergyPerGallon | FZ20: Reciprocating_Costs | GB20: ESTAR Dataset | GH20: 2018 Sales Source Data | GJ20: Compressors | GR20: Detail from 8P Tool | GV20: 2018 Sales Source Data | GX20: Proxy Measures | HB20: Proxy Measures | LH20: TimeSegmentHours
X21: CEC DB | AB21: SEEM HVAC | AD21: VMT by Census Region | AF21: NEEA Fridge RPP Sales Analysis | AJ21: RBSA Data_All Vintages | AR21: RBSA_Demographics | AV21: CostData&Analysis | AX21: Summary of data sources | AZ21: ESTAR V8.0 | BD21: ESTAR V8.0 | BH21: ScreenedHeatingSavings_2013NEEA | BN21: MH Conversion_EFAFwoCAC | BP21: MH Conversion_EFAFwoCAC | BV21: DHW_WaterHeaterSavings | BX21: DHW_WaterHeaterSavings | BZ21: PNNL Study | CR21: ValidationLists | CT21: BL Size3 Var | CV21: TMY Data | CX21: RTFUESSummary | CZ21: DetailedMarketData | DD21: CBSA 2014&2019 | DJ21: EIU by BType | DL21: Mun_RegionalScaling | DN21: MMap | DT21: Industrial Scaling 2 | DV21: MMap (Segments) | DX21: Chiller Efficiency Tables | DZ21: SteamerSavings | EB21: Chiller Efficiency Tables | ED21: Measure Compare | EH21: Fuel types | EJ21: SavingsData&Analysis | EL21: COM Costs | EN21: MMap | EP21: DistributorSalesData | ER21: Lists&Tables | ET21: Outdoor Stock 7P | EV21: SERT-Scores | EX21: Outdoor Stock 7P | EZ21: SERT-Scores | FJ21: Savings DATA | FL21: CBSA Data | FN21: GDP Deflator | FP21: NR_DHWCalculations | FR21: EIU by BType | FT21: CostMethodology | FV21: Assumptions | FX21: Comm-WaterCostAndEnergy | FZ21: Applications | GB21: ESTAR QPL | GH21: Pivot 2018 EIA | GJ21: Assumptions | GR21: MMap (Segments) | GV21: Pivot 2018 EIA | GX21: Lists&Tables | HB21: Lists&Tables | LH21: Log
X22: CostData&Analysis | AB22: ClothesWasherRMC | AD22: WA Regs | AF22: NEEA Freezer RPP Sales Analysis | AJ22: RBSA Data_"New" Vintage | AR22: RBSA_WaterHeater | AV22: Constants | AZ22: ESTAR V7.1 | BD22: ESTAR V7.1 | BH22: UnscreenedSuppFuelSavings | BN22: MH Upgrade_8.8 to 9.5 HSPF | BP22: MH Upgrade_8.8 to 9.5 HSPF | BV22: DHW_InductionMotorEnergySavings | BX22: DHW_InductionMotorEnergySavings | BZ22: update log | CT22: BL Flat | CV22: UpdateLog | CX22: Upgrades | CZ22: Summary_AgPump | DD22: CBSA2014 WinSize&Heat | DJ22: CBSA Data | DL22: Savings & Cost | DN22: M_Input_NR | DT22: 8P Segments and End Uses | DV22: Notes | DX22: Code Extracts | DZ22: SteamerCost | EB22: Code Extracts | EH22: StandardAndEESpecs | EJ22: CostData&Analysis | EL22: GDPDEF | EP22: Pivot Distrib | ER22: Master Generic Spec Lookup Tbl | ET22: Performance 7P | EV22: 7thPP Data Center | EX22: Performance 7P | EZ22: 7thPP Data Center | FJ22: BPA Data | FL22: EIU by BType | FN22: EIU by BType | FP22: NEW_DHWCalculations | FR22: 7P Data | FT22: Stock Data | FV22: RTFUES | FX22: Comm-InstallRatesCostLifetime | FZ22: LCC Sample | GB22: Best Buy | GH22: 2012 Sales Source Data | GJ22: RTFUES | GR22: Notes | GV22: 2012 Sales Source Data | GX22: Master Generic Spec Lookup Tbl | HB22: Master Generic Spec Lookup Tbl
X23: PCorpCostData2011-17 | AB23: CEC Appliance DB - Washers | AD23: OR Regs | AF23: NEEA Retailer Adjustments | AJ23: Federal Standard | AR23: RBSA_Shower | AV23: Info | AZ23: ESTAR Desktop Data Set | BD23: ESTAR Desktop Data Set | BH23: GasPropaneOilCosts | BN23: MH Upgrade_8.8 to VCHP | BP23: MH Upgrade_8.8 to VCHP | BV23: todo | BX23: todo | CT23: Treatment Data | CX23: IDStudyAppendixA | CZ23: PartLoadEfficiency | DD23: Cost Data | DL23: MMap | DN23: M_Input_NR_Out | DT23: Applications | DV23: RCP Data | DX23: Non Chiller Efficiency Tables | DZ23: Steamer ENERGY STAR QPL | EB23: Non Chiller Efficiency Tables | EH23: MEF Energy Disaggregation | EJ23: Federal Standards | EL23: BPA Ross Data | EP23: CBSA 2014 | ER23: 2021 Sales Pen | ET23: Life Table | EV23: Cost Converter | EX23: Life Table | EZ23: Cost Converter | FJ23: GDP Deflator | FN23: Mech Eq Tables A, B, D, E, F | FP23: DomesticWaterPump_Shipments | FT23: RCP Data | FV23: BPAUES | FX23: Comm-Impacts | FZ23: RCP Data | GB23: New Egg | GH23: 2005 Sales Source Data | GJ23: BPAUES | GR23: RCP Data | GV23: 2005 Sales Source Data | GX23: 2021 Sales Pen | HB23: 2021 Sales Pen
X24: RBSA Mechanical_WaterHeater | AB24: FieldDataAnalysis | AD24: EV Regs by State | AF24: NEEA Incremental Cost Analysis | AJ24: lbls | AR24: RBSA_ALT_svy_wt | AV24: BackgroundResearch | AZ24: ESTAR Laptop Data Set | BD24: ESTAR Laptop Data Set | BH24: WoodFuelCosts | BN24: SavingsData_SF | BP24: SavingsData_SF | BV24: Loads | BX24: Loads | CT24: T1 Size1 Regressions | CX24: NozzleFlowRate_HandAndWheel | CZ24: PartLoadEfficiencyDecrement | DD24: NEEA Cost&Char2020 | DL24: RCP Data | DN24: RCP Data | DT24: LCC Sample | DX24: Baseline Non Chillers | DZ24: ConvectionSavings | EB24: Baseline Non Chillers | EH24: MEF-J2 | EJ24: Current ENERGY STAR Spec (v4.0) | EP24: Approach | ER24: Cost2021 | ET24: Sources Stock 6P | EV24: ENERGY STAR Matches | EX24: Sources Stock 6P | EZ24: ENERGY STAR Matches | FJ24: DHP NC Savings | FN24: WA Code | FP24: Trim_SystemUpgrade_Savings | FT24: Dialog | FV24: BPA Tables | FX24: InputForProCost | GB24: Best Buy - All Laptops | GJ24: BPA Tables | GX24: Cost2021 | HB24: Cost2021
X25: Appliance_ClothesWasher | AB25: LabToField | AD25: >>> Load Shape >>> | AF25: NEEA-RTF Mapping | AJ25: inp | AR25: ChangeLog | AV25: Summary of data sources | AZ25: ESTAR QPL | BD25: ESTAR QPL | BH25: WoodFuelAvailableHeat | BN25: SavingsData_MH | BP25: SavingsData_MH | CT25: UpdateLog | CX25: IDStudy_Leaks_HandAndWheel | CZ25: DataSources | DD25: RTF Savings Comparison | DL25: Stock | DT25: RCP Data | DX25: CBSA 2020 Bldgs Summary Data | DZ25: Convection Energy Star QPL | EB25: CBSA 2020 Bldgs Summary Data | EH25: CEC DB | EJ25: Compare Standard, ESTAR, TSLs | EP25: ETO Cost Data | ER25: Perf2021 | ET25: DOE 2017 Rule | EV25: Power Supply Units - Servers | EX25: DOE 2017 Rule | EZ25: Power Supply Units - Servers | FJ25: NC DHP Costs | FP25: Comparison | FT25: Overlap | FV25: Federal Standard Display Case | FX25: LookupTable | GJ25: Federal Standard Display Case | GX25: Perf2021 | HB25: Perf2021
X26: RBSA Appliance_ClothesDryer | AB26: Lab_ESTARandNotESTAR | AD26: Average Weekly | AF26: Lifetime | AJ26: Supporting Documentation | AV26: Mechanical_WholeHouseFan | AZ26: Best Buy | BD26: Best Buy | BH26: Optimized Controls -> | BN26: Summary of SF Evaluations | BP26: Summary of SF Evaluations | CT26: T1 Size2 | CX26: IDStudy_Leaks_Pivot | DD26: Sources | DT26: Centrifugal and Large | DX26: CBSA 2020 Appendix Tables | DZ26: ConvectionCost | EB26: CBSA 2020 Appendix Tables | EH26: UEC Categories | EJ26: DOE ELs, ADs, and TSLs | EP26: ETO 2014 | ER26: DOEConvSpecs | EV26: Certified-Enterprise-Servers | EZ26: Certified-Enterprise-Servers | FJ26: EIU by BType | FP26: MMap | FV26: Air Curtain | FX26: Residential UEC Analysis | GJ26: Air Curtain | GX26: DOEConvSpecs | HB26: DOEConvSpecs
X27: FuelPivot | AB27: LaboratorySummary | AD27: 8760 Annualized | AF27: RBSAII Data - HVAC Interaction | AJ27: heat_exchange_functions | AV27: Alt_weights | AZ27: New Egg | BD27: New Egg | BH27: PNNL Study | BN27: Summary of MH Evaluations | BP27: Summary of MH Evaluations | CT27: T1 Size3 | CX27: IDStudy_Uniformity | DD27: IGU Data | DT27: Centrifugal and Large Calcs | DX27: CBSA Raw sampled | DZ27: FryerSavings | EB27: CBSA Raw sampled | EH27: SavingsData&Analysis_2018 | EJ27: ENERGYSTAR Products Sorted | EP27: DOE 2017 Rule | ER27: EUL | EV27: 80 PLUS Power Supplies | EZ27: 80 PLUS Power Supplies | FP27: General Applications | FV27: MeasureOrder | FX27: UEC Weights | GJ27: MeasureOrder | GX27: EUL | HB27: EUL
X28: Alt_weights | AB28: Update Log | AD28: >>> DR Potential >>> | AF28: Update Log | AJ28: SEEM Calibration | AV28: ToDo8P | AZ28: Best Buy - All Laptops | BD28: Best Buy - All Laptops | BH28: update log | BN28: CostAnalysis_SF | BP28: CostAnalysis_SF | CT28: T1 Size4 | CX28: RTF Emails-Excerpts | DD28: Window Units | DX28: EUI Data | DZ28: FryerCost | EB28: EUI Data | EH28: CostData&Analysis | EJ28: Lifetime | ER28: DOE Conventional Tech Specs | EV28: ActiveCalc_TotalPower_NOT USED | EZ28: ActiveCalc_TotalPower_NOT USED | FV28: GDPdeflator | FX28: UECs | GJ28: GDPdeflator | GX28: DOE Conventional Tech Specs | HB28: DOE Conventional Tech Specs
X29: BldgWeights | AD29: Maximum Power Acceptance | AJ29: SEEMoutput | AZ29: RBSA Appliance_Computer | BD29: RBSA Appliance_Computer | BN29: CostAnalysis_MH | BP29: CostAnalysis_MH | CX29: IDStudyTables | DD29: M_Input Film Test | DX29: Sources | DZ29: FryerENERGY STAR QPL | EB29: Sources | EH29: ValidationLists | EJ29: VLookup Table | ER29: Linear FL Specs | EV29: Sources | EZ29: Sources | FV29: Achievements | FX29: UESs | GJ29: Achievements | GX29: Linear FL Specs | HB29: Linear FL Specs
X30: Update Log | AD30: >>> Costs >>> | AJ30: SEEMoutputForERWH&CO2 | AZ30: RBSA Alt Weights | BD30: RBSA Alt Weights | BN30: EquipmentCostAssumptions | BP30: EquipmentCostAssumptions | CX30: BPAPumpTests | DD30: Low-e film notes | DX30: Chiller Life | DZ30: Overwrappers | EB30: Chiller Life | ER30: Rec Can Specs | EV30: SPEC_Database | EZ30: SPEC_Database | FX30: Adjustments_Installation Rates | GX30: Rec Can Specs | HB30: Rec Can Specs
AD31: Cost Summary | AJ31: SEEMoutputForTier1Hybrid | AZ31: ENERGY STAR Emails | BD31: ENERGY STAR Emails | BN31: Loadshapes | BP31: Loadshapes | CX31: PacifiCorp | DD31: Notes 7P | DX31: IAC Data | DZ31: OverwrapperSavings | EB31: IAC Data | ER31: CBSA2014Contr | FX31: MeasureAssembly_AdjustedUESs | GX31: CBSA2014Contr | HB31: CBSA2014Contr
AD32: Cost Presentation Tables | AJ32: SEEMoutputForTier2Hybrid | AZ32: Read Me | BD32: Read Me | BN32: New Homes --> | BP32: New Homes --> | CX32: F&R Sprinkler Acreage | DD32: DOE2 Mods 6P | DX32: PAC CPA Data | DZ32: HVAC Interaction Factors | EB32: PAC CPA Data | ER32: EISA and IRL Standards | FX32: Flow rate vs pressure | GX32: EISA and IRL Standards | HB32: EISA and IRL Standards
AD33: Avista Costs | AJ33: SEEMoutputForTier3Hybrid | BN33: ASHP in new MH | BP33: ASHP in new MH | CX33: F&R Water Use by Sprinklers | DX33: Chiller Saturation | DZ33: OverwrapperCosts | EB33: Chiller Saturation | ER33: LED Lumen Maintenance | FX33: Flow rate vs duration | GX33: LED Lumen Maintenance | HB33: LED Lumen Maintenance
AD34: >>> EUL >>> | AJ34: Sanden_draw_schedule | BN34: Update Log | BP34: Update Log | CX34: ValidationLists | DX34: Seventh Plan Building Types | EB34: Seventh Plan Building Types | ER34: ApplicNotes | FX34: RetailMarketMix | GX34: ApplicNotes | HB34: ApplicNotes
AD35: Literature Review | AJ35: draw_schedule | DX35: CPUC 2016 Evaluation | EB35: CPUC 2016 Evaluation | ER35: DLC Data | FX35: RBSA_SiteDetail | GX35: DLC Data | HB35: DLC Data
AD36: Update Log | AJ36: Update Log | DX36: CBSA 2014 Cooling Distribution | EB36: CBSA 2014 Cooling Distribution | ER36: LED Display Track Fixtures | FX36: RBSA_Demographics | GX36: LED Display Track Fixtures | HB36: LED Display Track Fixtures
DX37: CBSA Pivots | EB37: CBSA Pivots | ER37: TLEDs | FX37: RBSA_WaterHeater | GX37: TLEDs | HB37: TLEDs
DX38: CBSA Raw Chiller Data | EB38: CBSA Raw Chiller Data | ER38: LED GS A-Lamps | FX38: RBSA_Shower | GX38: LED GS A-Lamps | HB38: LED GS A-Lamps
DX39: CBSA Chiller Header Definitions | EB39: CBSA Chiller Header Definitions | ER39: LED High Bay | FX39: RBSA_ALT_svy_wt | GX39: LED High Bay | HB39: LED High Bay
DX40: CBSA All Buildings Data | EB40: CBSA All Buildings Data | ER40: Ceramic Metal Halide - Display | FX40: CostData&Analysis | GX40: Ceramic Metal Halide - Display | HB40: Ceramic Metal Halide - Display
DX41: ETO Chiller Data | EB41: ETO Chiller Data | ER41: HP T8 Fixture or Kit | FX41: ValidationLists | GX41: HP T8 Fixture or Kit | HB41: HP T8 Fixture or Kit
DX42: EUI by End Use | EB42: EUI by End Use | ER42: LED Fixture or Kit | GX42: LED Fixture or Kit | HB42: LED Fixture or Kit
ER43: LED PARs | GX43: LED PARs | HB43: LED PARs
ER44: T5 HO Fixtures | GX44: T5 HO Fixtures | HB44: T5 HO Fixtures
ER45: Energy Star Lamps | GX45: Energy Star Lamps | HB45: Energy Star Lamps
ER46: EnergyStar-LED Disp Track Lamps | GX46: EnergyStar-LED Disp Track Lamps | HB46: EnergyStar-LED Disp Track Lamps
ER47: Fixt vs KSF Levelized Cost Chk | GX47: Fixt vs KSF Levelized Cost Chk | HB47: Fixt vs KSF Levelized Cost Chk
ER48: Pivot Btype | GX48: Pivot Btype | HB48: Pivot Btype
ER49: WeightedAvgBuilding Check | GX49: WeightedAvgBuilding Check | HB49: WeightedAvgBuilding Check
ER50: Model Output Check(No OM) | GX50: Model Output Check(No OM) | HB50: Model Output Check(No OM)

Sheet Table Lookups
A1: static table
A2: Sector | B2: Lookup Row
A3: Residential | B3: 4
A4: Commercial | B4: 14
A5: Industrial | B5: 24
A6: Agriculture | B6: 34
A7: Melded | B7: 44
A8: Utility | B8: 54
A9: Local Government | B9: 64

Sheet ProCost 8th Plan Inputs
A1: 1 | B1: 2 | C1: 3 | D1: 4 | E1: 5 | F1: 6 | G1: 7 | H1: 8 | I1: 9 | J1: 10 | K1: 11
A2: Residential Sector ProCost Input Assumptions | B2: 0.380747629 | C2: https://nwcouncil.box.com/v/DiscountRate2021Plan
A3: Sponsor Parameters | B3: Customer | C3: Wholesale / Bonneville | D3: Retail Elec | E3: Nat Gas | I3: Program Parameters | J3: Program
A4: Real After-Tax Cost of Capital | B4: 0.0417 | C4: 0.0223 | D4: 0.0428 | E4: 0.048 | I4: Program Life (yrs) | J4: 20
A5: Financial Life (years) | B5: 12 | C5: 1 | D5: 1 | E5: 1 | I5: Program Start Date | J5: 2022
A6: Sponsor Share of Initial Capital Cost | B6: 0.5 | C6: =70%*50% -> 0.35 | D6: =30%*50% -> 0.15 | E6: 0 | I6: Present Value Time Zero | J6: 2022
A7: Sponsor Share of Annual O&M | B7: 1 | C7: 0 | D7: 0 | E7: 0 | I7: Input Cost Reference Year | J7: 2016
A8: Sponsor Share of Periodic Replacement Cost | B8: 1 | C8: 0 | D8: 0 | E8: 0 | I8: Real Discount Rate | J8: 0.0375
A9: Sponsor Share of Administrative Cost | B9: 0 | C9: 0.3 | D9: 0.7 | E9: 0 | I9: Capital Real Escalation Rate | J9: 0
A10: Last Year of Non-Customer O&M & Period Replacement | C10: 20 | I10: Admin Cost (As % of Initial Capital Cost) | J10: 0.2
I11: Regional Act Conservation Credit (%) | J11: 0.1
A12: Commercial Sector ProCost Assumptions | B12: 0.3096221195 | I12: Report Annual Carbon Saved for Year | J12: 2022
A13: Sponsor Parameters | B13: Customer | C13: Wholesale / Bonneville | D13: Retail Elec | E13: Nat Gas
A14: Real After-Tax Cost of Capital | B14: 0.0415 | C14: =C$4 -> 0.0223 | D14: =D$4 -> 0.0428 | E14: =E$4 -> 0.048 | I14: Utility System Parameters | J14: Electric | K14: Gas
A15: Financial Life (years) | B15: 12 | C15: 1 | D15: 1 | E15: 1 | I15: Bulk System T&D Loss Factor | J15: 0.023 | K15: 0.01
A16: Sponsor Share of Initial Capital Cost | B16: 0.5 | C16: =70%*50% -> 0.35 | D16: =30%*50% -> 0.15 | E16: 0 | I16: Bulk System T&D Credit ($/kw-yr)($/dailytherm-yr) | J16: 3.08 | K16: 0
A17: Sponsor Share of Annual O&M | B17: 1 | C17: 0 | D17: 0 | E17: 0 | I17: Bulk System T&D I2R Loss Component (%) | J17: 0.9 | K17: N/A
A18: Sponsor Share of Periodic Replacement Cost | B18: 1 | C18: 0 | D18: 0 | E18: 0 | I18: Local System Dist Loss Factor | J18: 0.0473993482 | K18: 0
A19: Sponsor Share of Admin Cost | B19: 0 | C19: 0.3 | D19: 0.7 | E19: 0 | I19: Local System Dist Credit ($/kw-yr)($/dailytherm-yr) | J19: 6.85 | K19: 0
A20: Last Year of Non-Customer O&M & Period Replacement | C20: 20 | I20: Local System Dist I2R Loss Component (%) | J20: 0.7 | K20: N/A
I21: Risk-Mitigation Credit (mills/kWh)(mills/therm) - Retro. | J21: 0 | K21: 0
A22: Industrial Sector ProCost Assumptions | B22: 0.2699349339 | I22: Risk-Mitigation Credit (mills/kWh)(mills/therm) - Lost Op. | J22: 0 | K22: 0
A23: Sponsor Parameters | B23: Customer | C23: Wholesale / Bonneville | D23: Retail Elec | E23: Nat Gas | I23: Deferred Generation Capacity Credit ($/bulk kW-year) - Peak 1 | J23: 115 | K23: N/A
A24: Real After-Tax Cost of Capital | B24: 0.0524 | C24: =C$4 -> 0.0223 | D24: =D$4 -> 0.0428 | E24: =E$4 -> 0.048 | I24: Deferred Generation Capacity Credit ($/bulk kW-year) - Peak 2 | J24: 9.99 | K24: N/A | L24: new for v4, not part of 7th Plan inputs
A25: Financial Life (years) | B25: 12 | C25: 1 | D25: 1 | E25: 1
A26: Sponsor Share of Initial Capital Cost | B26: 0.5 | C26: =70%*50% -> 0.35 | D26: =30%*50% -> 0.15 | E26: 0
A27: Sponsor Share of Annual O&M | B27: 1 | C27: 0 | D27: 0 | E27: 0
A28: Sponsor Share of Periodic Replacement Cost | B28: 1 | C28: 0 | D28: 0 | E28: 0 | I28: Price Deflator Year 2006$ to Year 2012$ | J28: moved from Row 26 for v4 to accommodate Peak1/Peak2 fields above
A29: Sponsor Share of Admin Cost | B29: 0 | C29: 0.3 | D29: 0.7 | E29: 0 | I29: 1.107404788
A30: Last Year of Non-Customer O&M & Period Replacement | C30: 20
I31: MC_AND_LOADSHAPE.xls worksheet tab names
A32: Agricultural Sector ProCost Assumptions | B32: 0.03969531752 | I32: 2021P Electric Mid
A33: Sponsor Parameters | B33: Customer | C33: Wholesale / Bonneville | D33: Retail Elec | E33: Nat Gas | I33: GLSShapes
A34: Real After-Tax Cost of Capital | B34: 0.0307 | C34: =C$4 -> 0.0223 | D34: =D$4 -> 0.0428 | E34: =E$4 -> 0.048 | I34: 2021P Gas
A35: Financial Life (years) | B35: 12 | C35: 1 | D35: 1 | E35: 1 | I35: GLSShapes
A36: Sponsor Share of Initial Capital Cost | B36: 0.5 | C36: =70%*50% -> 0.35 | D36: =30%*50% -> 0.15 | E36: 0 | I36: CO2 lbs per kWh
A37: Sponsor Share of Annual O&M | B37: 1 | C37: 0 | D37: 0 | E37: 0 | I37: CO2 lbs per therm
A38: Sponsor Share of Periodic Replacement Cost | B38: 1 | C38: 0 | D38: 0 | E38: 0 | I38: Dollars per ton CO2
A39: Sponsor Share of Admin Cost | B39: 0 | C39: 0.3 | D39: 0.7 | E39: 0 | I39: UtilityPeakHours
A40: Last Year of Non-Customer O&M & Period Replacement | C40: 20
A42: Melded ProCost Assumptions (weighted by savings potential)
A43: Sponsor Parameters | B43: Customer | C43: Wholesale / Bonneville | D43: Retail Elec | E43: Nat Gas
A44: Real After-Tax Cost of Capital | B44: =B4*B2+B12*B14+B24*B22+B34*B32 -> 0.04408973088 | C44: =C$4 -> 0.0223 | D44: =D$4 -> 0.0428 | E44: =E$4 -> 0.048
A45: Financial Life (years) | B45: 12 | C45: 1 | D45: 1 | E45: 1
A46: Sponsor Share of Initial Capital Cost | B46: 0.5 | C46: =70%*50% -> 0.35 | D46: =30%*50% -> 0.15 | E46: 0
A47: Sponsor Share of Annual O&M | B47: 1 | C47: 0 | D47: 0 | E47: 0
A48: Sponsor Share of Periodic Replacement Cost | B48: 1 | C48: 0 | D48: 0 | E48: 0
A49: Sponsor Share of Admin Cost | B49: 0 | C49: 0.3 | D49: 0.7 | E49: 0
A50: Last Year of Non-Customer O&M & Period Replacement | C50: 20
A52: Utility System Measures
A53: Sponsor Parameters | B53: Customer | C53: Wholesale / Bonneville | D53: Retail Elec | E53: Nat Gas
A54: Real After-Tax Cost of Capital | B54: =B44 -> 0.04408973088 | C54: =C$4 -> 0.0223 | D54: =D$4 -> 0.0428 | E54: =E$4 -> 0.048
A55: Financial Life (years) | B55: 12 | C55: 1 | D55: 1 | E55: 1
A56: Sponsor Share of Initial Capital Cost | B56: 0 | C56: 0.3 | D56: 0.7 | E56: 0
A57: Sponsor Share of Annual O&M | B57: 0 | C57: 0.3 | D57: 0.7 | E57: 0
A58: Sponsor Share of Periodic Replacement Cost | B58: 0 | C58: 0.3 | D58: 0.7 | E58: 0
A59: Sponsor Share of Admin Cost | B59: 0 | C59: 0.3 | D59: 0.7 | E59: 0
A60: Last Year of Non-Customer O&M & Period Replacement | C60: 20
A62: Local Government Sector Measures (Municipal, County, State)
A63: Sponsor Parameters | B63: Customer | C63: Wholesale / Bonneville | D63: Retail Elec | E63: Nat Gas
A64: Real After-Tax Cost of Capital | B64: 0.02 | C64: =C$4 -> 0.0223 | D64: =D$4 -> 0.0428 | E64: =E$4 -> 0.048
A65: Financial Life (years) | B65: 12 | C65: 1 | D65: 1 | E65: 1
A66: Sponsor Share of Initial Capital Cost | B66: 0.5 | C66: =70%*50% -> 0.35 | D66: =30%*50% -> 0.15 | E66: 0
A67: Sponsor Share of Annual O&M | B67: 1 | C67: 0 | D67: 0 | E67: 0
A68: Sponsor Share of Periodic Replacement Cost | B68: 1 | C68: 0 | D68: 0 | E68: 0
A69: Sponsor Share of Admin Cost | B69: 0 | C69: 0.3 | D69: 0.7 | E69: 0
A70: Last Year of Non-Customer O&M & Period Replacement | C70: 20

Sheet Measure_InputOutput
A1: Data Set Name
A2: Measure Index Name
A3: Costs must be denominated in the same year as 'Input Cost Reference Year' = | C3: 2016
A5: 1 | B5: 2 | C5: 3 | D5: 4 | E5: 5 | F5: 6 | G5: 7 | H5: 8 | I5: 9 | J5: 10 | K5: 11 | L5: 12 | M5: 13 | N5: 14 | O5: 15 | P5: 16 | Q5: 17 | R5: 18 | S5: 19
A6: Input Data | I6: Periodic Replacement Costs and Savings and Replacement Period | O6: Gas Inputs | Q6: Savings Period 2 Parameters (if applicable)
A7: Measure Application | B7: Savings Component | C7: Savings for Period 1 (kwh/yr) | D7: Measure Life (yrs) | E7: Capital Cost | F7: Annual O&M | G7: Shape Pointer | H7: Non-E Val ($/yr) | I7: Cost A ($) | J7: Replacement Period A (yrs) | K7: Cost B ($) | L7: Replacement Period B (yrs) | M7: Cost C ($) | N7: Replacement Period C (yrs) | O7: Savings (therms/yr) | P7: Shape Pointer | Q7: Savings for Period 2 (kWh/yr) | R7: Length of Period 1 (yrs) | S7: Base Case Cost at Start of Period 2 ($)
A8: All Btype_NEW_LINEAR_Fixture_from_LFTube_to_LEDPanel_CONTR | B8: Large Off_NEW_LINEAR_Fixture_from_LFTube_to_LEDPanel_CONTR | C8: 102.2165896 | D8: 16.36363636 | E8: 36.06215072 | G8: C-LOff-Lgt-LPD Int-All-All-C | I8: -8.514132687 | J8: 9.696969697 | O8: -0.4937834181 | P8: C-LOff-HVAC-ER-All-All-C
A9: All Btype_NR_LINEAR_Fixture_from_LFTube_to_LEDPanel | B9: Large Off_NR_LINEAR_Fixture_from_LFTube_to_LEDPanel | C9: 18.28602328 | D9: 16.36363636 | E9: 3.580740307 | G9: C-LOff-Lgt-LPD Int-All-All-C | I9: -2.135453276 | J9: 9.696969697 | O9: -0.08833531928 | P9: C-LOff-HVAC-ER-All-All-C
A10: All Btype_NR_LINEAR_Fixture_from_LFTube_to_LEDPanel_RDX | B10: Large Off_NR_LINEAR_Fixture_from_LFTube_to_LEDPanel_RDX | C10: 5.502886188 | D10: 16.36363636 | E10: 2.21721781 | G10: C-LOff-Lgt-LPD Int-All-All-C | I10: -0.5338633189 | J10: 9.696969697 | O10: -0.02658310126 | P10: C-LOff-HVAC-ER-All-All-C
A11: All Btype_NR_LINEAR_Fixture_from_LFTube_to_LEDPanel_CONTR | B11: Large Off_NR_LINEAR_Fixture_from_LFTube_to_LEDPanel_CONTR | C11: 68.9088619 | D11: 16.36363636 | E11: 24.75432145 | G11: C-LOff-Lgt-LPD Int-All-All-C | I11: -5.844398438 | J11: 9.696969697 | O11: -0.332881908 | P11: C-LOff-HVAC-ER-All-All-C
A12: All Btype_NR_LINEAR_Lamp_from_LFTube_to_LEDTube_RDX | B12: Large Off_NR_LINEAR_Lamp_from_LFTube_to_LEDTube_RDX | C12: 1.022692599 | D12: 15.45454545 | E12: 0.1946689245 | G12: C-LOff-Lgt-LPD Int-All-All-C | I12: -0.1186362931 | J12: 9.696969697 | O12: -0.004940378557 | P12: C-LOff-HVAC-ER-All-All-C
A13: All Btype_NR_LINEAR_Fixture_from_LEDTube_to_LEDPanel_CONTR | B13: Large Off_NR_LINEAR_Fixture_from_LEDTube_to_LEDPanel_CONTR | C13: 18.95666794 | D13: 16.36363636 | E13: 7.313367237 | G13: C-LOff-Lgt-LPD Int-All-All-C | I13: -11.28439572 | J13: 15.45454545 | O13: -0.09157504012 | P13: C-LOff-HVAC-ER-All-All-C
A14: All Btype_RETRO_LINEAR_Fixture_from_LFTube_to_LEDPanel | B14: Large Off_RETRO_LINEAR_Fixture_from_LFTube_to_LEDPanel | C14: 2.031780364 | D14: 16.36363636 | E14: 2.140909105 | G14: C-LOff-Lgt-LPD Int-All-All-C | I14: -0.2372725862 | J14: 9.696969697 | O14: -0.009815035475 | P14: C-LOff-HVAC-ER-All-All-C
A15: All Btype_RETRO_LINEAR_Fixture_from_LFTube_to_LEDPanel_RDX | B15: Large Off_RETRO_LINEAR_Fixture_from_LFTube_to_LEDPanel_RDX | C15: 0.6114317986 | D15: 16.36363636 | E15: 0.4517904789 | G15: C-LOff-Lgt-LPD Int-All-All-C | I15: -0.05931814654 | J15: 9.696969697 | O15: -0.002953677917 | P15: C-LOff-HVAC-ER-All-All-C
A16: All Btype_RETRO_LINEAR_Fixture_from_LFTube_to_LEDPanel_CONTR | B16: Large Off_RETRO_LINEAR_Fixture_from_LFTube_to_LEDPanel_CONTR | C16: 7.656540211 | D16: 16.36363636 | E16: 7.52093025 | G16: C-LOff-Lgt-LPD Int-All-All-C | I16: -0.6493776043 | J16: 9.696969697 | O16: -0.03698687866 | P16: C-LOff-HVAC-ER-All-All-C
A17: All Btype_RETRO_LINEAR_Lamp_from_LFTube_to_LEDTube_RDX | B17: Large Off_RETRO_LINEAR_Lamp_from_LFTube_to_LEDTube_RDX | C17: 9.204233395 | D17: 15.45454545 | E17: 2.819746959 | G17: C-LOff-Lgt-LPD Int-All-All-C | I17: -1.067726638 | J17: 9.696969697 | O17: -0.04446340702 | P17: C-LOff-HVAC-ER-All-All-C
A18: All Btype_RETRO_LINEAR_Fixture_from_LEDTube_to_LEDPanel_CONTR | B18: Large Off_RETRO_LINEAR_Fixture_from_LEDTube_to_LEDPanel_CONTR | C18: 0 | D18: 16.36363636 | E18: 0 | G18: C-LOff-Lgt-LPD Int-All-All-C | I18: 0 | J18: 15.45454545 | O18: 0 | P18: C-LOff-HVAC-ER-All-All-C
A19: All Btype_NEW_HIGHBAY_Fixture_from_LFTube_to_LEDPanel_CONTR | B19: Large Off_NEW_HIGHBAY_Fixture_from_LFTube_to_LEDPanel_CONTR | C19: 0 | D19: 16.66666667 | E19: 0 | G19: C-LOff-Lgt-LPD Int-All-All-C | I19: 0 | J19: 8.181818182 | O19: 0 | P19: C-LOff-HVAC-ER-All-All-C
A20: All Btype_NR_HIGHBAY_Fixture_from_LFTube_to_LEDPanel | B20: Large Off_NR_HIGHBAY_Fixture_from_LFTube_to_LEDPanel | C20: 0 | D20: 16.66666667 | E20: 0 | G20: C-LOff-Lgt-LPD Int-All-All-C | I20: 0 | J20: 8.181818182 | O20: 0 | P20: C-LOff-HVAC-ER-All-All-C
A21: All Btype_NR_HIGHBAY_Fixture_from_LFTube_to_LEDPanel_CONTR | B21: Large Off_NR_HIGHBAY_Fixture_from_LFTube_to_LEDPanel_CONTR | C21: 0 | D21: 16.66666667 | E21: 0 | G21: C-LOff-Lgt-LPD Int-All-All-C | I21: 0 | J21: 8.181818182 | O21: 0 | P21: C-LOff-HVAC-ER-All-All-C
A22: All Btype_NR_HIGHBAY_Fixture_from_HID_to_LEDPanel | B22: Large Off_NR_HIGHBAY_Fixture_from_HID_to_LEDPanel | C22: 0 | D22: 16.66666667 | E22: 0 | G22: C-LOff-Lgt-LPD Int-All-All-C | I22: 0 | J22: 4.545454545 | O22: 0 | P22: C-LOff-HVAC-ER-All-All-C
A23: All Btype_NR_HIGHBAY_Fixture_from_HID_to_LEDPanel_CONTR | B23: Large Off_NR_HIGHBAY_Fixture_from_HID_to_LEDPanel_CONTR | C23: 0 | D23: 16.66666667 | E23: 0 | G23: C-LOff-Lgt-LPD Int-All-All-C | I23: 0 | J23: 4.545454545 | O23: 0 | P23: C-LOff-HVAC-ER-All-All-C
A24: All Btype_RETRO_HIGHBAY_Fixture_from_LFTube_to_LEDPanel | B24: Large Off_RETRO_HIGHBAY_Fixture_from_LFTube_to_LEDPanel | C24: 0 | D24: 16.66666667 | E24: 0 | G24: C-LOff-Lgt-LPD Int-All-All-C | I24: 0 | J24: 8.181818182 | O24: 0 | P24: C-LOff-HVAC-ER-All-All-C
A25: All Btype_RETRO_HIGHBAY_Fixture_from_LFTube_to_LEDPanel_CONTR | B25: Large Off_RETRO_HIGHBAY_Fixture_from_LFTube_to_LEDPanel_CONTR | C25: 0 | D25: 16.66666667 | E25: 0 | G25: C-LOff-Lgt-LPD Int-All-All-C | I25: 0 | J25: 8.181818182 | O25: 0 | P25: C-LOff-HVAC-ER-All-All-C
A26: All Btype_RETRO_HIGHBAY_Fixture_from_HID_to_LEDPanel | B26: Large Off_RETRO_HIGHBAY_Fixture_from_HID_to_LEDPanel | C26: 0 | D26: 16.66666667 | E26: 0 | G26: C-LOff-Lgt-LPD Int-All-All-C | I26: 0 | J26: 4.545454545 | O26: 0 | P26: C-LOff-HVAC-ER-All-All-C
A27: All Btype_RETRO_HIGHBAY_Fixture_from_HID_to_LEDPanel_CONTR | B27: Large Off_RETRO_HIGHBAY_Fixture_from_HID_to_LEDPanel_CONTR | C27: 0 | D27: 16.66666667 | E27: 0 | G27: C-LOff-Lgt-LPD Int-All-All-C | I27: 0 | J27: 4.545454545 | O27: 0 | P27: C-LOff-HVAC-ER-All-All-C
A28: All Btype_NEW_CAN_Fixture_from_CFL_to_LEDPanel | B28: Large Off_NEW_CAN_Fixture_from_CFL_to_LEDPanel | C28: 8.570327647 | D28: 14.24242424 | E28: 0.895068316 | G28: C-LOff-Lgt-LPD Int-All-All-C | I28: -1.399335873 | J28: 2.787878788 | O28: -0.04140116293 | P28: C-LOff-HVAC-ER-All-All-C
A29: All Btype_NR_CAN_Lamp_from_CFL_to_LEDScrew | B29: Large Off_NR_CAN_Lamp_from_CFL_to_LEDScrew | C29: 2.568074489 | D29: 14.24242424 | E29: 0.01235080143 | G29: C-LOff-Lgt-LPD Int-All-All-C | I29: -0.4093518748 | J29: 2.787878788 | O29: -0.01240574161 | P29: C-LOff-HVAC-ER-All-All-C
A30: All Btype_NR_CAN_Lamp_from_Inc/Hal_to_LEDScrew | B30: Large Off_NR_CAN_Lamp_from_Inc/Hal_to_LEDScrew | C30: 1.428173465 | D30: 14.24242424 | E30: 0.02447997006 | G30: C-LOff-Lgt-LPD Int-All-All-C | I30: -0.06858935843 | J30: 0.9696969697 | O30: -0.006899157741 | P30: C-LOff-HVAC-ER-All-All-C
A31: All Btype_RETRO_CAN_Lamp_from_CFL_to_LEDScrew | B31: Large Off_RETRO_CAN_Lamp_from_CFL_to_LEDScrew | C31: 2.568074489 | D31: 14.24242424 | E31: 0.4217026762 | G31: C-LOff-Lgt-LPD Int-All-All-C | I31: -0.4093518748 | J31: 2.787878788 | O31: -0.01240574161 | P31: C-LOff-HVAC-ER-All-All-C
A32: All Btype_RETRO_CAN_Lamp_from_Inc/Hal_to_LEDScrew | B32: Large Off_RETRO_CAN_Lamp_from_Inc/Hal_to_LEDScrew | C32: 1.428173465 | D32: 14.24242424 | E32: 0.09306932849 | G32: C-LOff-Lgt-LPD Int-All-All-C | I32: -0.06858935843 | J32: 0.9696969697 | O32: -0.006899157741 | P32: C-LOff-HVAC-ER-All-All-C
A33: All Btype_NEW_DISP_Fixture_from_CFL_to_LEDPanel | B33: Large Off_NEW_DISP_Fixture_from_CFL_to_LEDPanel | C33: 1.157817358 | D33: 9.696969697 | E33: -0.1724550115 | G33: C-LOff-Lgt-LPD Int-All-All-C | I33: -0.9211883861 | J33: 2.787878788 | O33: -0.005593133316 | P33: C-LOff-HVAC-ER-All-All-C
A34: All Btype_NR_DISP_Lamp_from_CFL_to_LEDScrew | B34: Large Off_NR_DISP_Lamp_from_CFL_to_LEDScrew | C34: 0.04603081495 | D34: 9.696969697 | E34: 0.0002259953951 | G34: C-LOff-Lgt-LPD Int-All-All-C | I34: -0.02329858436 | J34: 2.787878788 | O34: -0.0002223636421 | P34: C-LOff-HVAC-ER-All-All-C
A35: All Btype_NR_DISP_Lamp_from_Inc/Hal_to_LEDScrew | B35: Large Off_NR_DISP_Lamp_from_Inc/Hal_to_LEDScrew | C35: 2.033415462 | D35: 9.696969697 | E35: 0.05166025306 | G35: C-LOff-Lgt-LPD Int-All-All-C | I35: -0.1194181741 | J35: 0.9696969697 | O35: -0.009822934234 | P35: C-LOff-HVAC-ER-All-All-C
A36: All Btype_RETRO_DISP_Lamp_from_CFL_to_LEDScrew | B36: Large Off_RETRO_DISP_Lamp_from_CFL_to_LEDScrew | C36: 0.04603081495 | D36: 9.696969697 | E36: 0.02352457975 | G36: C-LOff-Lgt-LPD Int-All-All-C | I36: -0.02329858436 | J36: 2.787878788 | O36: -0.0002223636421 | P36: C-LOff-HVAC-ER-All-All-C
A37: All Btype_RETRO_DISP_Lamp_from_Inc/Hal_to_LEDScrew | B37: Large Off_RETRO_DISP_Lamp_from_Inc/Hal_to_LEDScrew | C37: 2.033415462 | D37: 9.696969697 | E37: 0.1710784272 | G37: C-LOff-Lgt-LPD Int-All-All-C | I37: -0.1194181741 | J37: 0.9696969697 | O37: -0.009822934234 | P37: C-LOff-HVAC-ER-All-All-C
A38: All Btype_NEW_OTHER_Fixture_from_CFL_to_LEDPanel | B38: Large Off_NEW_OTHER_Fixture_from_CFL_to_LEDPanel | C38: 0.9226031207 | D38: 15.15151515 | E38: 0.2781245158 | G38: C-LOff-Lgt-LPD Int-All-All-C | I38: -0.6706078342 | J38: 3.333333333 | O38: -0.004456870693 | P38: C-LOff-HVAC-ER-All-All-C
A39: All Btype_NR_OTHER_Lamp_from_CFL_to_LEDScrew | B39: Large Off_NR_OTHER_Lamp_from_CFL_to_LEDScrew | C39: 3.371232443 | D39: 6.060606061 | E39: -0.8619745118 | G39: C-LOff-Lgt-LPD Int-All-All-C | I39: -2.495100899 | J39: 3.333333333 | O39: -0.01628560184 | P39: C-LOff-HVAC-ER-All-All-C
A40: All Btype_NR_OTHER_Lamp_from_Inc/Hal_to_LEDScrew | B40: Large Off_NR_OTHER_Lamp_from_Inc/Hal_to_LEDScrew | C40: 4.942985735 | D40: 6.060606061 | E40: -0.04166727718 | G40: C-LOff-Lgt-LPD Int-All-All-C | I40: -0.3655049696 | J40: 0.4545454545 | O40: -0.02387835871 | P40: C-LOff-HVAC-ER-All-All-C
A41: All Btype_RETRO_OTHER_Lamp_from_CFL_to_LEDScrew | B41: Large Off_RETRO_OTHER_Lamp_from_CFL_to_LEDScrew | C41: 3.371232443 | D41: 6.060606061 | E41: 1.633126388 | G41: C-LOff-Lgt-LPD Int-All-All-C | I41: -2.495100899 | J41: 3.333333333 | O41: -0.01628560184 | P41: C-LOff-HVAC-ER-All-All-C
A42: All Btype_RETRO_OTHER_Lamp_from_Inc/Hal_to_LEDScrew | B42: Large Off_RETRO_OTHER_Lamp_from_Inc/Hal_to_LEDScrew | C42: 4.942985735 | D42: 6.060606061 | E42: 0.3238376924 | G42: C-LOff-Lgt-LPD Int-All-All-C | I42: -0.3655049696 | J42: 0.4545454545 | O42: -0.02387835871 | P42: C-LOff-HVAC-ER-All-All-C
A43: All Btype_NEW_LINEAR_Fixture_from_LFTube_to_LEDPanel_CONTR | B43: Medium Off_NEW_LINEAR_Fixture_from_LFTube_to_LEDPanel_CONTR | C43: 83.13059519 | D43: 16.36363636 | E43: 28.72291567 | G43: C-LOff-Lgt-LPD Int-All-All-C | I43: -6.781368006 | J43: 9.696969697 | O43: -0.4466650824 | P43: C-LOff-HVAC-ER-All-All-C
A44: All Btype_NR_LINEAR_Fixture_from_LFTube_to_LEDPanel | B44: Medium Off_NR_LINEAR_Fixture_from_LFTube_to_LEDPanel | C44: 9.490174629 | D44: 16.36363636 | E44: 1.796896223 | G44: C-LOff-Lgt-LPD Int-All-All-C | I44: -1.071618603 | J44: 9.696969697 | O44: -0.05099120996 | P44: C-LOff-HVAC-ER-All-All-C
A45: All Btype_NR_LINEAR_Fixture_from_LFTube_to_LEDPanel_RDX | B45: Medium Off_NR_LINEAR_Fixture_from_LFTube_to_LEDPanel_RDX | C45: 2.855916242 | D45: 16.36363636 | E45: 1.11264989 | G45: C-LOff-Lgt-LPD Int-All-All-C | I45: -0.2679046508 | J45: 9.696969697 | O45: -0.01534498894 | P45: C-LOff-HVAC-ER-All-All-C
A46: All Btype_NR_LINEAR_Fixture_from_LFTube_to_LEDPanel_CONTR | B46: Medium Off_NR_LINEAR_Fixture_from_LFTube_to_LEDPanel_CONTR | C46: 35.76267639 | D46: 16.36363636 | E46: 12.42227665 | G46: C-LOff-Lgt-LPD Int-All-All-C | I46: -2.932850914 | J46: 9.696969697 | O46: -0.1921547508 | P46: C-LOff-HVAC-ER-All-All-C
A47: All Btype_NR_LINEAR_Lamp_from_LFTube_to_LEDTube_RDX | B47: Medium Off_NR_LINEAR_Lamp_from_LFTube_to_LEDTube_RDX | C47: 0.5307622775 | D47: 15.45454545 | E47: 0.09768925566 | G47: C-LOff-Lgt-LPD Int-All-All-C | I47: -0.05953436684 | J47: 9.696969697 | O47: -0.002851813774 | P47: C-LOff-HVAC-ER-All-All-C
A48: All Btype_NR_LINEAR_Fixture_from_LEDTube_to_LEDPanel_CONTR | B48: Medium Off_NR_LINEAR_Fixture_from_LEDTube_to_LEDPanel_CONTR | C48: 9.838229256 | D48: 16.36363636 | E48: 3.670012578 | G48: C-LOff-Lgt-LPD Int-All-All-C | I48: -5.662764206 | J48: 15.45454545 | O48: -0.05286132586 | P48: C-LOff-HVAC-ER-All-All-C
A49: All Btype_RETRO_LINEAR_Fixture_from_LFTube_to_LEDPanel | B49: Medium Off_RETRO_LINEAR_Fixture_from_LFTube_to_LEDPanel | C49: 1.054463848 | D49: 16.36363636 | E49: 1.074356461 | G49: C-LOff-Lgt-LPD Int-All-All-C | I49: -0.1190687337 | J49: 9.696969697 | O49: -0.005665689995 | P49: C-LOff-HVAC-ER-All-All-C
A50: All Btype_RETRO_LINEAR_Fixture_from_LFTube_to_LEDPanel_RDX | B50: Medium Off_RETRO_LINEAR_Fixture_from_LFTube_to_LEDPanel_RDX | C50: 0.3173240269 | D50: 16.36363636 | E50: 0.2267186491 | G50: C-LOff-Lgt-LPD Int-All-All-C | I50: -0.02976718342 | J50: 9.696969697 | O50: -0.001704998771 | P50: C-LOff-HVAC-ER-All-All-C
A51: All Btype_RETRO_LINEAR_Fixture_from_LFTube_to_LEDPanel_CONTR | B51: Medium Off_RETRO_LINEAR_Fixture_from_LFTube_to_LEDPanel_CONTR | C51: 3.97363071 | D51: 16.36363636 | E51: 3.774172378 | G51: C-LOff-Lgt-LPD Int-All-All-C | I51: -0.3258723237 | J51: 9.696969697 | O51: -0.02135052786 | P51: C-LOff-HVAC-ER-All-All-C
A52: All Btype_RETRO_LINEAR_Lamp_from_LFTube_to_LEDTube_RDX | B52: Medium Off_RETRO_LINEAR_Lamp_from_LFTube_to_LEDTube_RDX | C52: 4.776860497 | D52: 15.45454545 | E52: 1.415012602 | G52: C-LOff-Lgt-LPD Int-All-All-C | I52: -0.5358093015 | J52: 9.696969697 | O52: -0.02566632397 | P52: C-LOff-HVAC-ER-All-All-C
A53: All Btype_RETRO_LINEAR_Fixture_from_LEDTube_to_LEDPanel_CONTR | B53: Medium Off_RETRO_LINEAR_Fixture_from_LEDTube_to_LEDPanel_CONTR | C53: 0 | D53: 16.36363636 | E53: 0 | G53: C-LOff-Lgt-LPD Int-All-All-C | I53: 0 | J53: 15.45454545 | O53: 0 | P53: C-LOff-HVAC-ER-All-All-C
A54: All Btype_NEW_HIGHBAY_Fixture_from_LFTube_to_LEDPanel_CONTR | B54: Medium Off_NEW_HIGHBAY_Fixture_from_LFTube_to_LEDPanel_CONTR | C54: 0 | D54: 16.66666667 | E54: 0 | G54: C-LOff-Lgt-LPD Int-All-All-C | I54: 0 | J54: 8.181818182 | O54: 0 | P54: C-LOff-HVAC-ER-All-All-C
A55: All Btype_NR_HIGHBAY_Fixture_from_LFTube_to_LEDPanel | B55: Medium Off_NR_HIGHBAY_Fixture_from_LFTube_to_LEDPanel | C55: 0 | D55: 16.66666667 | E55: 0 | G55: C-LOff-Lgt-LPD Int-All-All-C | I55: 0 | J55: 8.181818182 | O55: 0 | P55: C-LOff-HVAC-ER-All-All-C
A56: All Btype_NR_HIGHBAY_Fixture_from_LFTube_to_LEDPanel_CONTR | B56: Medium Off_NR_HIGHBAY_Fixture_from_LFTube_to_LEDPanel_CONTR | C56: 0 | D56: 16.66666667 | E56: 0 | G56: C-LOff-Lgt-LPD Int-All-All-C | I56: 0 | J56: 8.181818182 | O56: 0 | P56: C-LOff-HVAC-ER-All-All-C
A57: All Btype_NR_HIGHBAY_Fixture_from_HID_to_LEDPanel | B57: Medium Off_NR_HIGHBAY_Fixture_from_HID_to_LEDPanel | C57: 0 | D57: 16.66666667 | E57: 0 | G57: C-LOff-Lgt-LPD Int-All-All-C | I57: 0 | J57: 4.545454545 | O57: 0 | P57: C-LOff-HVAC-ER-All-All-C
A58: All Btype_NR_HIGHBAY_Fixture_from_HID_to_LEDPanel_CONTR | B58: Medium Off_NR_HIGHBAY_Fixture_from_HID_to_LEDPanel_CONTR | C58: 0 | D58: 16.66666667 | E58: 0 | G58: C-LOff-Lgt-LPD Int-All-All-C | I58: 0 | J58: 4.545454545 | O58: 0 | P58: C-LOff-HVAC-ER-All-All-C
A59: All Btype_RETRO_HIGHBAY_Fixture_from_LFTube_to_LEDPanel | B59: Medium Off_RETRO_HIGHBAY_Fixture_from_LFTube_to_LEDPanel | C59: 0 | D59: 16.66666667 | E59: 0 | G59: C-LOff-Lgt-LPD Int-All-All-C | I59: 0 | J59: 8.181818182 | O59: 0 | P59: C-LOff-HVAC-ER-All-All-C
A60: All Btype_RETRO_HIGHBAY_Fixture_from_LFTube_to_LEDPanel_CONTR | B60: Medium Off_RETRO_HIGHBAY_Fixture_from_LFTube_to_LEDPanel_CONTR | C60: 0 | D60: 16.66666667 | E60: 0 | G60: C-LOff-Lgt-LPD Int-All-All-C | I60: 0 | J60: 8.181818182 | O60: 0 | P60: C-LOff-HVAC-ER-All-All-C
A61: All Btype_RETRO_HIGHBAY_Fixture_from_HID_to_LEDPanel | B61: Medium Off_RETRO_HIGHBAY_Fixture_from_HID_to_LEDPanel | C61: 0 | D61: 16.66666667 | E61: 0 | G61: C-LOff-Lgt-LPD Int-All-All-C | I61: 0 | J61: 4.545454545 | O61: 0 | P61: C-LOff-HVAC-ER-All-All-C
A62: All Btype_RETRO_HIGHBAY_Fixture_from_HID_to_LEDPanel_CONTR | B62: Medium Off_RETRO_HIGHBAY_Fixture_from_HID_to_LEDPanel_CONTR | C62: 0 | D62: 16.66666667 | E62: 0 | G62: C-LOff-Lgt-LPD Int-All-All-C | I62: 0 | J62: 4.545454545 | O62: 0 | P62: C-LOff-HVAC-ER-All-All-C
A63: All Btype_NEW_CAN_Fixture_from_CFL_to_LEDPanel | B63: Medium Off_NEW_CAN_Fixture_from_CFL_to_LEDPanel | C63: 6.970066612 | D63: 14.24242424 | E63: 0.7129073347 | G63: C-LOff-Lgt-LPD Int-All-All-C | I63: -1.11454823 | J63: 2.787878788 | O63: -0.03745053636 | P63: C-LOff-HVAC-ER-All-All-C
A64: All Btype_NR_CAN_Lamp_from_CFL_to_LEDScrew | B64: Medium Off_NR_CAN_Lamp_from_CFL_to_LEDScrew | C64: 1.332792537 | D64: 14.24242424 | E64: 0.006197910637 | G64: C-LOff-Lgt-LPD Int-All-All-C | I64: -0.2054220007 | J64: 2.787878788 | O64: -0.007161164757 | P64: C-LOff-HVAC-ER-All-All-C
A65: All Btype_NR_CAN_Lamp_from_Inc/Hal_to_LEDScrew | B65: Medium Off_NR_CAN_Lamp_from_Inc/Hal_to_LEDScrew | C65: 0.7412008276 | D65: 14.24242424 | E65: 0.01228460094 | G65: C-LOff-Lgt-LPD Int-All-All-C | I65: -0.03441968658 | J65: 0.9696969697 | O65: -0.003982511228 | P65: C-LOff-HVAC-ER-All-All-C
A66: All Btype_RETRO_CAN_Lamp_from_CFL_to_LEDScrew | B66: Medium Off_RETRO_CAN_Lamp_from_CFL_to_LEDScrew | C66: 1.332792537 | D66: 14.24242424 | E66: 0.2116199113 | G66: C-LOff-Lgt-LPD Int-All-All-C | I66: -0.2054220007 | J66: 2.787878788 | O66: -0.007161164757 | P66: C-LOff-HVAC-ER-All-All-C
A67: All Btype_RETRO_CAN_Lamp_from_Inc/Hal_to_LEDScrew | B67: Medium Off_RETRO_CAN_Lamp_from_Inc/Hal_to_LEDScrew | C67: 0.7412008276 | D67: 14.24242424 | E67: 0.04670428753 | G67: C-LOff-Lgt-LPD Int-All-All-C | I67: -0.03441968658 | J67: 0.9696969697 | O67: -0.003982511228 | P67: C-LOff-HVAC-ER-All-All-C
A68: All Btype_NEW_DISP_Fixture_from_CFL_to_LEDPanel | B68: Medium Off_NEW_DISP_Fixture_from_CFL_to_LEDPanel | C68: 0.9416284234 | D68: 9.696969697 | E68: -0.1373576077 | G68: C-LOff-Lgt-LPD Int-All-All-C | I68: -0.7337115451 | J68: 2.787878788 | O68: -0.005059419296 | P68: C-LOff-HVAC-ER-All-All-C
A69: All Btype_NR_DISP_Lamp_from_CFL_to_LEDScrew | B69: Medium Off_NR_DISP_Lamp_from_CFL_to_LEDScrew | C69: 0.02388930964 | D69: 9.696969697 | E69: 0.0001134095849 | G69: C-LOff-Lgt-LPD Int-All-All-C | I69: -0.01169175496 | J69: 2.787878788 | O69: -0.0001283585236 | P69: C-LOff-HVAC-ER-All-All-C
A70: All Btype_NR_DISP_Lamp_from_Inc/Hal_to_LEDScrew | B70: Medium Off_NR_DISP_Lamp_from_Inc/Hal_to_LEDScrew | C70: 1.055312439 | D70: 9.696969697 | E70: 0.0259242798 | G70: C-LOff-Lgt-LPD Int-All-All-C | I70: -0.05992673238 | J70: 0.9696969697 | O70: -0.005670249522 | P70: C-LOff-HVAC-ER-All-All-C
A71: All Btype_RETRO_DISP_Lamp_from_CFL_to_LEDScrew | B71: Medium Off_RETRO_DISP_Lamp_from_CFL_to_LEDScrew | C71: 0.02388930964 | D71: 9.696969697 | E71: 0.01180516454 | G71: C-LOff-Lgt-LPD Int-All-All-C | I71: -0.01169175496 | J71: 2.787878788 | O71: -0.0001283585236 | P71: C-LOff-HVAC-ER-All-All-C
A72: All Btype_RETRO_DISP_Lamp_from_Inc/Hal_to_LEDScrew | B72: Medium Off_RETRO_DISP_Lamp_from_Inc/Hal_to_LEDScrew | C72: 1.055312439 | D72: 9.696969697 | E72: 0.08585101218 | G72: C-LOff-Lgt-LPD Int-All-All-C | I72: -0.05992673238 | J72: 0.9696969697 | O72: -0.005670249522 | P72: C-LOff-HVAC-ER-All-All-C
A73: All Btype_NEW_OTHER_Fixture_from_CFL_to_LEDPanel | B73: Medium Off_NEW_OTHER_Fixture_from_CFL_to_LEDPanel | C73: 0.7503336479 | D73: 15.15151515 | E73: 0.2215216467 | G73: C-LOff-Lgt-LPD Int-All-All-C | I73: -0.534128217 | J73: 3.333333333 | O73: -0.004031582355 | P73: C-LOff-HVAC-ER-All-All-C
A74: All Btype_NR_OTHER_Lamp_from_CFL_to_LEDScrew | B74: Medium Off_NR_OTHER_Lamp_from_CFL_to_LEDScrew | C74: 1.749619593 | D74: 6.060606061 | E74: -0.4325582455 | G74: C-LOff-Lgt-LPD Int-All-All-C | I74: -1.25209789 | J74: 3.333333333 | O74: -0.009400798562 | P74: C-LOff-HVAC-ER-All-All-C
A75: All Btype_NR_OTHER_Lamp_from_Inc/Hal_to_LEDScrew | B75: Medium Off_NR_OTHER_Lamp_from_Inc/Hal_to_LEDScrew | C75: 2.565336219 | D75: 6.060606061 | E75: -0.02090957919 | G75: C-LOff-Lgt-LPD Int-All-All-C | I75: -0.183418635 | J75: 0.4545454545 | O75: -0.01378368712 | P75: C-LOff-HVAC-ER-All-All-C
A76: All Btype_RETRO_OTHER_Lamp_from_CFL_to_LEDScrew | B76: Medium Off_RETRO_OTHER_Lamp_from_CFL_to_LEDScrew | C76: 1.749619593 | D76: 6.060606061 | E76: 0.8195396444 | G76: C-LOff-Lgt-LPD Int-All-All-C | I76: -1.25209789 | J76: 3.333333333 | O76: -0.009400798562 | P76: C-LOff-HVAC-ER-All-All-C
A77: All Btype_RETRO_OTHER_Lamp_from_Inc/Hal_to_LEDScrew | B77: Medium Off_RETRO_OTHER_Lamp_from_Inc/Hal_to_LEDScrew | C77: 2.565336219 | D77: 6.060606061 | E77: 0.1625090558 | G77: C-LOff-Lgt-LPD Int-All-All-C | I77: -0.183418635 | J77: 0.4545454545 | O77: -0.01378368712 | P77: C-LOff-HVAC-ER-All-All-C
A78: All Btype_NEW_LINEAR_Fixture_from_LFTube_to_LEDPanel_CONTR | B78: Small Off_NEW_LINEAR_Fixture_from_LFTube_to_LEDPanel_CONTR | C78: 16.07326538 | D78: 20.76923077 | E78: 7.531655993 | G78: C-SOff-Lgt-LPD Int-All-All-C | I78: -1.778194511 | J78: 12.30769231 | O78: -0.2003666857 | P78: C-SOff-HVAC-ER-All-All-C
A79: All Btype_NR_LINEAR_Fixture_from_LFTube_to_LEDPanel | B79: Small Off_NR_LINEAR_Fixture_from_LFTube_to_LEDPanel | C79: 6.726165858 | D79: 20.76923077 | E79: 1.734290068 | G79: C-SOff-Lgt-LPD Int-All-All-C | I79: -1.034282045 | J79: 12.30769231 | O79: -0.08384727859 | P79: C-SOff-HVAC-ER-All-All-C
A80: All Btype_NR_LINEAR_Fixture_from_LFTube_to_LEDPanel_RDX | B80: Small Off_NR_LINEAR_Fixture_from_LFTube_to_LEDPanel_RDX | C80: 2.024132018 | D80: 20.76923077 | E80: 1.073883749 | G80: C-SOff-Lgt-LPD Int-All-All-C | I80: -0.2585705112 | J80: 12.30769231 | O80: -0.02523249721 | P80: C-SOff-HVAC-ER-All-All-C
A81: All Btype_NR_LINEAR_Fixture_from_LFTube_to_LEDPanel_CONTR | B81: Small Off_NR_LINEAR_Fixture_from_LFTube_to_LEDPanel_CONTR | C81: 25.34681419 | D81: 20.76923077 | E81: 11.9894687 | G81: C-SOff-Lgt-LPD Int-All-All-C | I81: -2.830666649 | J81: 12.30769231 | O81: -0.3159692216 | P81: C-SOff-HVAC-ER-All-All-C
A82: All Btype_NR_LINEAR_Lamp_from_LFTube_to_LEDTube_RDX | B82: Small Off_NR_LINEAR_Lamp_from_LFTube_to_LEDTube_RDX | C82: 0.3761780208 | D82: 19.61538462 | E82: 0.09428563744 | G82: C-SOff-Lgt-LPD Int-All-All-C | I82: -0.05746011359 | J82: 12.30769231 | O82: -0.004689373409 | P82: C-SOff-HVAC-ER-All-All-C
A83: All Btype_NR_LINEAR_Fixture_from_LEDTube_to_LEDPanel_CONTR | B83: Small Off_NR_LINEAR_Fixture_from_LEDTube_to_LEDPanel_CONTR | C83: 6.972849743 | D83: 20.76923077 | E83: 3.542144661 | G83: C-SOff-Lgt-LPD Int-All-All-C | I83: -5.465466281 | J83: 19.61538462 | O83: -0.08692239938 | P83: C-SOff-HVAC-ER-All-All-C
A84: All Btype_RETRO_LINEAR_Fixture_from_LFTube_to_LEDPanel | B84: Small Off_RETRO_LINEAR_Fixture_from_LFTube_to_LEDPanel | C84: 0.747351762 | D84: 20.76923077 | E84: 1.036924512 | G84: C-SOff-Lgt-LPD Int-All-All-C | I84: -0.1149202272 | J84: 12.30769231 | O84: -0.009316364288 | P84: C-SOff-HVAC-ER-All-All-C
A85: All Btype_RETRO_LINEAR_Fixture_from_LFTube_to_LEDPanel_RDX | B85: Small Off_RETRO_LINEAR_Fixture_from_LFTube_to_LEDPanel_RDX | C85: 0.2249035575 | D85: 20.76923077 | E85: 0.2188194823 | G85: C-SOff-Lgt-LPD Int-All-All-C | I85: -0.0287300568 | J85: 12.30769231 | O85: -0.002803610801 | P85: C-SOff-HVAC-ER-All-All-C
A86: All Btype_RETRO_LINEAR_Fixture_from_LFTube_to_LEDPanel_CONTR | B86: Small Off_RETRO_LINEAR_Fixture_from_LFTube_to_LEDPanel_CONTR | C86: 2.816312688 | D86: 20.76923077 | E86: 3.642675401 | G86: C-SOff-Lgt-LPD Int-All-All-C | I86: -0.3145185165 | J86: 12.30769231 | O86: -0.03510769129 | P86: C-SOff-HVAC-ER-All-All-C
A87: All Btype_RETRO_LINEAR_Lamp_from_LFTube_to_LEDTube_RDX | B87: Small Off_RETRO_LINEAR_Lamp_from_LFTube_to_LEDTube_RDX | C87: 3.385602188 | D87: 19.61538462 | E87: 1.365711759 | G87: C-SOff-Lgt-LPD Int-All-All-C | I87: -0.5171410223 | J87: 12.30769231 | O87: -0.04220436068 | P87: C-SOff-HVAC-ER-All-All-C
A88: All Btype_RETRO_LINEAR_Fixture_from_LEDTube_to_LEDPanel_CONTR | B88: Small Off_RETRO_LINEAR_Fixture_from_LEDTube_to_LEDPanel_CONTR | C88: 0 | D88: 20.76923077 | E88: 0 | G88: C-SOff-Lgt-LPD Int-All-All-C | I88: 0 | J88: 19.61538462 | O88: 0 | P88: C-SOff-HVAC-ER-All-All-C
A89: All Btype_NEW_HIGHBAY_Fixture_from_LFTube_to_LEDPanel_CONTR | B89: Small Off_NEW_HIGHBAY_Fixture_from_LFTube_to_LEDPanel_CONTR | C89: 0 | D89: 21.15384615 | E89: 0 | G89: C-SOff-Lgt-LPD Int-All-All-C | I89: 0 | J89: 10.38461538 | O89: 0 | P89: C-SOff-HVAC-ER-All-All-C
A90: All Btype_NR_HIGHBAY_Fixture_from_LFTube_to_LEDPanel | B90: Small Off_NR_HIGHBAY_Fixture_from_LFTube_to_LEDPanel | C90: 0 | D90: 21.15384615 | E90: 0 | G90: C-SOff-Lgt-LPD Int-All-All-C | I90: 0 | J90: 10.38461538 | O90: 0 | P90: C-SOff-HVAC-ER-All-All-C
A91: All Btype_NR_HIGHBAY_Fixture_from_LFTube_to_LEDPanel_CONTR | B91: Small Off_NR_HIGHBAY_Fixture_from_LFTube_to_LEDPanel_CONTR | C91: 0 | D91: 21.15384615 | E91: 0 | G91: C-SOff-Lgt-LPD Int-All-All-C | I91: 0 | J91: 10.38461538 | O91: 0 | P91: C-SOff-HVAC-ER-All-All-C
A92: All Btype_NR_HIGHBAY_Fixture_from_HID_to_LEDPanel | B92: Small Off_NR_HIGHBAY_Fixture_from_HID_to_LEDPanel | C92: 0 | D92: 21.15384615 | E92: 0 | G92: C-SOff-Lgt-LPD Int-All-All-C | I92: 0 | J92: 5.769230769 | O92: 0 | P92: C-SOff-HVAC-ER-All-All-C
A93: All Btype_NR_HIGHBAY_Fixture_from_HID_to_LEDPanel_CONTR | B93: Small Off_NR_HIGHBAY_Fixture_from_HID_to_LEDPanel_CONTR | C93: 0 | D93: 21.15384615 | E93: 0 | G93: C-SOff-Lgt-LPD Int-All-All-C | I93: 0 | J93: 5.769230769 | O93: 0 | P93: C-SOff-HVAC-ER-All-All-C
A94: All Btype_RETRO_HIGHBAY_Fixture_from_LFTube_to_LEDPanel | B94: Small Off_RETRO_HIGHBAY_Fixture_from_LFTube_to_LEDPanel | C94: 0 | D94: 21.15384615 | E94: 0 | G94: C-SOff-Lgt-LPD Int-All-All-C | I94: 0 | J94: 10.38461538 | O94: 0 | P94: C-SOff-HVAC-ER-All-All-C
A95: All Btype_RETRO_HIGHBAY_Fixture_from_LFTube_to_LEDPanel_CONTR | B95: Small Off_RETRO_HIGHBAY_Fixture_from_LFTube_to_LEDPanel_CONTR | C95: 0 | D95: 21.15384615 | E95: 0 | G95: C-SOff-Lgt-LPD Int-All-All-C | I95: 0 | J95: 10.38461538 | O95: 0 | P95: C-SOff-HVAC-ER-All-All-C
A96: All Btype_RETRO_HIGHBAY_Fixture_from_HID_to_LEDPanel | B96: Small Off_RETRO_HIGHBAY_Fixture_from_HID_to_LEDPanel | C96: 0 | D96: 21.15384615 | E96: 0 | G96: C-SOff-Lgt-LPD Int-All-All-C | I96: 0 | J96: 5.769230769 | O96: 0 | P96: C-SOff-HVAC-ER-All-All-C
A97: All Btype_RETRO_HIGHBAY_Fixture_from_HID_to_LEDPanel_CONTR | B97: Small Off_RETRO_HIGHBAY_Fixture_from_HID_to_LEDPanel_CONTR | C97: 0 | D97: 21.15384615 | E97: 0 | G97: C-SOff-Lgt-LPD Int-All-All-C | I97: 0 | J97: 5.769230769 | O97: 0 | P97: C-SOff-HVAC-ER-All-All-C
A98: All Btype_NEW_CAN_Fixture_from_CFL_to_LEDPanel | B98: Small Off_NEW_CAN_Fixture_from_CFL_to_LEDPanel | C98: 1.347659428 | D98: 18.07692308 | E98: 0.1869368995 | G98: C-SOff-Lgt-LPD Int-All-All-C | I98: -0.2922542388 | J98: 3.538461538 | O98: -0.01679970104 | P98: C-SOff-HVAC-ER-All-All-C
A99: All Btype_NR_CAN_Lamp_from_CFL_to_LEDScrew | B99: Small Off_NR_CAN_Lamp_from_CFL_to_LEDScrew | C99: 0.9446173552 | D99: 18.07692308 | E99: 0.005981967529 | G99: C-SOff-Lgt-LPD Int-All-All-C | I99: -0.1982648363 | J99: 3.538461538 | O99: -0.01177544477 | P99: C-SOff-HVAC-ER-All-All-C
A100: All Btype_NR_CAN_Lamp_from_Inc/Hal_to_LEDScrew | B100: Small Off_NR_CAN_Lamp_from_Inc/Hal_to_LEDScrew | C100: 0.525326445 | D100: 18.07692308 | E100: 0.01185658978 | G100: C-SOff-Lgt-LPD Int-All-All-C | I100: -0.03322046082 | J100: 1.230769231 | O100: -0.006548633161 | P100: C-SOff-HVAC-ER-All-All-C
A101: All Btype_RETRO_CAN_Lamp_from_CFL_to_LEDScrew | B101: Small Off_RETRO_CAN_Lamp_from_CFL_to_LEDScrew | C101: 0.9446173552 | D101: 18.07692308 | E101: 0.2042468038 | G101: C-SOff-Lgt-LPD Int-All-All-C | I101: -0.1982648363 | J101: 3.538461538 | O101: -0.01177544477 | P101: C-SOff-HVAC-ER-All-All-C
A102: All Btype_RETRO_CAN_Lamp_from_Inc/Hal_to_LEDScrew | B102: Small Off_RETRO_CAN_Lamp_from_Inc/Hal_to_LEDScrew | C102: 0.525326445 | D102: 18.07692308 | E102: 0.0450770506 | G102: C-SOff-Lgt-LPD Int-All-All-C | I102: -0.03322046082 | J102: 1.230769231 | O102: -0.006548633161 | P102: C-SOff-HVAC-ER-All-All-C
A103: All Btype_NEW_DISP_Fixture_from_CFL_to_LEDPanel | B103: Small Off_NEW_DISP_Fixture_from_CFL_to_LEDPanel | C103: 0.182063457 | D103: 12.30769231 | E103: -0.0360175917 | G103: C-SOff-Lgt-LPD Int-All-All-C | I103: -0.1923921311 | J103: 3.538461538 | O103: -0.002269573145 | P103: C-SOff-HVAC-ER-All-All-C
A104: All Btype_NR_DISP_Lamp_from_CFL_to_LEDScrew | B104: Small Off_NR_DISP_Lamp_from_CFL_to_LEDScrew | C104: 0.01693155976 | D104: 12.30769231 | E104: 0.0001094582504 | G104: C-SOff-Lgt-LPD Int-All-All-C | I104: -0.01128439931 | J104: 3.538461538 | O104: -0.0002110660424 | P104: C-SOff-HVAC-ER-All-All-C
A105: All Btype_NR_DISP_Lamp_from_Inc/Hal_to_LEDScrew | B105: Small Off_NR_DISP_Lamp_from_Inc/Hal_to_LEDScrew | C105: 0.7479532016 | D105: 12.30769231 | E105: 0.02502104484 | G105: C-SOff-Lgt-LPD Int-All-All-C | I105: -0.05783880862 | J105: 1.230769231 | O105: -0.009323861736 | P105: C-SOff-HVAC-ER-All-All-C
A106: All Btype_RETRO_DISP_Lamp_from_CFL_to_LEDScrew | B106: Small Off_RETRO_DISP_Lamp_from_CFL_to_LEDScrew | C106: 0.01693155976 | D106: 12.30769231 | E106: 0.01139385756 | G106: C-SOff-Lgt-LPD Int-All-All-C | I106: -0.01128439931 | J106: 3.538461538 | O106: -0.0002110660424 | P106: C-SOff-HVAC-ER-All-All-C
A107: All Btype_RETRO_DISP_Lamp_from_Inc/Hal_to_LEDScrew | B107: Small Off_RETRO_DISP_Lamp_from_Inc/Hal_to_LEDScrew | C107: 0.7479532016 | D107: 12.30769231 | E107: 0.08285985346 | G107: C-SOff-Lgt-LPD Int-All-All-C | I107: -0.05783880862 | J107: 1.230769231 | O107: -0.009323861736 | P107: C-SOff-HVAC-ER-All-All-C
A108: All Btype_NEW_OTHER_Fixture_from_CFL_to_LEDPanel | B108: Small Off_NEW_OTHER_Fixture_from_CFL_to_LEDPanel | C108: 0.1450766931 | D108: 19.23076923 | E108: 0.05808688983 | G108: C-SOff-Lgt-LPD Int-All-All-C | I108: -0.140057856 | J108: 4.230769231 | O108: -0.001808502223 | P108: C-SOff-HVAC-ER-All-All-C
A109: All Btype_NR_OTHER_Lamp_from_CFL_to_LEDScrew | B109: Small Off_NR_OTHER_Lamp_from_CFL_to_LEDScrew | C109: 1.240043733 | D109: 7.692307692 | E109: -0.4174873647 | G109: C-SOff-Lgt-LPD Int-All-All-C | I109: -1.208473203 | J109: 4.230769231 | O109: -0.01545818145 | P109: C-SOff-HVAC-ER-All-All-C
A110: All Btype_NR_OTHER_Lamp_from_Inc/Hal_to_LEDScrew | B110: Small Off_NR_OTHER_Lamp_from_Inc/Hal_to_LEDScrew | C110: 1.818183286 | D110: 7.692307692 | E110: -0.02018106279 | G110: C-SOff-Lgt-LPD Int-All-All-C | I110: -0.1770280959 | J110: 0.5769230769 | O110: -0.02266517415 | P110: C-SOff-HVAC-ER-All-All-C
A111: All Btype_RETRO_OTHER_Lamp_from_CFL_to_LEDScrew | B111: Small Off_RETRO_OTHER_Lamp_from_CFL_to_LEDScrew | C111: 1.240043733 | D111: 7.692307692 | E111: 0.7909858383 | G111: C-SOff-Lgt-LPD Int-All-All-C | I111: -1.208473203 | J111: 4.230769231 | O111: -0.01545818145 | P111: C-SOff-HVAC-ER-All-All-C
A112: All Btype_RETRO_OTHER_Lamp_from_Inc/Hal_to_LEDScrew | B112: Small Off_RETRO_OTHER_Lamp_from_Inc/Hal_to_LEDScrew | C112: 1.818183286 | D112: 7.692307692 | E112: 0.1568470331 | G112: C-SOff-Lgt-LPD Int-All-All-C | I112: -0.1770280959 | J112: 0.5769230769 | O112: -0.02266517415 | P112: C-SOff-HVAC-ER-All-All-C
A113: All Btype_NEW_LINEAR_Fixture_from_LFTube_to_LEDPanel_CONTR | B113: Xlarge Ret_NEW_LINEAR_Fixture_from_LFTube_to_LEDPanel_CONTR | C113: 46.41000583 | D113: 9 | E113: 7.510360783 | G113: C-Ret-Lgt-LPD Int-All-All-C | I113: -1.773166796 | J113: 5.333333333 | O113: -0.6306488141 | P113: C-Ret-HVAC-ER-All-All-C
A114: All Btype_NR_LINEAR_Fixture_from_LFTube_to_LEDPanel | B114: Xlarge Ret_NR_LINEAR_Fixture_from_LFTube_to_LEDPanel | C114: 11.85878466 | D114: 9 | E114: 1.145391565 | G114: C-Ret-Lgt-LPD Int-All-All-C | I114: -0.6830794639 | J114: 5.333333333 | O114: -0.1611447435 | P114: C-Ret-HVAC-ER-All-All-C
A115: All Btype_NR_LINEAR_Fixture_from_LFTube_to_LEDPanel_RDX | B115: Xlarge Ret_NR_LINEAR_Fixture_from_LFTube_to_LEDPanel_RDX | C115: 3.568711542 | D115: 9 | E115: 0.709233946 | G115: C-Ret-Lgt-LPD Int-All-All-C | I115: -0.170769866 | J115: 5.333333333 | O115: -0.04849393275 | P115: C-Ret-HVAC-ER-All-All-C
A116: All Btype_NR_LINEAR_Fixture_from_LFTube_to_LEDPanel_CONTR | B116: Xlarge Ret_NR_LINEAR_Fixture_from_LFTube_to_LEDPanel_CONTR | C116: 48.65594938 | D116: 9 | E116: 7.918304191 | G116: C-Ret-Lgt-LPD Int-All-All-C | I116: -1.869480638 | J116: 5.333333333 | O116: -0.6611681301 | P116: C-Ret-HVAC-ER-All-All-C
A117: All Btype_NR_LINEAR_Lamp_from_LFTube_to_LEDTube_RDX | B117: Xlarge Ret_NR_LINEAR_Lamp_from_LFTube_to_LEDTube_RDX | C117: 0.6632328489 | D117: 8.5 | E117: 0.06226984507 | G117: C-Ret-Lgt-LPD Int-All-All-C | I117: -0.03794885911 | J117: 5.333333333 | O117: -0.00901243174 | P117: C-Ret-HVAC-ER-All-All-C
A118: All Btype_NR_LINEAR_Fixture_from_LEDTube_to_LEDPanel_CONTR | B118: Xlarge Ret_NR_LINEAR_Fixture_from_LEDTube_to_LEDPanel_CONTR | C118: 9.925802183 | D118: 9 | E118: 1.579051804 | G118: C-Ret-Lgt-LPD Int-All-All-C | I118: -2.43644888 | J118: 8.5 | O118: -0.1348781424 | P118: C-Ret-HVAC-ER-All-All-C
A119: All Btype_RETRO_LINEAR_Fixture_from_LFTube_to_LEDPanel | B119: Xlarge Ret_RETRO_LINEAR_Fixture_from_LFTube_to_LEDPanel | C119: 1.31764274 | D119: 9 | E119: 0.6848246508 | G119: C-Ret-Lgt-LPD Int-All-All-C | I119: -0.07589771821 | J119: 5.333333333 | O119: -0.0179049715 | P119: C-Ret-HVAC-ER-All-All-C
A120: All Btype_RETRO_LINEAR_Fixture_from_LFTube_to_LEDPanel_RDX | B120: Xlarge Ret_RETRO_LINEAR_Fixture_from_LFTube_to_LEDPanel_RDX | C120: 0.3965235046 | D120: 9 | E120: 0.1445167645 | G120: C-Ret-Lgt-LPD Int-All-All-C | I120: -0.01897442955 | J120: 5.333333333 | O120: -0.00538821475 | P120: C-Ret-HVAC-ER-All-All-C
A121: All Btype_RETRO_LINEAR_Fixture_from_LFTube_to_LEDPanel_CONTR | B121: Xlarge Ret_RETRO_LINEAR_Fixture_from_LFTube_to_LEDPanel_CONTR | C121: 5.406216597 | D121: 9 | E121: 2.405762309 | G121: C-Ret-Lgt-LPD Int-All-All-C | I121: -0.2077200709 | J121: 5.333333333 | O121: -0.07346312557 | P121: C-Ret-HVAC-ER-All-All-C
A122: All Btype_RETRO_LINEAR_Lamp_from_LFTube_to_LEDTube_RDX | B122: Xlarge Ret_RETRO_LINEAR_Lamp_from_LFTube_to_LEDTube_RDX | C122: 5.96909564 | D122: 8.5 | E122: 0.9019683376 | G122: C-Ret-Lgt-LPD Int-All-All-C | I122: -0.341539732 | J122: 5.333333333 | O122: -0.08111188566 | P122: C-Ret-HVAC-ER-All-All-C
A123: All Btype_RETRO_LINEAR_Fixture_from_LEDTube_to_LEDPanel_CONTR | B123: Xlarge Ret_RETRO_LINEAR_Fixture_from_LEDTube_to_LEDPanel_CONTR | C123: 0 | D123: 9 | E123: 0 | G123: C-Ret-Lgt-LPD Int-All-All-C | I123: 0 | J123: 8.5 | O123: 0 | P123: C-Ret-HVAC-ER-All-All-C
A124: All Btype_NEW_HIGHBAY_Fixture_from_LFTube_to_LEDPanel_CONTR | B124: Xlarge Ret_NEW_HIGHBAY_Fixture_from_LFTube_to_LEDPanel_CONTR | C124: 13.56076478 | D124: 9.166666667 | E124: 2.99255736 | G124: C-Ret-Lgt-LPD Int-All-All-C | I124: -0.8211478381 | J124: 4.5 | O124: -0.1842723369 | P124: C-Ret-HVAC-ER-All-All-C
A125: All Btype_NR_HIGHBAY_Fixture_from_LFTube_to_LEDPanel | B125: Xlarge Ret_NR_HIGHBAY_Fixture_from_LFTube_to_LEDPanel | C125: 1.922508844 | D125: 9.166666667 | E125: 0.6615067757 | G125: C-Ret-Lgt-LPD Int-All-All-C | I125: -0.2080237236 | J125: 4.5 | O125: -0.02612427861 | P125: C-Ret-HVAC-ER-All-All-C
A126: All Btype_NR_HIGHBAY_Fixture_from_LFTube_to_LEDPanel_CONTR | B126: Xlarge Ret_NR_HIGHBAY_Fixture_from_LFTube_to_LEDPanel_CONTR | C126: 10.78763618 | D126: 9.166666667 | E126: 2.394041338 | G126: C-Ret-Lgt-LPD Int-All-All-C | I126: -0.6569170219 | J126: 4.5 | O126: -0.1465892934 | P126: C-Ret-HVAC-ER-All-All-C
A127: All Btype_NR_HIGHBAY_Fixture_from_HID_to_LEDPanel | B127: Xlarge Ret_NR_HIGHBAY_Fixture_from_HID_to_LEDPanel | C127: 0 | D127: 9.166666667 | E127: 0 | G127: C-Ret-Lgt-LPD Int-All-All-C | I127: 0 | J127: 2.5 | O127: 0 | P127: C-Ret-HVAC-ER-All-All-C
A128: All Btype_NR_HIGHBAY_Fixture_from_HID_to_LEDPanel_CONTR | B128: Xlarge Ret_NR_HIGHBAY_Fixture_from_HID_to_LEDPanel_CONTR | C128: 0 | D128: 9.166666667 | E128: 0 | G128: C-Ret-Lgt-LPD Int-All-All-C | I128: 0 | J128: 2.5 | O128: 0 | P128: C-Ret-HVAC-ER-All-All-C
A129: All Btype_RETRO_HIGHBAY_Fixture_from_LFTube_to_LEDPanel | B129: Xlarge Ret_RETRO_HIGHBAY_Fixture_from_LFTube_to_LEDPanel | C129: 0.2136120938 | D129: 9.166666667 | E129: 0.1361438082 | G129: C-Ret-Lgt-LPD Int-All-All-C | I129: -0.02311374707 | J129: 4.5 | O129: -0.002902697623 | P129: C-Ret-HVAC-ER-All-All-C
A130: All Btype_RETRO_HIGHBAY_Fixture_from_LFTube_to_LEDPanel_CONTR | B130: Xlarge Ret_RETRO_HIGHBAY_Fixture_from_LFTube_to_LEDPanel_CONTR | C130: 1.198626242 | D130: 9.166666667 | E130: 0.4638247677 | G130: C-Ret-Lgt-LPD Int-All-All-C | I130: -0.07299078021 | J130: 4.5 | O130: -0.01628769927 | P130: C-Ret-HVAC-ER-All-All-C
A131: All Btype_RETRO_HIGHBAY_Fixture_from_HID_to_LEDPanel | B131: Xlarge Ret_RETRO_HIGHBAY_Fixture_from_HID_to_LEDPanel | C131: 0 | D131: 9.166666667 | E131: 0 | G131: C-Ret-Lgt-LPD Int-All-All-C | I131: 0 | J131: 2.5 | O131: 0 | P131: C-Ret-HVAC-ER-All-All-C
A132: All Btype_RETRO_HIGHBAY_Fixture_from_HID_to_LEDPanel_CONTR | B132: Xlarge Ret_RETRO_HIGHBAY_Fixture_from_HID_to_LEDPanel_CONTR | C132: 0 | D132: 9.166666667 | E132: 0 | G132: C-Ret-Lgt-LPD Int-All-All-C | I132: 0 | J132: 2.5 | O132: 0 | P132: C-Ret-HVAC-ER-All-All-C
A133: All Btype_NEW_CAN_Fixture_from_CFL_to_LEDPanel | B133: Xlarge Ret_NEW_CAN_Fixture_from_CFL_to_LEDPanel | C133: 1.448149749 | D133: 7.833333333 | E133: 0.07553202546 | G133: C-Ret-Lgt-LPD Int-All-All-C | I133: -0.1180855929 | J133: 1.533333333 | O133: -0.01967838413 | P133: C-Ret-HVAC-ER-All-All-C
A134: All Btype_NR_CAN_Lamp_from_CFL_to_LEDScrew | B134: Xlarge Ret_NR_CAN_Lamp_from_CFL_to_LEDScrew | C134: 0.7178975669 | D134: 7.833333333 | E134: 0.001702982735 | G134: C-Ret-Lgt-LPD Int-All-All-C | I134: -0.05644323401 | J134: 1.533333333 | O134: -0.009755250858 | P134: C-Ret-HVAC-ER-All-All-C
A135: All Btype_NR_CAN_Lamp_from_Inc/Hal_to_LEDScrew | B135: Xlarge Ret_NR_CAN_Lamp_from_Inc/Hal_to_LEDScrew | C135: 1.299173461 | D135: 7.833333333 | E135: 0.01098391855 | G135: C-Ret-Lgt-LPD Int-All-All-C | I135: -0.03077536141 | J135: 0.5333333333 | O135: -0.01765399912 | P135: C-Ret-HVAC-ER-All-All-C
A136: All Btype_RETRO_CAN_Lamp_from_CFL_to_LEDScrew | B136: Xlarge Ret_RETRO_CAN_Lamp_from_CFL_to_LEDScrew | C136: 0.7178975669 | D136: 7.833333333 | E136: 0.05814621674 | G136: C-Ret-Lgt-LPD Int-All-All-C | I136: -0.05644323401 | J136: 1.533333333 | O136: -0.009755250858 | P136: C-Ret-HVAC-ER-All-All-C
A137: All Btype_RETRO_CAN_Lamp_from_Inc/Hal_to_LEDScrew | B137: Xlarge Ret_RETRO_CAN_Lamp_from_Inc/Hal_to_LEDScrew | C137: 1.299173461 | D137: 7.833333333 | E137: 0.04175927996 | G137: C-Ret-Lgt-LPD Int-All-All-C | I137: -0.03077536141 | J137: 0.5333333333 | O137: -0.01765399912 | P137: C-Ret-HVAC-ER-All-All-C
A138: All Btype_NEW_DISP_Fixture_from_CFL_to_LEDPanel | B138: Xlarge Ret_NEW_DISP_Fixture_from_CFL_to_LEDPanel | C138: 0.1956393018 | D138: 5.333333333 | E138: -0.01455294091 | G138: C-Ret-Lgt-LPD Int-All-All-C | I138: -0.07773621677 | J138: 1.533333333 | O138: -0.002658471842 | P138: C-Ret-HVAC-ER-All-All-C
A139: All Btype_NR_DISP_Lamp_from_CFL_to_LEDScrew | B139: Xlarge Ret_NR_DISP_Lamp_from_CFL_to_LEDScrew | C139: 0.08511762583 | D139: 5.333333333 | E139: 0.0002061249999 | G139: C-Ret-Lgt-LPD Int-All-All-C | I139: -0.02125008209 | J139: 1.533333333 | O139: -0.001156632688 | P139: C-Ret-HVAC-ER-All-All-C
A140: All Btype_NR_DISP_Lamp_from_Inc/Hal_to_LEDScrew | B140: Xlarge Ret_NR_DISP_Lamp_from_Inc/Hal_to_LEDScrew | C140: 0.869031589 | D140: 5.333333333 | E140: 0.01088995817 | G140: C-Ret-Lgt-LPD Int-All-All-C | I140: -0.02517329755 | J140: 0.5333333333 | O140: -0.01180895652 | P140: C-Ret-HVAC-ER-All-All-C
A141: All Btype_RETRO_DISP_Lamp_from_CFL_to_LEDScrew | B141: Xlarge Ret_RETRO_DISP_Lamp_from_CFL_to_LEDScrew | C141: 0.08511762583 | D141: 5.333333333 | E141: 0.02145620709 | G141: C-Ret-Lgt-LPD Int-All-All-C | I141: -0.02125008209 | J141: 1.533333333 | O141: -0.001156632688 | P141: C-Ret-HVAC-ER-All-All-C
A142: All Btype_RETRO_DISP_Lamp_from_Inc/Hal_to_LEDScrew | B142: Xlarge Ret_RETRO_DISP_Lamp_from_Inc/Hal_to_LEDScrew | C142: 0.869031589 | D142: 5.333333333 | E142: 0.03606325572 | G142: C-Ret-Lgt-LPD Int-All-All-C | I142: -0.02517329755 | J142: 0.5333333333 | O142: -0.01180895652 | P142: C-Ret-HVAC-ER-All-All-C
A143: All Btype_NEW_OTHER_Fixture_from_CFL_to_LEDPanel | B143: Xlarge Ret_NEW_OTHER_Fixture_from_CFL_to_LEDPanel | C143: 0.07512594791 | D143: 8.333333333 | E143: 0.01131027635 | G143: C-Ret-Lgt-LPD Int-All-All-C | I143: -0.02727109442 | J143: 1.833333333 | O143: -0.001020859384 | P143: C-Ret-HVAC-ER-All-All-C
A144: All Btype_NR_OTHER_Lamp_from_CFL_to_LEDScrew | B144: Xlarge Ret_NR_OTHER_Lamp_from_CFL_to_LEDScrew | C144: 0.784235479 | D144: 3.333333333 | E144: -0.09890368046 | G144: C-Ret-Lgt-LPD Int-All-All-C | I144: -0.2862899758 | J144: 1.833333333 | O144: -0.0106566928 | P144: C-Ret-HVAC-ER-All-All-C
A145: All Btype_NR_OTHER_Lamp_from_Inc/Hal_to_LEDScrew | B145: Xlarge Ret_NR_OTHER_Lamp_from_Inc/Hal_to_LEDScrew | C145: 1.854494961 | D145: 3.333333333 | E145: -0.007710661946 | G145: C-Ret-Lgt-LPD Int-All-All-C | I145: -0.06763785519 | J145: 0.25 | O145: -0.02520006251 | P145: C-Ret-HVAC-ER-All-All-C
A146: All Btype_RETRO_OTHER_Lamp_from_CFL_to_LEDScrew | B146: Xlarge Ret_RETRO_OTHER_Lamp_from_CFL_to_LEDScrew | C146: 0.784235479 | D146: 3.333333333 | E146: 0.1873862953 | G146: C-Ret-Lgt-LPD Int-All-All-C | I146: -0.2862899758 | J146: 1.833333333 | O146: -0.0106566928 | P146: C-Ret-HVAC-ER-All-All-C
A147: All Btype_RETRO_OTHER_Lamp_from_Inc/Hal_to_LEDScrew | B147: Xlarge Ret_RETRO_OTHER_Lamp_from_Inc/Hal_to_LEDScrew | C147: 1.854494961 | D147: 3.333333333 | E147: 0.05992719325 | G147: C-Ret-Lgt-LPD Int-All-All-C | I147: -0.06763785519 | J147: 0.25 | O147: -0.02520006251 | P147: C-Ret-HVAC-ER-All-All-C
A148: All Btype_NEW_LINEAR_Fixture_from_LFTube_to_LEDPanel_CONTR | B148: Large Ret_NEW_LINEAR_Fixture_from_LFTube_to_LEDPanel_CONTR | C148: 13.34516393 | D148: 12.27272727 | E148: 3.036435781 | G148: C-Ret-Lgt-LPD Int-All-All-C | I148: -0.7168906075 | J148: 7.272727273 | O148: -0.2610598761 | P148: C-Ret-HVAC-ER-All-All-C
A149: All Btype_NR_LINEAR_Fixture_from_LFTube_to_LEDPanel | B149: Large Ret_NR_LINEAR_Fixture_from_LFTube_to_LEDPanel | C149: 13.44171259 | D149: 12.27272727 | E149: 1.753822843 | G149: C-Ret-Lgt-LPD Int-All-All-C | I149: -1.045930845 | J149: 7.272727273 | O149: -0.2629485739 | P149: C-Ret-HVAC-ER-All-All-C
A150: All Btype_NR_LINEAR_Fixture_from_LFTube_to_LEDPanel_RDX | B150: Large Ret_NR_LINEAR_Fixture_from_LFTube_to_LEDPanel_RDX | C150: 4.045068379 | D150: 12.27272727 | E150: 1.085978571 | G150: C-Ret-Lgt-LPD Int-All-All-C | I150: -0.2614827112 | J150: 7.272727273 | O150: -0.07913016697 | P150: C-Ret-HVAC-ER-All-All-C
A151: All Btype_NR_LINEAR_Fixture_from_LFTube_to_LEDPanel_CONTR | B151: Large Ret_NR_LINEAR_Fixture_from_LFTube_to_LEDPanel_CONTR | C151: 55.15061668 | D151: 12.27272727 | E151: 12.12450239 | G151: C-Ret-Lgt-LPD Int-All-All-C | I151: -2.862547575 | J151: 7.272727273 | O151: -1.078863717 | P151: C-Ret-HVAC-ER-All-All-C
A152: All Btype_NR_LINEAR_Lamp_from_LFTube_to_LEDTube_RDX | B152: Large Ret_NR_LINEAR_Lamp_from_LFTube_to_LEDTube_RDX | C152: 0.7517621398 | D152: 11.59090909 | E152: 0.09534754754 | G152: C-Ret-Lgt-LPD Int-All-All-C | I152: -0.05810726916 | J152: 7.272727273 | O152: -0.01470607121 | P152: C-Ret-HVAC-ER-All-All-C
A153: All Btype_NR_LINEAR_Fixture_from_LEDTube_to_LEDPanel_CONTR | B153: Large Ret_NR_LINEAR_Fixture_from_LEDTube_to_LEDPanel_CONTR | C153: 11.25071278 | D153: 12.27272727 | E153: 2.417843128 | G153: C-Ret-Lgt-LPD Int-All-All-C | I153: -3.73068899 | J153: 11.59090909 | O153: -0.2200879435 | P153: C-Ret-HVAC-ER-All-All-C
A154: All Btype_RETRO_LINEAR_Fixture_from_LFTube_to_LEDPanel | B154: Large Ret_RETRO_LINEAR_Fixture_from_LFTube_to_LEDPanel | C154: 1.493523621 | D154: 12.27272727 | E154: 1.048603074 | G154: C-Ret-Lgt-LPD Int-All-All-C | I154: -0.1162145383 | J154: 7.272727273 | O154: -0.02921650821 | P154: C-Ret-HVAC-ER-All-All-C
A155: All Btype_RETRO_LINEAR_Fixture_from_LFTube_to_LEDPanel_RDX | B155: Large Ret_RETRO_LINEAR_Fixture_from_LFTube_to_LEDPanel_RDX | C155: 0.4494520421 | D155: 12.27272727 | E155: 0.2212839788 | G155: C-Ret-Lgt-LPD Int-All-All-C | I155: -0.02905363458 | J155: 7.272727273 | O155: -0.008792240775 | P155: C-Ret-HVAC-ER-All-All-C
A156: All Btype_RETRO_LINEAR_Fixture_from_LFTube_to_LEDPanel_CONTR | B156: Large Ret_RETRO_LINEAR_Fixture_from_LFTube_to_LEDPanel_CONTR | C156: 6.127846298 | D156: 12.27272727 | E156: 3.683701732 | G156: C-Ret-Lgt-LPD Int-All-All-C | I156: -0.3180608417 | J156: 7.272727273 | O156: -0.1198737463 | P156: C-Ret-HVAC-ER-All-All-C
A157: All Btype_RETRO_LINEAR_Lamp_from_LFTube_to_LEDTube_RDX | B157: Large Ret_RETRO_LINEAR_Lamp_from_LFTube_to_LEDTube_RDX | C157: 6.765859258 | D157: 11.59090909 | E157: 1.38109335 | G157: C-Ret-Lgt-LPD Int-All-All-C | I157: -0.5229654224 | J157: 7.272727273 | O157: -0.1323546409 | P157: C-Ret-HVAC-ER-All-All-C
A158: All Btype_RETRO_LINEAR_Fixture_from_LEDTube_to_LEDPanel_CONTR | B158: Large Ret_RETRO_LINEAR_Fixture_from_LEDTube_to_LEDPanel_CONTR | C158: 0 | D158: 12.27272727 | E158: 0 | G158: C-Ret-Lgt-LPD Int-All-All-C | I158: 0 | J158: 11.59090909 | O158: 0 | P158: C-Ret-HVAC-ER-All-All-C
A159: All Btype_NEW_HIGHBAY_Fixture_from_LFTube_to_LEDPanel_CONTR | B159: Large Ret_NEW_HIGHBAY_Fixture_from_LFTube_to_LEDPanel_CONTR | C159: 3.899388198 | D159: 12.5 | E159: 1.209889712 | G159: C-Ret-Lgt-LPD Int-All-All-C | I159: -0.3319897338 | J159: 6.136363636 | O159: -0.07628035185 | P159: C-Ret-HVAC-ER-All-All-C
A160: All Btype_NR_HIGHBAY_Fixture_from_LFTube_to_LEDPanel | B160: Large Ret_NR_HIGHBAY_Fixture_from_LFTube_to_LEDPanel | C160: 2.179128137 | D160: 12.5 | E160: 1.012898758 | G160: C-Ret-Lgt-LPD Int-All-All-C | I160: -0.3185257945 | J160: 6.136363636 | O160: -0.04262839517 | P160: C-Ret-HVAC-ER-All-All-C
A161: All Btype_NR_HIGHBAY_Fixture_from_LFTube_to_LEDPanel_CONTR | B161: Large Ret_NR_HIGHBAY_Fixture_from_LFTube_to_LEDPanel_CONTR | C161: 12.22758563 | D161: 12.5 | E161: 3.665754588 | G161: C-Ret-Lgt-LPD Int-All-All-C | I161: -1.00587093 | J161: 6.136363636 | O161: -0.2391976605 | P161: C-Ret-HVAC-ER-All-All-C
A162: All Btype_NR_HIGHBAY_Fixture_from_HID_to_LEDPanel | B162: Large Ret_NR_HIGHBAY_Fixture_from_HID_to_LEDPanel | C162: 0 | D162: 12.5 | E162: 0 | G162: C-Ret-Lgt-LPD Int-All-All-C | I162: 0 | J162: 3.409090909 | O162: 0 | P162: C-Ret-HVAC-ER-All-All-C
A163: All Btype_NR_HIGHBAY_Fixture_from_HID_to_LEDPanel_CONTR | B163: Large Ret_NR_HIGHBAY_Fixture_from_HID_to_LEDPanel_CONTR | C163: 0 | D163: 12.5 | E163: 0 | G163: C-Ret-Lgt-LPD Int-All-All-C | I163: 0 | J163: 3.409090909 | O163: 0 | P163: C-Ret-HVAC-ER-All-All-C
A164: All Btype_RETRO_HIGHBAY_Fixture_from_LFTube_to_LEDPanel | B164: Large Ret_RETRO_HIGHBAY_Fixture_from_LFTube_to_LEDPanel | C164: 0.2421253485 | D164: 12.5 | E164: 0.2084633133 | G164: C-Ret-Lgt-LPD Int-All-All-C | I164: -0.03539175495 | J164: 6.136363636 | O164: -0.004736488352 | P164: C-Ret-HVAC-ER-All-All-C
A165: All Btype_RETRO_HIGHBAY_Fixture_from_LFTube_to_LEDPanel_CONTR | B165: Large Ret_RETRO_HIGHBAY_Fixture_from_LFTube_to_LEDPanel_CONTR | C165: 1.358620626 | D165: 12.5 | E165: 0.7102081922 | G165: C-Ret-Lgt-LPD Int-All-All-C | I165: -0.1117634367 | J165: 6.136363636 | O165: -0.02657751784 | P165: C-Ret-HVAC-ER-All-All-C
A166: All Btype_RETRO_HIGHBAY_Fixture_from_HID_to_LEDPanel | B166: Large Ret_RETRO_HIGHBAY_Fixture_from_HID_to_LEDPanel | C166: 0 | D166: 12.5 | E166: 0 | G166: C-Ret-Lgt-LPD Int-All-All-C | I166: 0 | J166: 3.409090909 | O166: 0 | P166: C-Ret-HVAC-ER-All-All-C
A167: All Btype_RETRO_HIGHBAY_Fixture_from_HID_to_LEDPanel_CONTR | B167: Large Ret_RETRO_HIGHBAY_Fixture_from_HID_to_LEDPanel_CONTR | C167: 0 | D167: 12.5 | E167: 0 | G167: C-Ret-Lgt-LPD Int-All-All-C | I167: 0 | J167: 3.409090909 | O167: 0 | P167: C-Ret-HVAC-ER-All-All-C
A168: All Btype_NEW_CAN_Fixture_from_CFL_to_LEDPanel | B168: Large Ret_NEW_CAN_Fixture_from_CFL_to_LEDPanel | C168: 0.416414423 | D168: 10.68181818 | E168: 0.03053756688 | G168: C-Ret-Lgt-LPD Int-All-All-C | I168: -0.04774195672 | J168: 2.090909091 | O168: -0.008145954464 | P168: C-Ret-HVAC-ER-All-All-C
A169: All Btype_NR_CAN_Lamp_from_CFL_to_LEDScrew | B169: Large Ret_NR_CAN_Lamp_from_CFL_to_LEDScrew | C169: 0.8137235843 | D169: 10.68181818 | E169: 0.00260760609 | G169: C-Ret-Lgt-LPD Int-All-All-C | I169: -0.08642584436 | J169: 2.090909091 | O169: -0.01591816925 | P169: C-Ret-HVAC-ER-All-All-C
A170: All Btype_NR_CAN_Lamp_from_Inc/Hal_to_LEDScrew | B170: Large Ret_NR_CAN_Lamp_from_Inc/Hal_to_LEDScrew | C170: 1.472589035 | D170: 10.68181818 | E170: 0.01681856916 | G170: C-Ret-Lgt-LPD Int-All-All-C | I170: -0.04712321401 | J170: 0.7272727273 | O170: -0.02880698304 | P170: C-Ret-HVAC-ER-All-All-C
A171: All Btype_RETRO_CAN_Lamp_from_CFL_to_LEDScrew | B171: Large Ret_RETRO_CAN_Lamp_from_CFL_to_LEDScrew | C171: 0.8137235843 | D171: 10.68181818 | E171: 0.08903345045 | G171: C-Ret-Lgt-LPD Int-All-All-C | I171: -0.08642584436 | J171: 2.090909091 | O171: -0.01591816925 | P171: C-Ret-HVAC-ER-All-All-C
A172: All Btype_RETRO_CAN_Lamp_from_Inc/Hal_to_LEDScrew | B172: Large Ret_RETRO_CAN_Lamp_from_Inc/Hal_to_LEDScrew | C172: 1.472589035 | D172: 10.68181818 | E172: 0.06394178317 | G172: C-Ret-Lgt-LPD Int-All-All-C | I172: -0.04712321401 | J172: 0.7272727273 | O172: -0.02880698304 | P172: C-Ret-HVAC-ER-All-All-C
A173: All Btype_NEW_DISP_Fixture_from_CFL_to_LEDPanel | B173: Large Ret_NEW_DISP_Fixture_from_CFL_to_LEDPanel | C173: 0.05625594107 | D173: 7.272727273 | E173: -0.005883748037 | G173: C-Ret-Lgt-LPD Int-All-All-C | I173: -0.03142872052 | J173: 2.090909091 | O173: -0.00110048622 | P173: C-Ret-HVAC-ER-All-All-C
A174: All Btype_NR_DISP_Lamp_from_CFL_to_LEDScrew | B174: Large Ret_NR_DISP_Lamp_from_CFL_to_LEDScrew | C174: 0.09647925104 | D174: 7.272727273 | E174: 0.0003156184699 | G174: C-Ret-Lgt-LPD Int-All-All-C | I174: -0.03253811231 | J174: 2.090909091 | O174: -0.001887339973 | P174: C-Ret-HVAC-ER-All-All-C
A175: All Btype_NR_DISP_Lamp_from_Inc/Hal_to_LEDScrew | B175: Large Ret_NR_DISP_Lamp_from_Inc/Hal_to_LEDScrew | C175: 0.9850311969 | D175: 7.272727273 | E175: 0.0166746971 | G175: C-Ret-Lgt-LPD Int-All-All-C | I175: -0.03854533735 | J175: 0.7272727273 | O175: -0.01926931161 | P175: C-Ret-HVAC-ER-All-All-C
A176: All Btype_RETRO_DISP_Lamp_from_CFL_to_LEDScrew | B176: Large Ret_RETRO_DISP_Lamp_from_CFL_to_LEDScrew | C176: 0.09647925104 | D176: 7.272727273 | E176: 0.03285373078 | G176: C-Ret-Lgt-LPD Int-All-All-C | I176: -0.03253811231 | J176: 2.090909091 | O176: -0.001887339973 | P176: C-Ret-HVAC-ER-All-All-C
A177: All Btype_RETRO_DISP_Lamp_from_Inc/Hal_to_LEDScrew | B177: Large Ret_RETRO_DISP_Lamp_from_Inc/Hal_to_LEDScrew | C177: 0.9850311969 | D177: 7.272727273 | E177: 0.05522003444 | G177: C-Ret-Lgt-LPD Int-All-All-C | I177: -0.03854533735 | J177: 0.7272727273 | O177: -0.01926931161 | P177: C-Ret-HVAC-ER-All-All-C
A178: All Btype_NEW_OTHER_Fixture_from_CFL_to_LEDPanel | B178: Large Ret_NEW_OTHER_Fixture_from_CFL_to_LEDPanel | C178: 0.0216024125 | D178: 11.36363636 | E178: 0.004572740087 | G178: C-Ret-Lgt-LPD Int-All-All-C | I178: -0.01102569228 | J178: 2.5 | O178: -0.0004225892736 | P178: C-Ret-HVAC-ER-All-All-C
A179: All Btype_NR_OTHER_Lamp_from_CFL_to_LEDScrew | B179: Large Ret_NR_OTHER_Lamp_from_CFL_to_LEDScrew | C179: 0.888916378 | D179: 4.545454545 | E179: -0.1514412532 | G179: C-Ret-Lgt-LPD Int-All-All-C | I179: -0.4383670305 | J179: 2.5 | O179: -0.01738910071 | P179: C-Ret-HVAC-ER-All-All-C
A180: All Btype_NR_OTHER_Lamp_from_Inc/Hal_to_LEDScrew | B180: Large Ret_NR_OTHER_Lamp_from_Inc/Hal_to_LEDScrew | C180: 2.102035662 | D180: 4.545454545 | E180: -0.01180656071 | G180: C-Ret-Lgt-LPD Int-All-All-C | I180: -0.1035670413 | J180: 0.3409090909 | O180: -0.04112030189 | P180: C-Ret-HVAC-ER-All-All-C
A181: All Btype_RETRO_OTHER_Lamp_from_CFL_to_LEDScrew | B181: Large Ret_RETRO_OTHER_Lamp_from_CFL_to_LEDScrew | C181: 0.888916378 | D181: 4.545454545 | E181: 0.2869257773 | G181: C-Ret-Lgt-LPD Int-All-All-C | I181: -0.4383670305 | J181: 2.5 | O181: -0.01738910071 | P181: C-Ret-HVAC-ER-All-All-C
A182: All Btype_RETRO_OTHER_Lamp_from_Inc/Hal_to_LEDScrew | B182: Large Ret_RETRO_OTHER_Lamp_from_Inc/Hal_to_LEDScrew | C182: 2.102035662 | D182: 4.545454545 | E182: 0.09176048055 | G182: C-Ret-Lgt-LPD Int-All-All-C | I182: -0.1035670413 | J182: 0.3409090909 | O182: -0.04112030189 | P182: C-Ret-HVAC-ER-All-All-C
A183: All Btype_NEW_LINEAR_Fixture_from_LFTube_to_LEDPanel_CONTR | B183: Medium Ret_NEW_LINEAR_Fixture_from_LFTube_to_LEDPanel_CONTR | C183: 41.98424874 | D183: 13.84615385 | E183: 11.44700665 | G183: C-Ret-Lgt-LPD Int-All-All-C | I183: -2.702593481 | J183: 8.205128205 | O183: -0.6549546138 | P183: C-Ret-HVAC-ER-All-All-C
A184: All Btype_NR_LINEAR_Fixture_from_LFTube_to_LEDPanel | B184: Medium Ret_NR_LINEAR_Fixture_from_LFTube_to_LEDPanel | C184: 4.723152219 | D184: 13.84615385 | E184: 0.7868115025 | G184: C-Ret-Lgt-LPD Int-All-All-C | I184: -0.4692323532 | J184: 8.205128205 | O184: -0.07368121213 | P184: C-Ret-HVAC-ER-All-All-C
A185: All Btype_NR_LINEAR_Fixture_from_LFTube_to_LEDPanel_RDX | B185: Medium Ret_NR_LINEAR_Fixture_from_LFTube_to_LEDPanel_RDX | C185: 1.421357105 | D185: 13.84615385 | E185: 0.4871988269 | G185: C-Ret-Lgt-LPD Int-All-All-C | I185: -0.1173080883 | J185: 8.205128205 | O185: -0.02217318213 | P185: C-Ret-HVAC-ER-All-All-C
A186: All Btype_NR_LINEAR_Fixture_from_LFTube_to_LEDPanel_CONTR | B186: Medium Ret_NR_LINEAR_Fixture_from_LFTube_to_LEDPanel_CONTR | C186: 19.37883702 | D186: 13.84615385 | E186: 5.439373756 | G186: C-Ret-Lgt-LPD Int-All-All-C | I186: -1.284214862 | J186: 8.205128205 | O186: -0.3023100115 | P186: C-Ret-HVAC-ER-All-All-C
A187: All Btype_NR_LINEAR_Lamp_from_LFTube_to_LEDTube_RDX | B187: Medium Ret_NR_LINEAR_Lamp_from_LFTube_to_LEDTube_RDX | C187: 0.2641543624 | D187: 13.07692308 | E187: 0.04277544192 | G187: C-Ret-Lgt-LPD Int-All-All-C | I187: -0.02606846407 | J187: 8.205128205 | O187: -0.004120810152 | P187: C-Ret-HVAC-ER-All-All-C
A188: All Btype_NR_LINEAR_Fixture_from_LEDTube_to_LEDPanel_CONTR | B188: Medium Ret_NR_LINEAR_Fixture_from_LEDTube_to_LEDPanel_CONTR | C188: 3.953278177 | D188: 13.84615385 | E188: 1.084708637 | G188: C-Ret-Lgt-LPD Int-All-All-C | I188: -1.673686155 | J188: 13.07692308 | O188: -0.06167117096 | P188: C-Ret-HVAC-ER-All-All-C
A189: All Btype_RETRO_LINEAR_Fixture_from_LFTube_to_LEDPanel | B189: Medium Ret_RETRO_LINEAR_Fixture_from_LFTube_to_LEDPanel | C189: 0.524794691 | D189: 13.84615385 | E189: 0.4704311862 | G189: C-Ret-Lgt-LPD Int-All-All-C | I189: -0.05213692814 | J189: 8.205128205 | O189: -0.008186801348 | P189: C-Ret-HVAC-ER-All-All-C
A190: All Btype_RETRO_LINEAR_Fixture_from_LFTube_to_LEDPanel_RDX | B190: Medium Ret_RETRO_LINEAR_Fixture_from_LFTube_to_LEDPanel_RDX | C190: 0.1579285672 | D190: 13.84615385 | E190: 0.09927386939 | G190: C-Ret-Lgt-LPD Int-All-All-C | I190: -0.01303423203 | J190: 8.205128205 | O190: -0.002463686903 | P190: C-Ret-HVAC-ER-All-All-C
A191: All Btype_RETRO_LINEAR_Fixture_from_LFTube_to_LEDPanel_CONTR | B191: Medium Ret_RETRO_LINEAR_Fixture_from_LFTube_to_LEDPanel_CONTR | C191: 2.153204114 | D191: 13.84615385 | E191: 1.652606423 | G191: C-Ret-Lgt-LPD Int-All-All-C | I191: -0.1426905402 | J191: 8.205128205 | O191: -0.03359000128 | P191: C-Ret-HVAC-ER-All-All-C
A192: All Btype_RETRO_LINEAR_Lamp_from_LFTube_to_LEDTube_RDX | B192: Medium Ret_RETRO_LINEAR_Lamp_from_LFTube_to_LEDTube_RDX | C192: 2.377389262 | D192: 13.07692308 | E192: 0.6195951539 | G192: C-Ret-Lgt-LPD Int-All-All-C | I192: -0.2346161766 | J192: 8.205128205 | O192: -0.03708729137 | P192: C-Ret-HVAC-ER-All-All-C
A193: All Btype_RETRO_LINEAR_Fixture_from_LEDTube_to_LEDPanel_CONTR | B193: Medium Ret_RETRO_LINEAR_Fixture_from_LEDTube_to_LEDPanel_CONTR | C193: 0 | D193: 13.84615385 | E193: 0 | G193: C-Ret-Lgt-LPD Int-All-All-C | I193: 0 | J193: 13.07692308 | O193: 0 | P193: C-Ret-HVAC-ER-All-All-C
A194: All Btype_NEW_HIGHBAY_Fixture_from_LFTube_to_LEDPanel_CONTR | B194: Medium Ret_NEW_HIGHBAY_Fixture_from_LFTube_to_LEDPanel_CONTR | C194: 12.26758135 | D194: 14.1025641 | E194: 4.561142265 | G194: C-Ret-Lgt-LPD Int-All-All-C | I194: -1.251562346 | J194: 6.923076923 | O194: -0.1913743664 | P194: C-Ret-HVAC-ER-All-All-C
A195: All Btype_NR_HIGHBAY_Fixture_from_LFTube_to_LEDPanel | B195: Medium Ret_NR_HIGHBAY_Fixture_from_LFTube_to_LEDPanel | C195: 0.7657025716 | D195: 14.1025641 | E195: 0.4544132819 | G195: C-Ret-Lgt-LPD Int-All-All-C | I195: -0.1428991303 | J195: 6.923076923 | O195: -0.0119449662 | P195: C-Ret-HVAC-ER-All-All-C
A196: All Btype_NR_HIGHBAY_Fixture_from_LFTube_to_LEDPanel_CONTR | B196: Medium Ret_NR_HIGHBAY_Fixture_from_LFTube_to_LEDPanel_CONTR | C196: 4.296531997 | D196: 14.1025641 | E196: 1.644554858 | G196: C-Ret-Lgt-LPD Int-All-All-C | I196: -0.4512604116 | J196: 6.923076923 | O196: -0.06702593328 | P196: C-Ret-HVAC-ER-All-All-C
A197: All Btype_NR_HIGHBAY_Fixture_from_HID_to_LEDPanel | B197: Medium Ret_NR_HIGHBAY_Fixture_from_HID_to_LEDPanel | C197: 0 | D197: 14.1025641 | E197: 0 | G197: C-Ret-Lgt-LPD Int-All-All-C | I197: 0 | J197: 3.846153846 | O197: 0 | P197: C-Ret-HVAC-ER-All-All-C
A198: All Btype_NR_HIGHBAY_Fixture_from_HID_to_LEDPanel_CONTR | B198: Medium Ret_NR_HIGHBAY_Fixture_from_HID_to_LEDPanel_CONTR | C198: 0 | D198: 14.1025641 | E198: 0 | G198: C-Ret-Lgt-LPD Int-All-All-C | I198: 0 | J198: 3.846153846 | O198: 0 | P198: C-Ret-HVAC-ER-All-All-C
A199: All Btype_RETRO_HIGHBAY_Fixture_from_LFTube_to_LEDPanel | B199: Medium Ret_RETRO_HIGHBAY_Fixture_from_LFTube_to_LEDPanel | C199: 0.08507806351 | D199: 14.1025641 | E199: 0.09352217839 | G199: C-Ret-Lgt-LPD Int-All-All-C | I199: -0.01587768115 | J199: 6.923076923 | O199: -0.001327218467 | P199: C-Ret-HVAC-ER-All-All-C
A200: All Btype_RETRO_HIGHBAY_Fixture_from_LFTube_to_LEDPanel_CONTR | B200: Medium Ret_RETRO_HIGHBAY_Fixture_from_LFTube_to_LEDPanel_CONTR | C200: 0.4773924441 | D200: 14.1025641 | E200: 0.3186182557 | G200: C-Ret-Lgt-LPD Int-All-All-C | I200: -0.05014004574 | J200: 6.923076923 | O200: -0.00744732592 | P200: C-Ret-HVAC-ER-All-All-C
A201: All Btype_RETRO_HIGHBAY_Fixture_from_HID_to_LEDPanel | B201: Medium Ret_RETRO_HIGHBAY_Fixture_from_HID_to_LEDPanel | C201: 0 | D201: 14.1025641 | E201: 0 | G201: C-Ret-Lgt-LPD Int-All-All-C | I201: 0 | J201: 3.846153846 | O201: 0 | P201: C-Ret-HVAC-ER-All-All-C
... 915 more rows

Sheet M_Input_Out
A1: Shaped Savings Results; By Category and sorted by TRC BC ratio
P2: Savings Allocation by Category and Month for Segments 1 | AC2: Savings Allocation by Category and Month for Segments 2
A3: Category | B3: Measure | C3: Busbar Savings | D3: First Cost | E3: Admin Cost | F3: First Year Program Cost | G3: PV Cost | H3: PV Benefits | I3: Unit Program Cost: First Year Program Cost in $/average annual kW saved | J3: Utility System Net Levelized Cost (Net of T&D Capacity Benefits, Act Credit & Risk-Mitigation) in mills/kWh | K3: TRC Net Levelized Cost (Net of All Benefits) in mills/kWh | L3: TRC B/C Ratio | M3: Net Electric & Gas System CO2 Avoided (Lifetime Tons) | N3: Wholesale KW - Peak 1 | O3: Wholesale KW - Peak 2 | P3: Jan | Q3: Feb | R3: Mar | S3: Apr | T3: May | U3: Jun | V3: Jul | W3: Aug | X3: Sep | Y3: Oct | Z3: Nov | AA3: Dec | AC3: Jan | AD3: Feb | AE3: Mar | AF3: Apr | AG3: May | AH3: Jun | AI3: Jul | AJ3: Aug | AK3: Sep | AL3: Oct | AM3: Nov | AN3: Dec
A4: All Btype_RETRO_LINEAR_Fixture_from_LEDTube_to_LEDPanel_CONTR | C4: 0 | D4: 0 | E4: 0 | F4: 0 | G4: 0 | H4: 0 | I4: 0 | J4: 9999 | K4: 9999 | L4: 9999 | M4: 0 | N4: 0 | O4: 0 | P4: 0 | Q4: 0 | R4: 0 | S4: 0 | T4: 0 | U4: 0 | V4: 0 | W4: 0 | X4: 0 | Y4: 0 | Z4: 0 | AA4: 0 | AC4: 0 | AD4: 0 | AE4: 0 | AF4: 0 | AG4: 0 | AH4: 0 | AI4: 0 | AJ4: 0 | AK4: 0 | AL4: 0 | AM4: 0 | AN4: 0
A5: All Btype_NEW_DISP_Fixture_from_CFL_to_LEDPanel | C5: 5.945295636 | D5: -0.7564851925 | E5: -0.1512970385 | F5: -0.907782231 | G5: -15.87251313 | H5: 0.2193812258 | I5: -1337.557092 | J5: -8.085800308 | K5: -189.834878 | L5: 49.65985689 | M5: 0.04943816309 | N5: 0.001046411361 | O5: 0.0008931621057 | P5: 0.06368674547 | Q5: 0.05932208549 | R5: 0.06767992497 | S5: 0.05773698287 | T5: 0.05511405888 | U5: 0.05574968618 | V5: 0.05565756431 | W5: 0.05802459352 | X5: 0.05352772998 | Y5: 0.0592900736 | Z5: 0.06027443842 | AA5: 0.06484364029 | AC5: 0.4460848745 | AD5: 0.4044688583 | AE5: 0.4445822729 | AF5: 0.4332025843 | AG5: 0.4440628835 | AH5: 0.4334894248 | AI5: 0.4431648788 | AJ5: 0.4491218845 | AK5: 0.4292086672 | AL5: 0.447449641 | AM5: 0.4217959405 | AN5: 0.4377562017
A6: All Btype_NR_OTHER_Lamp_from_Inc/Hal_to_LEDScrew | C6: 58.09953483 | D6: -0.3980887958 | E6: -0.07961775915 | F6: -0.4777065549 | G6: -111.8367693 | H6: 1.50208843 | I6: -72.02655638 | J6: -1.945015589 | K6: -135.4291803 | L6: 30.90733464 | M6: 0.4733588644 | N6: 0.009348788282 | O6: 0.008572536723 | P6: 0.6782211862 | Q6: 0.631392924 | R6: 0.7210566494 | S6: 0.627143213 | T6: 0.6039756399 | U6: 0.6119851271 | V6: 0.6120208608 | W6: 0.6373775814 | X6: 0.5870041729 | Y6: 0.6460684541 | Z6: 0.6446459772 | AA6: 0.696210353 | AC6: 4.310579583 | AD6: 3.886013177 | AE6: 4.254337856 | AF6: 4.144580423 | AG6: 4.275066599 | AH6: 4.163436944 | AI6: 4.291406516 | AJ6: 4.317850294 | AK6: 4.136727756 | AL6: 4.285887827 | AM6: 4.094501989 | AN6: 4.242043728
A7: All Btype_NR_OTHER_Lamp_from_CFL_to_LEDScrew | C7: 26.84233084 | D7: -5.847774384 | E7: -1.169554877 | F7: -7.017329261 | G7: -50.4957401 | H7: 0.5593542225 | I7: -2290.106798 | J7: -12.54117388 | K7: -131.922393 | L7: 27.9018163 | M7: 0.216042287 | N7: 0.004449307806 | O7: 0.003946776578 | P7: 0.3141639262 | Q7: 0.2923783845 | R7: 0.3335846076 | S7: 0.2915960861 | T7: 0.2809879044 | U7: 0.2842020362 | V7: 0.2837961972 | W7: 0.2956157692 | X7: 0.2731970828 | Y7: 0.3005532694 | Z7: 0.2982856982 | AA7: 0.3223207577 | AC7: 1.99094914 | AD7: 1.796070756 | AE7: 1.96911425 | AF7: 1.91805061 | AG7: 1.974191107 | AH7: 1.921228596 | AI7: 1.971777611 | AJ7: 1.988410204 | AK7: 1.910816647 | AL7: 1.982736383 | AM7: 1.889168891 | AN7: 1.959134928
A8: All Btype_NR_DISP_Lamp_from_CFL_to_LEDScrew | C8: 0.5375319255 | D8: 0.00212844126 | E8: 0.0004256882521 | F8: 0.002554129512 | G8: -0.7933604061 | H8: 0.0007496222911 | I8: 41.62389891 | J8: -1.4705431 | K8: -101.3618959 | L8: 15.93648341 | M8: 0.004144391988 | N8: 8.6296159e-05 | O8: 8.577582031e-05 | P8: 0.006243032856 | Q8: 0.005828422228 | R8: 0.006611297266 | S8: 0.005539496439 | T8: 0.005265224173 | U8: 0.005301878188 | V8: 0.005282156148 | W8: 0.005521824345 | X8: 0.005130007686 | Y8: 0.005735784174 | Z8: 0.005928464192 | AA8: 0.00637793061 | AC8: 0.03997667347 | AD8: 0.03614707469 | AE8: 0.03949389833 | AF8: 0.03873813038 | AG8: 0.03983395123 | AH8: 0.0387786253 | AI8: 0.03972332717 | AJ8: 0.040142729 | AK8: 0.03852657112 | AL8: 0.04021524073 | AM8: 0.03792052639 | AN8: 0.03926965939
A9: All Btype_NR_HIGHBAY_Fixture_from_HID_to_LEDPanel | C9: 0.08515565359 | D9: -0.02407198129 | E9: -0.004814396258 | F9: -0.02888637755 | G9: -0.09188780977 | H9: 0.0007358652586 | I9: -2971.55452 | J9: -15.94718989 | K9: -73.34657571 | L9: 13.02367803 | M9: 0.0006537882969 | N9: 1.960122344e-05 | O9: 1.17568187e-05 | P9: 0.0007830085637 | Q9: 0.0007262667267 | R9: 0.0008218361582 | S9: 0.0006918466264 | T9: 0.000656656487 | U9: 0.0006535880909 | V9: 0.0006462587616 | W9: 0.0006863466032 | X9: 0.0006496694822 | Y9: 0.0007238344215 | Z9: 0.0007421325562 | AA9: 0.0007872148072 | AC9: 0.006559237933 | AD9: 0.006012311702 | AE9: 0.006650637224 | AF9: 0.00643683921 | AG9: 0.006501251758 | AH9: 0.006281003244 | AI9: 0.006138897768 | AJ9: 0.006436963303 | AK9: 0.00632040989 | AL9: 0.006708813167 | AM9: 0.006164989276 | AN9: 0.006375639828
A10: All Btype_NR_HIGHBAY_Fixture_from_HID_to_LEDPanel_CONTR | C10: 0.3986187744 | D10: -0.06177131788 | E10: -0.01235426358 | F10: -0.07412558145 | G10: -0.2867923009 | H10: 0.003402095895 | I10: -1628.975189 | J10: -9.74214781 | K10: -47.46219826 | L10: 9.033804721 | M10: 0.003059506544 | N10: 9.190814255e-05 | O10: 5.484940717e-05 | P10: 0.003659153051 | Q10: 0.003394227858 | R10: 0.003841252179 | S10: 0.003234687251 | T10: 0.003070982511 | U10: 0.003054910489 | V10: 0.003018524423 | W10: 0.003206449599 | X10: 0.003037763233 | Y10: 0.003384560546 | Z10: 0.003468638375 | AA10: 0.003678122633 | AC10: 0.03071675367 | AD10: 0.02816116761 | AE10: 0.03115541382 | AF10: 0.03014997274 | AG10: 0.0304518933 | AH10: 0.02939127794 | AI10: 0.02868733779 | AJ10: 0.03009982177 | AK10: 0.02960472109 | AL10: 0.03142776409 | AM10: 0.02887535487 | AN10: 0.02984802358
A11: All Btype_RETRO_OTHER_Lamp_from_Inc/Hal_to_LEDScrew | C11: 58.09953483 | D11: 3.093942435 | E11: 0.6187884869 | F11: 3.712730922 | G11: -100.643615 | H11: 1.50208843 | I11: 559.7897292 | J11: 1.063781637 | K11: -121.5653368 | L11: 8.45218579 | M11: 0.4733588644 | N11: 0.009348788282 | O11: 0.008572536723 | P11: 0.6782211862 | Q11: 0.631392924 | R11: 0.7210566494 | S11: 0.627143213 | T11: 0.6039756399 | U11: 0.6119851271 | V11: 0.6120208608 | W11: 0.6373775814 | X11: 0.5870041729 | Y11: 0.6460684541 | Z11: 0.6446459772 | AA11: 0.696210353 | AC11: 4.310579583 | AD11: 3.886013177 | AE11: 4.254337856 | AF11: 4.144580423 | AG11: 4.275066599 | AH11: 4.163436944 | AI11: 4.291406516 | AJ11: 4.317850294 | AK11: 4.136727756 | AL11: 4.285887827 | AM11: 4.094501989 | AN11: 4.242043728
A12: All Btype_NR_CAN_Lamp_from_CFL_to_LEDScrew | C12: 13.76537861 | D12: 0.05770422683 | E12: 0.01154084537 | F12: 0.0692450722 | G12: -7.448798761 | H12: 0.2907572242 | I12: 44.0661205 | J12: -1.477427537 | K12: -35.51423793 | L12: 8.246757775 | M12: 0.1107242465 | N12: 0.00239319524 | O12: 0.002030028491 | P12: 0.1535083224 | Q12: 0.1428968621 | R12: 0.1628914497 | S12: 0.1411251456 | T12: 0.1354189045 | U12: 0.1368012403 | V12: 0.1363958958 | W12: 0.1421245173 | X12: 0.1315979607 | Y12: 0.1451506535 | Z12: 0.1454948585 | AA12: 0.1570471885 | AC12: 1.027679189 | AD12: 0.9297124199 | AE12: 1.021054979 | AF12: 0.9957108738 | AG12: 1.021778204 | AH12: 0.9948195411 | AI12: 1.015144135 | AJ12: 1.028036806 | AK12: 0.9891610442 | AL12: 1.028515217 | AM12: 0.9734013877 | AN12: 1.009911811
A13: All Btype_NR_DISP_Lamp_from_Inc/Hal_to_LEDScrew | C13: 8.335202584 | D13: 0.1790215499 | E13: 0.03580430999 | F13: 0.2148258599 | G13: -4.971733014 | H13: 0.2255191079 | I13: 225.7743005 | J13: -0.6445067236 | K13: -39.92731426 | L13: 6.724392988 | M13: 0.06793443541 | N13: 0.001444921051 | O13: 0.001313207159 | P13: 0.09124591873 | Q13: 0.08511791154 | R13: 0.09672612944 | S13: 0.08137955249 | T13: 0.07720059943 | U13: 0.07790021512 | V13: 0.07764813259 | W13: 0.08098537174 | X13: 0.07505045497 | Y13: 0.0836774104 | Z13: 0.08624536088 | AA13: 0.09286390727 | AC13: 0.6232879352 | AD13: 0.5653002652 | AE13: 0.6206354538 | AF13: 0.607608136 | AG13: 0.6218160715 | AH13: 0.6085154522 | AI13: 0.6220625401 | AJ13: 0.6302891509 | AK13: 0.6011766642 | AL13: 0.6277867122 | AM13: 0.588669315 | AN13: 0.6120139232
A14: All Btype_NR_CAN_Lamp_from_Inc/Hal_to_LEDScrew | C14: 20.03735148 | D14: 0.2731695315 | E14: 0.0546339063 | F14: 0.3278034378 | G14: -10.92354049 | H14: 0.301783542 | I14: 143.3102632 | J14: -0.9160326928 | K14: -35.36300618 | L14: 6.690501497 | M14: 0.1594774877 | N14: 0.003178883522 | O14: 0.002989764564 | P14: 0.2328896786 | Q14: 0.2169460726 | R14: 0.2474031191 | S14: 0.2135551078 | T14: 0.2051966876 | U14: 0.2076721608 | V14: 0.2075221323 | W14: 0.2162392159 | X14: 0.1994698829 | Y14: 0.2201693155 | Z14: 0.2214025326 | AA14: 0.2390188971 | AC14: 1.48848372 | AD14: 1.341837396 | AE14: 1.467637588 | AF14: 1.432439969 | AG14: 1.478044146 | AH14: 1.438056223 | AI14: 1.480995506 | AJ14: 1.490236621 | AK14: 1.43025915 | AL14: 1.482483977 | AM14: 1.414625045 | AN14: 1.464767341
A15: All Btype_NEW_OTHER_Fixture_from_CFL_to_LEDPanel | C15: 14.81873464 | D15: 3.585328427 | E15: 0.7170656853 | F15: 4.302394112 | G15: -23.92236944 | H15: 0.5296479715 | I15: 2543.332703 | J15: 10.45864758 | K15: -113.796594 | L15: 4.769608219 | M15: 0.1231988567 | N15: 0.00250030666 | O15: 0.002140877481 | P15: 0.1631079526 | Q15: 0.1518576007 | R15: 0.1737234321 | S15: 0.149852418 | T15: 0.1439947267 | U15: 0.1458189113 | V15: 0.1457866255 | W15: 0.1519006218 | X15: 0.139931385 | Y15: 0.1544000672 | Z15: 0.1550704042 | AA15: 0.1668871296 | AC15: 1.110004565 | AD15: 1.0035531 | AE15: 1.100442515 | AF15: 1.068652271 | AG15: 1.100375857 | AH15: 1.070385655 | AI15: 1.099302689 | AJ15: 1.10991666 | AK15: 1.06396256 | AL15: 1.106219413 | AM15: 1.053495051 | AN15: 1.090093027
A16: All Btype_RETRO_CAN_Lamp_from_Inc/Hal_to_LEDScrew | C16: 20.03735148 | D16: 1.038551305 | E16: 0.2077102611 | F16: 1.246261566 | G16: -9.660072854 | H16: 0.301783542 | I16: 544.8450276 | J16: 0.9926916901 | K16: -30.82539145 | L16: 4.078342992 | M16: 0.1594774877 | N16: 0.003178883522 | O16: 0.002989764564 | P16: 0.2328896786 | Q16: 0.2169460726 | R16: 0.2474031191 | S16: 0.2135551078 | T16: 0.2051966876 | U16: 0.2076721608 | V16: 0.2075221323 | W16: 0.2162392159 | X16: 0.1994698829 | Y16: 0.2201693155 | Z16: 0.2214025326 | AA16: 0.2390188971 | AC16: 1.48848372 | AD16: 1.341837396 | AE16: 1.467637588 | AF16: 1.432439969 | AG16: 1.478044146 | AH16: 1.438056223 | AI16: 1.480995506 | AJ16: 1.490236621 | AK16: 1.43025915 | AL16: 1.482483977 | AM16: 1.414625045 | AN16: 1.464767341
A17: All Btype_RETRO_DISP_Lamp_from_Inc/Hal_to_LEDScrew | C17: 8.335202584 | D17: 0.5928489193 | E17: 0.1185697839 | F17: 0.7114187031 | G17: -4.135665934 | H17: 0.2255191079 | I17: 747.6756295 | J17: 1.840860157 | K17: -32.7091165 | L17: 3.500707731 | M17: 0.06793443541 | N17: 0.001444921051 | O17: 0.001313207159 | P17: 0.09124591873 | Q17: 0.08511791154 | R17: 0.09672612944 | S17: 0.08137955249 | T17: 0.07720059943 | U17: 0.07790021512 | V17: 0.07764813259 | W17: 0.08098537174 | X17: 0.07505045497 | Y17: 0.0836774104 | Z17: 0.08624536088 | AA17: 0.09286390727 | AC17: 0.6232879352 | AD17: 0.5653002652 | AE17: 0.6206354538 | AF17: 0.607608136 | AG17: 0.6218160715 | AH17: 0.6085154522 | AI17: 0.6220625401 | AJ17: 0.6302891509 | AK17: 0.6011766642 | AL17: 0.6277867122 | AM17: 0.588669315 | AN17: 0.6120139232
A18: All Btype_NEW_CAN_Fixture_from_CFL_to_LEDPanel | C18: 44.00791818 | D18: 3.926275737 | E18: 0.7852551475 | F18: 4.711530885 | G18: -17.94361851 | H18: 1.623890825 | I18: 937.8541922 | J18: 2.744506922 | K18: -27.05488857 | L18: 3.286944294 | M18: 0.3659482672 | N18: 0.00774568472 | O18: 0.006611312082 | P18: 0.4714182869 | Q18: 0.4391104571 | R18: 0.5009763656 | S18: 0.4273773036 | T18: 0.4079620497 | U18: 0.4126670528 | V18: 0.4119851537 | W18: 0.4295062383 | X18: 0.3962198191 | Y18: 0.4388735006 | Z18: 0.446159908 | AA18: 0.4799817858 | AC18: 3.301983259 | AD18: 2.993935628 | AE18: 3.290860789 | AF18: 3.206626727 | AG18: 3.287016196 | AH18: 3.20874996 | AI18: 3.280369038 | AJ18: 3.324463635 | AK18: 3.177063188 | AL18: 3.312085453 | AM18: 3.122193138 | AN18: 3.240333246
A19: All Btype_RETRO_CAN_Lamp_from_CFL_to_LEDScrew | C19: 13.76537861 | D19: 1.970238695 | E19: 0.394047739 | F19: 2.364286434 | G19: -4.469822619 | H19: 0.2907572242 | I19: 1504.582602 | J19: 5.471656013 | K19: -19.94086525 | L19: 2.176329349 | M19: 0.1107242465 | N19: 0.00239319524 | O19: 0.002030028491 | P19: 0.1535083224 | Q19: 0.1428968621 | R19: 0.1628914497 | S19: 0.1411251456 | T19: 0.1354189045 | U19: 0.1368012403 | V19: 0.1363958958 | W19: 0.1421245173 | X19: 0.1315979607 | Y19: 0.1451506535 | Z19: 0.1454948585 | AA19: 0.1570471885 | AC19: 1.027679189 | AD19: 0.9297124199 | AE19: 1.021054979 | AF19: 0.9957108738 | AG19: 1.021778204 | AH19: 0.9948195411 | AI19: 1.015144135 | AJ19: 1.028036806 | AK19: 0.9891610442 | AL19: 1.028515217 | AM19: 0.9734013877 | AN19: 1.009911811
A20: All Btype_RETRO_DISP_Lamp_from_CFL_to_LEDScrew | C20: 0.5375319255 | D20: 0.2215562231 | E20: 0.04431124462 | F20: 0.2658674677 | G20: -0.3316526784 | H20: 0.0007496222911 | I20: 4332.764077 | J20: 18.9644646 | K20: -39.55076456 | L20: 1.64559991 | M20: 0.004144391988 | N20: 8.6296159e-05 | O20: 8.577582031e-05 | P20: 0.006243032856 | Q20: 0.005828422228 | R20: 0.006611297266 | S20: 0.005539496439 | T20: 0.005265224173 | U20: 0.005301878188 | V20: 0.005282156148 | W20: 0.005521824345 | X20: 0.005130007686 | Y20: 0.005735784174 | Z20: 0.005928464192 | AA20: 0.00637793061 | AC20: 0.03997667347 | AD20: 0.03614707469 | AE20: 0.03949389833 | AF20: 0.03873813038 | AG20: 0.03983395123 | AH20: 0.0387786253 | AI20: 0.03972332717 | AJ20: 0.040142729 | AK20: 0.03852657112 | AL20: 0.04021524073 | AM20: 0.03792052639 | AN20: 0.03926965939
A21: All Btype_RETRO_OTHER_Lamp_from_CFL_to_LEDScrew | C21: 26.84233084 | D21: 11.07939333 | E21: 2.215878666 | F21: 13.295272 | G21: 2.242500601 | H21: 0.5593542225 | I21: 4338.914655 | J21: 19.02715034 | K21: 9.464524228 | L21: 0.9537809965 | M21: 0.216042287 | N21: 0.004449307806 | O21: 0.003946776578 | P21: 0.3141639262 | Q21: 0.2923783845 | R21: 0.3335846076 | S21: 0.2915960861 | T21: 0.2809879044 | U21: 0.2842020362 | V21: 0.2837961972 | W21: 0.2956157692 | X21: 0.2731970828 | Y21: 0.3005532694 | Z21: 0.2982856982 | AA21: 0.3223207577 | AC21: 1.99094914 | AD21: 1.796070756 | AE21: 1.96911425 | AF21: 1.91805061 | AG21: 1.974191107 | AH21: 1.921228596 | AI21: 1.971777611 | AJ21: 1.988410204 | AK21: 1.910816647 | AL21: 1.982736383 | AM21: 1.889168891 | AN21: 1.959134928
A22: All Btype_NEW_HIGHBAY_Fixture_from_LEDPanel_to_LEDPanel_CONTR | C22: 10.20254043 | D22: 0.2071075564 | E22: 0.04142151128 | F22: 0.2485290677 | G22: 0.287775758 | H22: 0.114151232 | I22: 213.3894638 | J22: -0.6911524282 | K22: 6.166943774 | L22: 0.8441922341 | M22: 0.08031148422 | N22: 0.00176447626 | O22: 0.001525664974 | P22: 0.1090331868 | Q22: 0.1016341416 | R22: 0.1155713928 | S22: 0.09686560426 | T22: 0.09216716215 | U22: 0.0928766261 | V22: 0.09262393922 | W22: 0.09691164735 | X22: 0.08986380175 | Y22: 0.1002201803 | Z22: 0.1037741079 | AA22: 0.1113376792 | AC22: 0.7686408989 | AD22: 0.6963518144 | AE22: 0.7616311382 | AF22: 0.7439514842 | AG22: 0.7645131208 | AH22: 0.7426041383 | AI22: 0.7569485667 | AJ22: 0.7686038232 | AK22: 0.7405354302 | AL22: 0.7729347824 | AM22: 0.7295578004 | AN22: 0.7533879672
A23: All Btype_RETRO_HIGHBAY_Fixture_from_HID_to_LEDPanel | C23: 0.3406226144 | D23: 0.2908867132 | E23: 0.05817734263 | F23: 0.3490640558 | G23: 0.08800969159 | H23: 0.002943461034 | I23: 8977.09371 | J23: 39.30917211 | K23: 22.89812047 | L23: 0.7719890088 | M23: 0.002615153188 | N23: 7.840489377e-05 | O23: 4.702727482e-05 | P23: 0.003132034255 | Q23: 0.002905066907 | R23: 0.003287344633 | S23: 0.002767386505 | T23: 0.002626625948 | U23: 0.002614352364 | V23: 0.002585035046 | W23: 0.002745386413 | X23: 0.002598677929 | Y23: 0.002895337686 | Z23: 0.002968530225 | AA23: 0.003148859229 | AC23: 0.02623695173 | AD23: 0.02404924681 | AE23: 0.02660254889 | AF23: 0.02574735684 | AG23: 0.02600500703 | AH23: 0.02512401298 | AI23: 0.02455559107 | AJ23: 0.02574785321 | AK23: 0.02528163956 | AL23: 0.02683525267 | AM23: 0.02465995711 | AN23: 0.02550255931
A24: All Btype_RETRO_HIGHBAY_Fixture_from_HID_to_LEDPanel_CONTR | C24: 1.594475098 | D24: 1.057081931 | E24: 0.2114163862 | F24: 1.268498317 | G24: 0.3873518259 | H24: 0.01360838358 | I24: 6969.093012 | J24: 30.0195022 | K24: 21.79404277 | L24: 0.7307866937 | M24: 0.01223802618 | N24: 0.0003676325702 | O24: 0.0002193976287 | P24: 0.0146366122 | Q24: 0.01357691143 | R24: 0.01536500871 | S24: 0.012938749 | T24: 0.01228393004 | U24: 0.01221964195 | V24: 0.01207409769 | W24: 0.0128257984 | X24: 0.01215105293 | Y24: 0.01353824218 | Z24: 0.0138745535 | AA24: 0.01471249053 | AC24: 0.1228670147 | AD24: 0.1126446704 | AE24: 0.1246216553 | AF24: 0.120599891 | AG24: 0.1218075732 | AH24: 0.1175651118 | AI24: 0.1147493512 | AJ24: 0.1203992871 | AK24: 0.1184188844 | AL24: 0.1257110563 | AM24: 0.1155014195 | AN24: 0.1193920943
A25: All Btype_NR_LINEAR_Fixture_from_LFTube_to_LEDPanel | C25: 154.3700376 | D25: 26.20935676 | E25: 5.241871351 | F25: 31.45122811 | G25: 28.69611061 | H25: 3.112872513 | I25: 1784.7554 | J25: 6.638761117 | K25: 16.86516777 | L25: 0.4649474101 | M25: 1.237189812 | N25: 0.02786787144 | O25: 0.02267095887 | P25: 1.619449447 | Q25: 1.50947163 | R25: 1.719210343 | S25: 1.455586584 | T25: 1.387831971 | U25: 1.39622686 | V25: 1.387508829 | W25: 1.451260521 | X25: 1.350329341 | Y25: 1.500967223 | Z25: 1.536720186 | AA25: 1.648073258 | AC25: 11.65256445 | AD25: 10.58376153 | AE25: 11.62634604 | AF25: 11.33153212 | AG25: 11.60967773 | AH25: 11.24276803 | AI25: 11.35568893 | AJ25: 11.5848863 | AK25: 11.23813956 | AL25: 11.7440116 | AM25: 11.03659849 | AN25: 11.40142666
A26: All Btype_NEW_LINEAR_Fixture_from_LEDPanel_to_LEDPanel_CONTR | C26: 34.2524148 | D26: 3.405268927 | E26: 0.6810537853 | F26: 4.086322712 | G26: 4.843783151 | H26: 0.9620565777 | I26: 1045.070462 | J26: 3.229801684 | K26: 13.09643929 | L26: 0.4494082486 | M26: 0.2796109119 | N26: 0.006029901757 | O26: 0.005087917453 | P26: 0.3643294297 | Q26: 0.3395229397 | R26: 0.3870542789 | S26: 0.3281818331 | T26: 0.3130688825 | U26: 0.3158479546 | V26: 0.3147521261 | W26: 0.3286873622 | X26: 0.3043625857 | Y26: 0.3380397196 | Z26: 0.3456483526 | AA26: 0.3711209018 | AC26: 2.57789809 | AD26: 2.33821042 | AE26: 2.566584195 | AF26: 2.501336543 | AG26: 2.566242615 | AH26: 2.493927589 | AI26: 2.538488126 | AJ26: 2.578436 | AK26: 2.482113486 | AL26: 2.590342329 | AM26: 2.441911856 | AN26: 2.526307183
A27: All Btype_NR_LINEAR_Lamp_from_LFTube_to_LEDTube_RDX | C27: 8.633538996 | D27: 1.424886156 | E27: 0.2849772313 | F27: 1.709863388 | G27: 1.662265387 | H27: 0.1740953533 | I27: 1734.908858 | J27: 6.465641364 | K27: 17.34329067 | L27: 0.4470682433 | M27: 0.06919300309 | N27: 0.001558581954 | O27: 0.001267931333 | P27: 0.09057185039 | Q27: 0.08442105986 | R27: 0.09615123356 | S27: 0.08140740087 | T27: 0.07761805093 | U27: 0.07808755657 | V27: 0.07759997838 | W27: 0.08116545474 | X27: 0.07552062047 | Y27: 0.08394542912 | Z27: 0.08594500497 | AA27: 0.09217271018 | AC27: 0.6516994561 | AD27: 0.5919239208 | AE27: 0.6502331246 | AF27: 0.6337449028 | AG27: 0.6493009067 | AH27: 0.6287805436 | AI27: 0.6350959338 | AJ27: 0.6479143825 | AK27: 0.6285216849 | AL27: 0.6568138717 | AM27: 0.6172499853 | AN27: 0.6376539332
A28: All Btype_RETRO_LINEAR_Lamp_from_LFTube_to_LEDTube_RDX | C28: 77.70185096 | D28: 20.63923873 | E28: 4.127847745 | F28: 24.76708647 | G28: 26.26843121 | H28: 1.566858179 | I28: 2792.207326 | J28: 11.47908108 | K28: 27.81602023 | L28: 0.3047841641 | M28: 0.6227370278 | N28: 0.01402723759 | O28: 0.01141138199 | P28: 0.8151466535 | Q28: 0.7597895387 | R28: 0.8653611021 | S28: 0.7326666078 | T28: 0.6985624584 | U28: 0.7027880091 | V28: 0.6983998054 | W28: 0.7304890926 | X28: 0.6796855842 | Y28: 0.755508862 | Z28: 0.7735050447 | AA28: 0.8295543916 | AC28: 5.865295105 | AD28: 5.327315287 | AE28: 5.852098121 | AF28: 5.703704125 | AG28: 5.84370816 | AH28: 5.659024893 | AI28: 5.715863404 | AJ28: 5.831229443 | AK28: 5.656695164 | AL28: 5.911324845 | AM28: 5.555249868 | AN28: 5.738885398
A29: All Btype_NR_HIGHBAY_Fixture_from_LFTube_to_LEDPanel_CONTR | C29: 42.39406195 | D29: 13.90851363 | E29: 2.781702726 | F29: 16.69021635 | G29: 17.56866634 | H29: 0.05865082907 | I29: 3448.744672 | J29: 14.62340065 | K29: 34.66839867 | L29: 0.2890439007 | M29: 0.3280164727 | N29: 0.006783574679 | O29: 0.006545168818 | P29: 0.4690941333 | Q29: 0.4376865981 | R29: 0.4966350943 | S29: 0.4132015788 | T29: 0.3923308336 | U29: 0.3958008326 | V29: 0.3950401676 | W29: 0.4128495034 | X29: 0.3818097631 | Y29: 0.4265998399 | Z29: 0.4471162753 | AA29: 0.4809554565 | AC29: 3.17558114 | AD29: 2.868398147 | AE29: 3.122581208 | AF29: 3.071189379 | AG29: 3.169594885 | AH29: 3.080508565 | AI29: 3.16030715 | AJ29: 3.192163537 | AK29: 3.0731481 | AL29: 3.190767752 | AM29: 3.023437971 | AN29: 3.117264036
A30: All Btype_NEW_HIGHBAY_Fixture_from_LFTube_to_LEDPanel_CONTR | C30: 86.1037178 | D30: 33.27923522 | E30: 6.655847043 | F30: 39.93508226 | G30: 39.9424536 | H30: 1.024207131 | I30: 4062.906104 | J30: 17.36530864 | K30: 37.46848603 | L30: 0.2784556671 | M30: 0.6787401262 | N30: 0.0149465615 | O30: 0.01283462591 | P30: 0.9176333394 | Q30: 0.8552305381 | R30: 0.9726998501 | S30: 0.8156727743 | T30: 0.7762863324 | U30: 0.782477529 | V30: 0.7805964935 | W30: 0.8168796159 | X30: 0.7570849231 | Y30: 0.8439426977 | Z30: 0.873470228 | AA30: 0.9369524681 | AC30: 6.489486291 | AD30: 5.879568614 | AE30: 6.431052791 | AF30: 6.279627519 | AG30: 6.452797178 | AH30: 6.268722303 | AI30: 6.389557085 | AJ30: 6.489747748 | AK30: 6.251236955 | AL30: 6.524503788 | AM30: 6.158938134 | AN30: 6.359552602
A31: All Btype_NEW_LINEAR_Fixture_from_LFTube_to_LEDPanel_CONTR | C31: 736.8378713 | D31: 212.9785392 | E31: 42.59570784 | F31: 255.574247 | G31: 277.2332022 | H31: 23.9476819 | I31: 3038.43015 | J31: 12.65418445 | K31: 29.6771499 | L31: 0.2705604066 | M31: 6.070627517 | N31: 0.1307170357 | O31: 0.1098061631 | P31: 7.767544351 | Q31: 7.237659478 | R31: 8.254144115 | S31: 6.990636476 | T31: 6.663131869 | U31: 6.729337145 | V31: 6.711904357 | W31: 7.007145726 | X31: 6.477057119 | Y31: 7.192621175 | Z31: 7.363746375 | AA31: 7.905574373 | AC31: 55.48503189 | AD31: 50.34621007 | AE31: 55.29043572 | AF31: 53.87061063 | AG31: 55.23541909 | AH31: 53.779922 | AI31: 54.80954712 | AJ31: 55.66530661 | AK31: 53.41515887 | AL31: 55.75040949 | AM31: 52.513799 | AN31: 54.37551823
A32: All Btype_NR_HIGHBAY_Fixture_from_LFTube_to_LEDPanel | C32: 7.678509182 | D32: 3.843114928 | E32: 0.7686229856 | F32: 4.611737914 | G32: 4.72274476 | H32: 0.01674023304 | I32: 5261.284863 | J32: 23.14687921 | K32: 49.04991197 | L32: 0.2690235525 | M32: 0.05951383912 | N32: 0.001230642078 | O32: 0.001184732551 | P32: 0.08484113664 | Q32: 0.07915865897 | R32: 0.08983365133 | S32: 0.07474254408 | T32: 0.07096784153 | U32: 0.07160641144 | V32: 0.07147787302 | W32: 0.07469899557 | X32: 0.06906544722 | Y32: 0.07716107328 | Z32: 0.08086345076 | AA32: 0.08697555264 | AC32: 0.5752629832 | AD32: 0.5196579548 | AE32: 0.5657690363 | AF32: 0.55633265 | AG32: 0.5741188865 | AH32: 0.5580744717 | AI32: 0.5726006919 | AJ32: 0.5783894057 | AK32: 0.5566228349 | AL32: 0.5779676329 | AM32: 0.5476452397 | AN32: 0.5646747575
A33: All Btype_NR_LINEAR_Fixture_from_LFTube_to_LEDPanel_CONTR | C33: 610.2888138 | D33: 181.1901413 | E33: 36.23802826 | F33: 217.4281695 | G33: 231.2020974 | H33: 11.61905002 | I33: 3120.933437 | J33: 12.92769566 | K33: 30.83131259 | L33: 0.2629174811 | M33: 4.879218185 | N33: 0.1100672982 | O33: 0.08946088679 | P33: 6.413022566 | Q33: 5.977805067 | R33: 6.807844062 | S33: 5.765618644 | T33: 5.498736479 | U33: 5.529617065 | V33: 5.492926117 | W33: 5.746175448 | X33: 5.350178451 | Y33: 5.947513354 | Z33: 6.08695583 | AA33: 6.527350593 | AC33: 46.06940646 | AD33: 41.84268751 | AE33: 45.96037429 | AF33: 44.79533298 | AG33: 45.90171226 | AH33: 44.41503321 | AI33: 44.82727707 | AJ33: 45.74372119 | AK33: 44.43466451 | AL33: 46.4375919 | AM33: 43.64605896 | AN33: 45.07120975
A34: All Btype_NR_LINEAR_Fixture_from_LFTube_to_LEDPanel_RDX | C34: 46.4551934 | D34: 16.22900507 | E34: 3.245801014 | F34: 19.47480608 | G34: 20.67029718 | H34: 0.9367691869 | I34: 3672.340783 | J34: 15.5223262 | K34: 35.5076367 | L34: 0.2416999606 | M34: 0.372312483 | N34: 0.008386390115 | O34: 0.00682246241 | P34: 0.487347405 | Q34: 0.4542513405 | R34: 0.517368851 | S34: 0.4380354977 | T34: 0.4176458309 | U34: 0.4201721384 | V34: 0.4175485864 | W34: 0.4367336383 | X34: 0.4063600142 | Y34: 0.4516920751 | Z34: 0.4624513573 | AA34: 0.495961283 | AC34: 3.506652866 | AD34: 3.185013727 | AE34: 3.498762856 | AF34: 3.410043325 | AG34: 3.493746794 | AH34: 3.383331189 | AI34: 3.417312928 | AJ34: 3.48628621 | AK34: 3.381938327 | AL34: 3.534172423 | AM34: 3.321287766 | AN34: 3.431076966
A35: All Btype_NR_LINEAR_Fixture_from_LEDTube_to_LEDPanel_CONTR | C35: 128.0176204 | D35: 37.16300907 | E35: 7.432601814 | F35: 44.59561088 | G35: 51.16217946 | H35: 3.214436912 | I35: 3051.59204 | J35: 12.64772607 | K35: 31.89491859 | L35: 0.2249358362 | M35: 1.038694968 | N35: 0.02253195941 | O35: 0.01913603878 | P35: 1.381518621 | Q35: 1.2877651 | R35: 1.465904285 | S35: 1.246149153 | T35: 1.188498185 | U35: 1.196854064 | V35: 1.19125549 | W35: 1.243927433 | X35: 1.156039453 | Y35: 1.284590966 | Z35: 1.309411311 | AA35: 1.407436524 | AC35: 9.618415984 | AD35: 8.722365542 | AE35: 9.576137421 | AF35: 9.341659975 | AG35: 9.572851653 | AH35: 9.302150443 | AI35: 9.453500307 | AJ35: 9.605074521 | AK35: 9.262066423 | AL35: 9.671320807 | AM35: 9.105101298 | AN35: 9.427625415
A36: All Btype_NEW_DISP_Fixture_from_LEDPanel_to_LEDPanel_CONTR | C36: 9.906091845 | D36: 2.09580224 | E36: 0.4191604479 | F36: 2.514962687 | G36: 4.324842776 | H36: 0.2962918783 | I36: 2223.992417 | J36: 8.90659657 | K36: 34.21009774 | L36: 0.1846898375 | M36: 0.0812348867 | N36: 0.001693568318 | O36: 0.001483051954 | P36: 0.1091593071 | Q36: 0.1016981028 | R36: 0.116006863 | S36: 0.09934248903 | T36: 0.09505449061 | U36: 0.09608087346 | V36: 0.0958721845 | W36: 0.09996496181 | X36: 0.09233679695 | Y36: 0.1022098678 | Z36: 0.1034858735 | AA36: 0.1113932335 | AC36: 0.7410840593 | AD36: 0.670966142 | AE36: 0.7364753672 | AF36: 0.7178218363 | AG36: 0.7372675107 | AH36: 0.7179037459 | AI36: 0.7343265856 | AJ36: 0.7431559726 | AK36: 0.7127623267 | AL36: 0.7422211853 | AM36: 0.70199486 | AN36: 0.7275072093
A37: All Btype_NEW_CAN_Fixture_from_LEDPanel_to_LEDPanel_CONTR | C37: 4.797571347 | D37: 1.391761255 | E37: 0.2783522509 | F37: 1.670113506 | G37: 2.172275238 | H37: 0.1473753346 | I37: 3049.500101 | J37: 12.83203825 | K37: 35.31888784 | L37: 0.1789054821 | M37: 0.03942149062 | N37: 0.0008153660516 | O37: 0.0007175753788 | P37: 0.05326347678 | Q37: 0.04961421838 | R37: 0.05661000844 | S37: 0.04858204946 | T37: 0.0465248642 | U37: 0.04705539986 | V37: 0.04698138679 | W37: 0.04897068754 | X37: 0.04519867609 | Y37: 0.04999377296 | Z37: 0.05051150577 | AA37: 0.0543992665 | AC37: 0.3584827484 | AD37: 0.3243827879 | AE37: 0.3559521389 | AF37: 0.3468514069 | AG37: 0.3564133417 | AH37: 0.3472694154 | AI37: 0.3558232462 | AJ37: 0.3597293041 | AK37: 0.3445732942 | AL37: 0.3586322561 | AM37: 0.3396553354 | AN37: 0.3521007588
A38: All Btype_RETRO_HIGHBAY_Fixture_from_LFTube_to_LEDPanel_CONTR | C38: 4.710451327 | D38: 2.694654015 | E38: 0.538930803 | F38: 3.233584818 | G38: 3.673501304 | H38: 0.006516758786 | I38: 6013.479609 | J38: 26.68611886 | K38: 60.96683757 | L38: 0.1774305984 | M38: 0.03644627475 | N38: 0.0007537305199 | O38: 0.0007272409798 | P38: 0.05212157036 | Q38: 0.04863184423 | R38: 0.05518167715 | S38: 0.04591128653 | T38: 0.04359231484 | U38: 0.04397787029 | V38: 0.04389335196 | W38: 0.04587216705 | X38: 0.04242330701 | Y38: 0.04739998221 | Z38: 0.04967958615 | AA38: 0.05343949516 | AC38: 0.3528423489 | AD38: 0.3187109052 | AE38: 0.3469534675 | AF38: 0.3412432644 | AG38: 0.3521772094 | AH38: 0.3422787294 | AI38: 0.3511452389 | AJ38: 0.3546848375 | AK38: 0.3414609 | AL38: 0.3545297502 | AM38: 0.3359375523 | AN38: 0.3463626707
A39: All Btype_RETRO_HIGHBAY_Fixture_from_LFTube_to_LEDPanel | C39: 0.8531676869 | D39: 0.7909462469 | E39: 0.1581892494 | F39: 0.9491354963 | G39: 1.069868052 | H39: 0.001860025894 | I39: 9745.360819 | J39: 44.23683431 | K39: 95.02900941 | L39: 0.1526762885 | M39: 0.006612648792 | N39: 0.0001367380086 | O39: 0.0001316369501 | P39: 0.00942679296 | Q39: 0.008795406552 | R39: 0.009981516814 | S39: 0.00830472712 | T39: 0.007885315726 | U39: 0.007956267938 | V39: 0.007941985891 | W39: 0.008299888397 | X39: 0.00767393858 | Y39: 0.008573452587 | Z39: 0.008984827862 | AA39: 0.009663950294 | AC39: 0.06391810924 | AD39: 0.05773977275 | AE39: 0.06286322626 | AF39: 0.06181473889 | AG39: 0.06379098739 | AH39: 0.06200827463 | AI39: 0.06362229911 | AJ39: 0.06426548952 | AK39: 0.06184698165 | AL39: 0.06421862588 | AM39: 0.06084947108 | AN39: 0.06274163973
A40: All Btype_RETRO_LINEAR_Fixture_from_LFTube_to_LEDPanel_RDX | C40: 5.161688155 | D40: 3.306896571 | E40: 0.6613793141 | F40: 3.968275885 | G40: 4.393908264 | H40: 0.1040854652 | I40: 6734.637139 | J40: 29.93444723 | K40: 64.7460415 | L40: 0.1400911758 | M40: 0.04136805366 | N40: 0.0009318211239 | O40: 0.0007580513789 | P40: 0.05414971167 | Q40: 0.05047237117 | R40: 0.05748542789 | S40: 0.04867061086 | T40: 0.04640509232 | U40: 0.04668579316 | V40: 0.04639428737 | W40: 0.04852595981 | X40: 0.04515111269 | Y40: 0.05018800834 | Z40: 0.05138348415 | AA40: 0.05510680922 | AC40: 0.3896280963 | AD40: 0.3538904141 | AE40: 0.3887514284 | AF40: 0.3788937027 | AG40: 0.3881940883 | AH40: 0.3759256877 | AI40: 0.3797014365 | AJ40: 0.3873651344 | AK40: 0.3757709252 | AL40: 0.3926858248 | AM40: 0.369031974 | AN40: 0.381230774
A41: All Btype_NEW_OTHER_Fixture_from_LEDPanel_to_LEDPanel_CONTR | C41: 18.12808869 | D41: 7.554008404 | E41: 1.510801681 | F41: 9.064810085 | G41: 12.08399236 | H41: 0.5219079835 | I41: 4380.370027 | J41: 19.23085927 | K41: 50.84891287 | L41: 0.1247323137 | M41: 0.1486265171 | N41: 0.002945983163 | O41: 0.002606334808 | P41: 0.2093851765 | Q41: 0.1948745914 | R41: 0.2228215449 | S41: 0.1945401434 | T41: 0.1877400113 | U41: 0.1900650872 | V41: 0.1899770025 | W41: 0.1978311069 | X41: 0.1824586815 | Y41: 0.2007057693 | Z41: 0.1992366218 | AA41: 0.2149920429 | AC41: 1.348933416 | AD41: 1.21616761 | AE41: 1.33205103 | AF41: 1.294162739 | AG41: 1.335460567 | AH41: 1.296994069 | AI41: 1.334909034 | AJ41: 1.343716518 | AK41: 1.291756177 | AL41: 1.339680676 | AM41: 1.28248476 | AN41: 1.327144312
A42: All Btype_RETRO_LINEAR_Fixture_from_LFTube_to_LEDPanel | C42: 17.1522264 | D42: 15.67046077 | E42: 3.134092155 | F42: 18.80455293 | G42: 20.98276656 | H42: 0.3458747237 | I42: 9603.877642 | J42: 43.43798725 | K42: 91.52112355 | L42: 0.1068996618 | M42: 0.1374655347 | N42: 0.00309643016 | O42: 0.00251899543 | P42: 0.1799388274 | Q42: 0.1677190701 | R42: 0.1910233715 | S42: 0.1617318427 | T42: 0.1542035523 | U42: 0.1551363178 | V42: 0.1541676476 | W42: 0.161251169 | X42: 0.1500365934 | Y42: 0.1667741359 | Z42: 0.1707466873 | AA42: 0.1831192508 | AC42: 1.294729383 | AD42: 1.175973504 | AE42: 1.291816226 | AF42: 1.259059125 | AG42: 1.289964192 | AH42: 1.249196447 | AI42: 1.261743214 | AJ42: 1.287209588 | AK42: 1.248682173 | AL42: 1.304890177 | AM42: 1.226288721 | AN42: 1.266825184
A43: All Btype_RETRO_LINEAR_Fixture_from_LFTube_to_LEDPanel_CONTR | C43: 67.8098682 | D43: 55.04971798 | E43: 11.0099436 | F43: 66.05966158 | G43: 74.38933831 | H43: 1.291005558 | I43: 8533.900018 | J43: 38.40280336 | K43: 82.51360904 | L43: 0.1063898664 | M43: 0.5421353539 | N43: 0.0122296998 | O43: 0.009940098533 | P43: 0.7125580629 | Q43: 0.664200563 | R43: 0.756427118 | S43: 0.6406242938 | T43: 0.6109707199 | U43: 0.6144018961 | V43: 0.6103251241 | W43: 0.6384639387 | X43: 0.5944642723 | Y43: 0.6608348171 | Z43: 0.6763284256 | AA43: 0.725261177 | AC43: 5.11882294 | AD43: 4.649187501 | AE43: 5.106708254 | AF43: 4.97725922 | AG43: 5.100190251 | AH43: 4.93500369 | AI43: 4.980808563 | AJ43: 5.082635688 | AK43: 4.937184946 | AL43: 5.159732434 | AM43: 4.849562107 | AN43: 5.007912195
